Vendor,Category,Amount Paid,Payment Date
10 S. Riverside Property Owner LLC,Rental Expense,11881.29,1/18/2024
10 S. Riverside Property Owner LLC,Rental Expense,851.29,1/18/2024
10 S. Riverside Property Owner LLC,Rental Expense,11881.29,2/2/2024
10 S. Riverside Property Owner LLC,Rental Expense,851.29,2/5/2024
10 S. Riverside Property Owner LLC,Rental Expense,851.29,2/20/2024
10 S. Riverside Property Owner LLC,Rental Expense,11881.29,2/20/2024
10 S. Riverside Property Owner LLC,Rental Expense,11881.29,3/20/2024
10 S. Riverside Property Owner LLC,Rental Expense,851.29,3/28/2024
22Vets LLC,Capital Purchases,24886.39,3/8/2024
2423 Partners  LLC,Rental Expense,17415.71,1/10/2024
401 Properties Lp C/O: Eric Janssen  Receiver #133,Rental Expense,25787.88,1/8/2024
401 Properties Lp C/O: Eric Janssen  Receiver #133,Rental Expense,25682.88,2/2/2024
401 Properties Lp C/O: Eric Janssen  Receiver #133,Rental Expense,26567.88,2/22/2024
440 South Lasalle St.(Chicago)Owner Llc,Rental Expense,123165.01,1/18/2024
440 South Lasalle St.(Chicago)Owner Llc,Rental Expense,123165.01,2/5/2024
440 South Lasalle St.(Chicago)Owner Llc,Rental Expense,123165.01,3/4/2024
440 South Lasalle St.(Chicago)Owner Llc,Rental Expense,124143.01,3/28/2024
5 Star Interpreting Chicago LLC,Services,346.5,2/1/2024
A & K Railroad Materials  Inc.,Materials,138892.32,2/8/2024
A & K Railroad Materials  Inc.,Materials,19841.76,2/8/2024
A & K Railroad Materials  Inc.,Materials,39683.52,2/8/2024
A-Alert Exterminating Service,Services,95,1/1/2024
A-Alert Exterminating Service,Services,95,1/2/2024
A-Alert Exterminating Service,Services,435,1/2/2024
A-Alert Exterminating Service,Services,165,1/2/2024
A-Alert Exterminating Service,Services,95,1/2/2024
A-Alert Exterminating Service,Services,201.67,1/5/2024
A-Alert Exterminating Service,Services,1335,1/5/2024
A-Alert Exterminating Service,Services,165,1/5/2024
A-Alert Exterminating Service,Services,95,1/16/2024
A-Alert Exterminating Service,Services,111.5,2/1/2024
A-Alert Exterminating Service,Services,190,2/1/2024
A-Alert Exterminating Service,Services,95,2/15/2024
A-Alert Exterminating Service,Services,435,2/20/2024
Aaron Gulbransen,Services,48.11,3/20/2024
Aaron Gulbransen,Services,197.5,3/20/2024
Aaron Gulbransen,Services,45,3/20/2024
Aaron Gulbransen,Services,180.94,3/20/2024
Aaron Gulbransen,Services,835.48,3/20/2024
"ABM Industry Groups, LLC",Services,171.76,1/2/2024
"ABM Industry Groups, LLC",Services,65954.72,2/13/2024
"ABM Industry Groups, LLC",Services,51878.23,2/14/2024
"ABM Industry Groups, LLC",Services,57121.05,3/6/2024
"ABM Industry Groups, LLC",Services,166777.2,3/12/2024
"ABM Industry Groups, LLC",Services,7203.64,3/15/2024
Abt,Materials,256.58,1/2/2024
Abt,Materials,513.16,1/16/2024
Abt,Materials,289.99,1/16/2024
Abt,Materials,1999,2/2/2024
Abt,Materials,499.99,2/13/2024
Abt,Materials,3471.96,2/16/2024
Abt,Materials,108,2/16/2024
Abt,Materials,109,3/1/2024
Abt,Materials,259,3/1/2024
Abt,Materials,2826.99,3/1/2024
Abt,Materials,289.99,3/1/2024
Abt,Materials,189.99,3/6/2024
Abt,Materials,999.98,3/12/2024
Abt,Materials,249,3/12/2024
Abt,Materials,324,3/12/2024
Aca Compliance Services  Inc.,Services,13708,2/2/2024
Acacia Financial Group  Inc.,Services,1531.25,2/16/2024
Aci Worldwide Corp.,Services,59790,3/1/2024
Adam Farence,Services,462.56,1/12/2024
Adam Farence,Services,58.96,3/12/2024
Adam Farence,Services,92.76,3/12/2024
Adams & Westlake  Ltd.,Materials,2850,1/24/2024
Adams & Westlake  Ltd.,Materials,5628.2,1/25/2024
Adams & Westlake  Ltd.,Materials,9220.82,2/1/2024
Adorama Inc,Services,1349,3/1/2024
Adorama Inc,Services,150,3/1/2024
Adriana S. Mena,Services,20.93,3/12/2024
Aecom Technical Services  Inc.,Capital Purchases,29982.44,1/2/2024
Aecom Technical Services  Inc.,Capital Purchases,45641.07,1/10/2024
"Ahead of Our Time Publishing, Inc.",Services,500,1/3/2024
Ahmad Abusini,Services,9289.6,2/22/2024
Aircraft & Commercial Enterprises Inc.,Capital Purchases,599,2/22/2024
Aircraft & Commercial Enterprises Inc.,Capital Purchases,1797,3/18/2024
Aircraft & Commercial Enterprises Inc.,Materials,3594,3/18/2024
Aka Comp Solutions  Inc.,Capital Purchases,34892,1/3/2024
Aka Comp Solutions  Inc.,Services,79783.55,1/3/2024
Aka Comp Solutions  Inc.,Capital Purchases,54844.69,2/1/2024
"Al Warren Oil Co., Inc.",Materials,82926,1/16/2024
"Al Warren Oil Co., Inc.",Materials,12614.85,1/25/2024
"Al Warren Oil Co., Inc.",Materials,83589,2/8/2024
"Al Warren Oil Co., Inc.",Materials,82161,2/8/2024
"Al Warren Oil Co., Inc.",Claims & Insurance,32065.99,2/15/2024
"Al Warren Oil Co., Inc.",Materials,73644,2/16/2024
"Al Warren Oil Co., Inc.",Materials,95399.32,3/18/2024
Alan B. Bakotic,Services,31.64,1/2/2024
Alan B. Bakotic,Services,98.33,1/2/2024
Alan B. Bakotic,Services,288,1/2/2024
Alan B. Bakotic,Services,276.5,1/29/2024
Alan B. Bakotic,Services,32.36,1/29/2024
Alan B. Bakotic,Services,206.5,3/12/2024
Aldridge Electric  Inc.,Capital Purchases,602452.26,2/16/2024
ALEJANDRO MONTES,Services,120.6,2/12/2024
Alera Group,Services,19915.08,3/4/2024
Alera Group,Services,13203.36,3/26/2024
Alexandru Vitalis,Services,98.91,3/1/2024
Alexandru Vitalis,Services,325.81,3/1/2024
Alexandru Vitalis,Services,172.5,3/1/2024
Alfred Benesch & Co.,Capital Purchases,99369.2,1/1/2024
Alfred Benesch & Co.,Capital Purchases,88949.9,1/24/2024
Alfred Benesch & Co.,Capital Purchases,74830.14,2/16/2024
Alfred Benesch & Co.,Capital Purchases,1298525.36,2/16/2024
Alfred Benesch & Co.,Capital Purchases,145476.45,3/6/2024
Alfred Benesch & Co.,Capital Purchases,209161.65,3/26/2024
Alicia Hernandez,,25,2/5/2024
Aloha Print Group,Services,17401.07,2/1/2024
Alstom Signaling Operation  LLC,Materials,1922.62,2/14/2024
Alstom Signaling Operation  LLC,Materials,42821.03,2/16/2024
Alstom Signaling Operation  LLC,Capital Purchases,17980,2/16/2024
Alstom Signaling Operation  LLC,Materials,4918.76,2/23/2024
Alstom Signaling Operation  LLC,Capital Purchases,16890,2/23/2024
Alstom Signaling Operation  LLC,Materials,716.6,3/8/2024
Alstom Signaling Operation LLC,Capital Purchases,3140.84,1/4/2024
Alstom Signaling Operation LLC,Capital Purchases,936.62,1/4/2024
Alstom Signaling Operation LLC,Materials,1404.93,1/4/2024
Alstom Signaling Operation LLC,Capital Purchases,5603.3,1/5/2024
Alstom Signaling Operation LLC,Capital Purchases,3930.5,1/5/2024
Alstom Signaling Operation LLC,Capital Purchases,10102.3,2/14/2024
Alstom Signaling Operation LLC,Capital Purchases,777.1,2/14/2024
Alstom Signaling Operation LLC,Capital Purchases,11877.36,2/16/2024
Alstom Signaling Operation LLC,Capital Purchases,72362.36,3/1/2024
Alstom Signaling Operation LLC,Capital Purchases,1328.23,3/8/2024
Alstom Signaling Operation LLC,Capital Purchases,291.41,3/19/2024
Alstom Signaling Operation LLC,Capital Purchases,112287.79,3/25/2024
Alstom Transportation Inc.,Capital Purchases,3976,1/3/2024
Alstom Transportation Inc.,Materials,428007.36,1/4/2024
Alstom Transportation Inc.,,6272383.02,1/29/2024
Alstom Transportation Inc.,Capital Purchases,129600,2/1/2024
Alstom Transportation Inc.,Materials,175093.92,2/14/2024
Alstom Transportation Inc.,Capital Purchases,15652226,2/14/2024
Alstom Transportation Inc.,Materials,175093.92,2/14/2024
Alstom Transportation Inc.,Materials,94861.6,3/1/2024
Alstom Transportation Inc.,Materials,18972.32,3/1/2024
Alstom Transportation Inc.,Capital Purchases,5459204.75,3/4/2024
Alvarez  Inc.,Services,800,2/1/2024
Alvarez  Inc.,Services,1215,2/1/2024
Alvarez  Inc.,Services,3301,2/1/2024
Alvarez  Inc.,Services,8185.5,2/1/2024
Alvarez  Inc.,Services,1100,2/1/2024
Alvarez  Inc.,Materials,900,3/18/2024
Alvin Hollins Jr,Services,124.45,1/17/2024
Alvin Hollins Jr,Services,49.58,2/13/2024
Alvin Hollins Jr,Services,147.4,3/13/2024
Amalgamated Bank Of Chicago,Services,11087.74,2/13/2024
Amanda Alequin,Services,43.59,3/14/2024
Amazon.Com/Tool Crib,Services,0,1/9/2024
Amazon.Com/Tool Crib,Services,4031.44,1/9/2024
Amazon.Com/Tool Crib,Materials,521.46,1/10/2024
Amazon.Com/Tool Crib,Materials,601.92,1/10/2024
Amazon.Com/Tool Crib,Materials,487.73,2/27/2024
Amazon.Com/Tool Crib,Services,28.29,2/27/2024
American Calibration  Inc.,Services,1562,1/1/2024
American Calibration  Inc.,Services,990,1/1/2024
American Calibration  Inc.,Services,330,1/4/2024
American Calibration  Inc.,Services,2392.5,1/4/2024
American Calibration  Inc.,Services,957,2/8/2024
American Calibration  Inc.,Services,792,2/14/2024
American Calibration  Inc.,Materials,990,3/25/2024
American Calibration  Inc.,Services,66,3/25/2024
American Calibration  Inc.,Services,264,3/26/2024
American Public Transit Assoc.,Services,1100,2/27/2024
American Solutions For Business,Services,17053.7,3/15/2024
American Solutions For Business,Services,5726.1,3/15/2024
American Solutions For Business,Services,2440,3/15/2024
American Surveying & Engineering Pc,Capital Purchases,6278.81,1/26/2024
"Amsted Rail Company, Inc.",Capital Purchases,7950,1/1/2024
"Amsted Rail Company, Inc.",Capital Purchases,5300,1/17/2024
"Amsted Rail Company, Inc.",Capital Purchases,23850,1/30/2024
"Amsted Rail Company, Inc.",Capital Purchases,58022.4,3/8/2024
"Amsted Rail Company, Inc.",Capital Purchases,32122.53,3/27/2024
"Amundsen Davis, LLC",Services,9990,1/2/2024
"Amundsen Davis, LLC",Claims & Insurance,38834.28,1/3/2024
Anchor Brake Shoe Co.,Materials,8355.6,1/3/2024
Anchor Brake Shoe Co.,Materials,10444.5,1/22/2024
Anchor Brake Shoe Co.,Materials,33660,1/22/2024
Anchor Brake Shoe Co.,Materials,33660,1/25/2024
Anchor Brake Shoe Co.,Materials,20196,2/2/2024
Anchor Brake Shoe Co.,Materials,33660,3/15/2024
Anchor Brake Shoe Co.,Materials,33660,3/26/2024
Andre R. Feliciano,Services,160.8,2/5/2024
Andres Hernandez Rodriguez,Services,565,1/11/2024
Andres Hernandez Rodriguez,Services,56.5,1/12/2024
Anita Ayala-Ortega,Services,50.92,2/5/2024
Anixter  Inc.,Materials,7718.56,1/3/2024
Anna Searle Jones,,20,2/5/2024
Anthem Insurance Companies  Inc.,Services,103172.28,1/4/2024
Anthony Belarmino,Services,238.84,1/2/2024
ANTHONY MILLS,Services,251.07,2/20/2024
ANTHONY MILLS,Services,276.5,2/20/2024
ANTHONY MILLS,Services,559.11,2/20/2024
ANTHONY MILLS,Services,37,3/7/2024
ANTHONY SIRIANO,Services,70,1/16/2024
ANTHONY SIRIANO,Services,452.43,1/16/2024
ANTHONY SIRIANO,Services,118.5,1/16/2024
ANTHONY SIRIANO,Services,679.37,1/16/2024
Anthony Tyrell Alexander,Services,134,3/12/2024
Antoine Haynes,Services,48.47,1/12/2024
Antoine Haynes,Services,105.86,2/20/2024
Antoinette Collymore,Services,14.74,3/19/2024
Aql Technologies  Inc.,Services,19000,1/3/2024
Aqua Chill of Chicago LLC,Rental Expense,1505,1/3/2024
Aqua Chill of Chicago LLC,Rental Expense,1505,2/20/2024
Aqua Chill of Chicago LLC,Rental Expense,1505,3/7/2024
Aqua Illinois,Utilities,374.47,1/9/2024
Aqua Illinois,Utilities,173.73,2/8/2024
Aqua Illinois,Utilities,167.04,2/29/2024
Arcadis Us  Inc.,Capital Purchases,101117.5,1/10/2024
Arcadis Us  Inc.,Services,3028.8,1/10/2024
Arcadis Us  Inc.,Capital Purchases,37120.77,1/19/2024
Arcadis Us  Inc.,Capital Purchases,66578.4,1/24/2024
Arcadis Us  Inc.,Services,3575.48,2/1/2024
Arcadis Us  Inc.,Capital Purchases,298065.21,2/1/2024
Arcadis Us  Inc.,Capital Purchases,98946.72,2/13/2024
Arcadis Us  Inc.,Services,1128.09,2/13/2024
Arcadis Us  Inc.,Capital Purchases,6242.22,2/16/2024
Arcadis Us  Inc.,Capital Purchases,97188.32,2/22/2024
Arcadis Us  Inc.,Capital Purchases,177149.46,2/26/2024
Arcadis Us  Inc.,Capital Purchases,2362.9,3/4/2024
Arcadis Us  Inc.,Services,22377.15,3/5/2024
Arcadis Us  Inc.,Capital Purchases,9026.47,3/14/2024
Arcadis Us  Inc.,Capital Purchases,106112.88,3/25/2024
"ARM Camco, LLC",Capital Purchases,5875,2/5/2024
"ARM Camco, LLC",Services,1458.94,2/26/2024
"ARM Camco, LLC",Capital Purchases,11750,2/26/2024
Armando Palacios,Services,56.5,2/5/2024
Armando Palacios,Services,1469,2/22/2024
Armando Palacios,Services,56.5,2/29/2024
Armando Palacios,Services,847.5,3/19/2024
Armando Palacios,Services,452,3/28/2024
Arnold Maxey,Services,361.82,1/17/2024
Arnold Maxey,Services,400.66,1/22/2024
Arnold Maxey,Services,480.79,2/13/2024
Arnold Maxey,Services,801.32,3/12/2024
Arnold Maxey,Services,320.53,3/26/2024
Ars Corp.,Services,43651.2,1/12/2024
Ars Corp.,Services,7427.06,1/12/2024
Ars Corp.,Services,25463.2,1/12/2024
Ars Corp.,Services,7275.2,1/22/2024
Arsenio Pomales,Services,268,3/7/2024
Arsenio Pomales,Services,147.5,3/7/2024
Arsenio Pomales,Services,72.49,3/14/2024
Arthur J Gallagher Risk Management Risk Management Services  Inc.,Claims & Insurance,316079,1/8/2024
Arthur J Gallagher Risk Management Risk Management Services  Inc.,Claims & Insurance,1020301,1/8/2024
Arthur J Gallagher Risk Management Risk Management Services  Inc.,Claims & Insurance,5827,1/11/2024
Arthur J Gallagher Risk Management Risk Management Services  Inc.,Claims & Insurance,125,1/23/2024
Arthur J Gallagher Risk Management Risk Management Services  Inc.,Claims & Insurance,4000,2/1/2024
Arthur J Gallagher Risk Management Risk Management Services  Inc.,Claims & Insurance,11054,2/15/2024
Arthur J Gallagher Risk Management Risk Management Services  Inc.,Claims & Insurance,1113,2/22/2024
Arthur J Gallagher Risk Management Risk Management Services  Inc.,Claims & Insurance,26403,3/12/2024
Arthur R. Perez,Services,141.43,1/23/2024
Arturo J Mota,Services,314.4,1/4/2024
Arturo J Mota,Services,257.08,2/7/2024
Arturo J Mota,Services,293.39,3/5/2024
Arturo Lopez,Services,379.5,1/12/2024
Arturo Lopez,Services,825.95,1/12/2024
Arturo Lopez,Services,35,1/12/2024
Arturo Lopez,Services,86.95,1/12/2024
Arturo Tulian,Services,143.92,3/19/2024
"Asplundh Tree Expert, LLC",Services,35401.6,1/3/2024
"Asplundh Tree Expert, LLC",Services,9531.2,1/3/2024
ASQ,Services,1249,1/16/2024
ASQ,Services,1249,1/16/2024
ASQ,Services,1249,1/17/2024
ASQ,Services,185,1/30/2024
Assn. Of American Railroads (AAR),Services,939,1/3/2024
Assn. Of American Railroads (AAR),Services,939,1/24/2024
Assn. Of American Railroads (AAR),Services,939,2/26/2024
Assn. Of American Railroads (AAR),Services,939,3/27/2024
AT & T,Utilities,75451.25,1/8/2024
AT & T,Utilities,5278.45,1/8/2024
AT & T,Utilities,10923.95,1/8/2024
AT & T,Utilities,4084.84,1/8/2024
AT & T,Utilities,5226.49,1/8/2024
AT & T,Utilities,8383.47,1/8/2024
AT & T,Utilities,6835.5,1/8/2024
AT & T,Utilities,855.64,1/8/2024
AT & T,Utilities,14674.47,1/8/2024
AT & T,Utilities,703.06,1/9/2024
AT & T,Utilities,17685.7,1/9/2024
AT & T,Utilities,3.75,1/9/2024
AT & T,Utilities,15800.7,1/9/2024
AT & T,Utilities,1927.04,1/9/2024
AT & T,Utilities,3313.1,1/9/2024
AT & T,Utilities,14863.63,1/9/2024
AT & T,Utilities,102445.39,1/9/2024
AT & T,Utilities,5258.21,1/9/2024
AT & T,Utilities,11918.8,1/9/2024
AT & T,Utilities,48141.51,1/9/2024
AT & T,Utilities,22706.84,1/9/2024
AT & T,Utilities,3250,1/9/2024
AT & T,Utilities,5139.52,1/9/2024
AT & T,Utilities,5125,1/19/2024
AT & T,Utilities,35945.81,1/19/2024
AT & T,Utilities,38582.06,1/19/2024
AT & T,Utilities,3720,1/19/2024
AT & T,Utilities,8662.07,1/19/2024
AT & T,Utilities,1927.04,1/19/2024
AT & T,Utilities,2135.76,1/22/2024
AT & T,Utilities,676.23,1/22/2024
AT & T,Utilities,15508.9,1/24/2024
AT & T,Utilities,14470.47,1/24/2024
AT & T,Utilities,1106.05,1/29/2024
AT & T,Utilities,103347.47,1/29/2024
AT & T,Utilities,1479047.41,1/29/2024
AT & T,Utilities,17685.7,1/29/2024
AT & T,Utilities,3250,1/29/2024
AT & T,Utilities,3.75,1/29/2024
AT & T,Utilities,6017.44,1/29/2024
AT & T,Utilities,11918.8,1/29/2024
AT & T,Utilities,12405.7,1/29/2024
AT & T,Utilities,5261,1/29/2024
AT & T,Utilities,3308.8,1/29/2024
AT & T,Utilities,13581.04,1/29/2024
AT & T,Utilities,48094.88,1/29/2024
AT & T,Utilities,14672.55,2/6/2024
AT & T,Utilities,10923.95,2/6/2024
AT & T,Utilities,8730.06,2/6/2024
AT & T,Utilities,6938.03,2/6/2024
AT & T,Utilities,15800.7,2/6/2024
AT & T,Utilities,3167.07,2/6/2024
AT & T,Utilities,3142.18,2/6/2024
AT & T,Utilities,5230.35,2/6/2024
AT & T,Utilities,3720,2/6/2024
AT & T,Utilities,690981.99,2/8/2024
AT & T,Utilities,859.53,2/8/2024
AT & T,Utilities,4878.04,2/8/2024
AT & T,Utilities,8296.97,2/8/2024
AT & T,Utilities,74672.69,2/8/2024
AT & T,Utilities,116415.24,2/15/2024
AT & T,Utilities,1036.05,2/15/2024
AT & T,Utilities,682.57,2/15/2024
AT & T,Utilities,5123.88,2/15/2024
AT & T,Utilities,3250,2/15/2024
AT & T,Utilities,14038.82,2/15/2024
AT & T,Utilities,1927.04,2/15/2024
AT & T,Utilities,13581.04,2/15/2024
AT & T,Utilities,43873.55,2/15/2024
AT & T,Utilities,2179.86,2/22/2024
AT & T,Utilities,140.44,2/22/2024
AT & T,Utilities,3167.07,2/22/2024
AT & T,Utilities,4067.49,2/22/2024
AT & T,Utilities,41960.38,2/22/2024
AT & T,Utilities,5261,2/26/2024
AT & T,Utilities,11918.8,2/26/2024
AT & T,Utilities,3.75,2/26/2024
AT & T,Utilities,6325.43,2/26/2024
AT & T,Utilities,17685.7,2/26/2024
AT & T,Utilities,6919.97,3/5/2024
AT & T,Utilities,16425.95,3/5/2024
AT & T,Utilities,9686.73,3/5/2024
AT & T,Utilities,3720,3/5/2024
AT & T,Utilities,8894.08,3/5/2024
AT & T,Utilities,859.94,3/7/2024
AT & T,Utilities,29579.81,3/7/2024
AT & T,Utilities,10923.95,3/7/2024
AT & T,Utilities,74672.69,3/14/2024
AT & T,Utilities,2155.69,3/14/2024
AT & T,Utilities,8296.97,3/14/2024
AT & T,Utilities,39675.82,3/14/2024
AT & T,Utilities,9374.07,3/19/2024
AT & T,Utilities,672.26,3/19/2024
AT & T,Utilities,5123.88,3/19/2024
AT & T,Utilities,3284.19,3/19/2024
AT & T,Utilities,450203.02,3/19/2024
AT & T,Utilities,1927.04,3/19/2024
AT & T,Utilities,44570.05,3/19/2024
AT & T,Utilities,2976.22,3/19/2024
AT & T,Utilities,44477.98,3/19/2024
AT & T,Utilities,103132.7,3/19/2024
AT & T,Utilities,74.63,3/21/2024
AT & T,Utilities,5261,3/21/2024
AT & T,Utilities,3.75,3/21/2024
AT & T,Utilities,11918.8,3/21/2024
AT & T,Utilities,19193.69,3/21/2024
AT & T,Utilities,17685.7,3/21/2024
A-Tire County Service  Inc.,Services,750,1/22/2024
A-Tire County Service  Inc.,Services,1665,1/22/2024
A-Tire County Service  Inc.,Materials,2647.52,1/22/2024
A-Tire County Service  Inc.,Services,1699.73,1/22/2024
A-Tire County Service  Inc.,Services,885.25,1/22/2024
A-Tire County Service  Inc.,Materials,1202.91,1/22/2024
A-Tire County Service  Inc.,Materials,3583.51,2/20/2024
A-Tire County Service  Inc.,Services,2261,2/20/2024
A-Tire County Service  Inc.,Services,150,2/20/2024
A-Tire County Service  Inc.,Materials,4398.86,3/14/2024
A-Tire County Service  Inc.,Services,2460,3/14/2024
Atlantic Track & Turnout Co.,Materials,41628.9,1/30/2024
Atlantic Track & Turnout Co.,Materials,83285.28,2/1/2024
Atlantic Track & Turnout Co.,Materials,137830,2/1/2024
Atlantic Track & Turnout Co.,Materials,35947.04,2/2/2024
Atlas First Access,Services,660,1/10/2024
Atlas First Access,Materials,627.67,1/10/2024
Atlas First Access,Materials,687,1/12/2024
Atlas First Access,Services,1017.5,1/12/2024
Atlas First Access,Materials,1599.81,1/22/2024
Atlas First Access,Services,1301.5,1/22/2024
Atlas First Access,Capital Purchases,86900,1/26/2024
Atlas First Access,Materials,3428.37,3/1/2024
Atlas First Access,Services,2113.75,3/1/2024
Atlas First Access,Materials,1421.96,3/4/2024
Atlas First Access,Services,2774.5,3/4/2024
Atlas First Access,Services,110,3/7/2024
Atlas First Access,Materials,4074.97,3/26/2024
Atlas First Access,Services,2090,3/26/2024
Atlas Toyota Material Handling  LLC,Capital Purchases,59873.1,3/7/2024
Automated Railroad Mntce. Systems  Inc. (Arms  Inc.),Capital Purchases,7170.4,3/1/2024
Automated Railroad Mntce. Systems  Inc. (Arms  Inc.),Capital Purchases,1434.08,3/14/2024
Automated Railroad Mntce. Systems  Inc. (Arms  Inc.),Capital Purchases,1434.08,3/14/2024
AVI Systems Inc.,Capital Purchases,1182.21,1/18/2024
"Axon Enterprise, Inc",Materials,13956.6,1/18/2024
"Axon Enterprise, Inc",Services,1094,2/12/2024
"Axon Enterprise, Inc",Services,147350.88,3/4/2024
Azura Investigations Llc,Services,5367,2/20/2024
Azura Investigations Llc,Services,2045,3/1/2024
Azura Investigations Llc,Services,3982,3/18/2024
B & H Photo Video Corp.,Services,225.48,2/1/2024
B & H Photo Video Corp.,Services,618.26,2/1/2024
Bach-Simpson Div. Of Wabtec Canada  Inc.,Materials,63595,1/4/2024
Bach-Simpson Div. Of Wabtec Canada  Inc.,Materials,17130,1/4/2024
Bach-Simpson Div. Of Wabtec Canada  Inc.,Materials,11520,1/24/2024
Bach-Simpson Div. Of Wabtec Canada  Inc.,Materials,7975,2/1/2024
Bach-Simpson Div. Of Wabtec Canada  Inc.,Materials,6075,2/22/2024
Bach-Simpson Div. Of Wabtec Canada  Inc.,Materials,2150,2/22/2024
Bach-Simpson Div. Of Wabtec Canada  Inc.,Materials,545,2/23/2024
Bach-Simpson Div. Of Wabtec Canada  Inc.,Materials,19500,3/1/2024
Bach-Simpson Div. Of Wabtec Canada  Inc.,Materials,7960,3/5/2024
Bach-Simpson Div. Of Wabtec Canada  Inc.,Materials,3475,3/13/2024
Bach-Simpson Div. Of Wabtec Canada  Inc.,Materials,495,3/26/2024
BAKERHOSTETLER,Services,3952,2/1/2024
Ballast Tools  Inc.,Materials,9312,2/23/2024
Barbara A. Herodes,Services,37.86,1/10/2024
Barbara A. Herodes,Services,211.5,1/10/2024
Barbara A. Herodes,Services,19,1/10/2024
Barbara A. Herodes,Services,60.15,1/10/2024
Barbara A. Herodes,Services,1188.2,1/10/2024
Baultar Concept  Inc.,Capital Purchases,23175,1/4/2024
Baultar Concept  Inc.,Capital Purchases,23175,2/1/2024
Baultar Concept  Inc.,Materials,26550,2/8/2024
Baultar Concept  Inc.,Services,2410,2/8/2024
Baultar Concept  Inc.,Capital Purchases,46350,2/23/2024
BCBS Of Illinois,Services,54741,1/5/2024
BCBS Of Illinois,Services,1216978.02,1/5/2024
BCBS Of Illinois,Services,53555.84,2/5/2024
BCBS Of Illinois,Services,1206691.65,2/5/2024
BCBS Of Illinois,Services,53733.59,3/4/2024
BCBS Of Illinois,Services,1166378.57,3/4/2024
Bearing Headquarters Co.,Materials,2825.61,3/5/2024
Becker Professional Development Corp.,Services,449,2/27/2024
Beligh Sraieb,Services,828.84,2/1/2024
Beligh Sraieb,Services,52.05,2/1/2024
Beligh Sraieb,Services,40.4,2/20/2024
Beligh Sraieb,Services,1054.18,2/20/2024
Beligh Sraieb,Services,989.59,3/14/2024
Beligh Sraieb,Services,47.15,3/14/2024
Bellwood Electric Motors Inc.,Services,19900,1/1/2024
Bellwood Electric Motors Inc.,Materials,18400,1/4/2024
Bellwood Electric Motors Inc.,Materials,18900,2/1/2024
Bellwood Electric Motors Inc.,Materials,4200,3/5/2024
Bellwood Electric Motors Inc.,Materials,4820,3/5/2024
Bellwood Electric Motors Inc.,Materials,3900,3/5/2024
Bellwood Electric Motors Inc.,Materials,61800,3/5/2024
Bellwood Electric Motors Inc.,Materials,2600,3/5/2024
Bellwood Electric Motors Inc.,Materials,7600,3/26/2024
Benefit Resource Inc.,Services,4860.28,1/5/2024
Benefit Resource Inc.,Services,221835.2,1/8/2024
Benefit Resource Inc.,Services,27489.37,1/8/2024
Benefit Resource Inc.,Services,133616.68,2/5/2024
Benefit Resource Inc.,Services,12343.69,2/5/2024
Benefit Resource Inc.,Services,5201,2/5/2024
Benefit Resource Inc.,Services,4836,3/12/2024
Benefit Resource Inc.,Services,125059.89,3/12/2024
Benefit Resource Inc.,Services,5524.2,3/12/2024
Bentley Systems  Inc.,Services,43088.88,3/6/2024
Bernard Powell,Services,339,1/9/2024
Bernard Powell,Services,169.5,1/12/2024
Berts Car Wash  Inc.,Services,931.75,1/24/2024
Berts Car Wash  Inc.,Services,1080,2/23/2024
Berts Car Wash  Inc.,Services,2228,3/26/2024
Billy Chaney,Services,630.37,1/11/2024
Billy Chaney,Services,603,2/13/2024
Billy Chaney,Services,560.92,3/12/2024
BLAIRE THEUERKAUF,Services,172.5,3/19/2024
BLAIRE THEUERKAUF,Services,73.48,3/19/2024
Blue Print Shoppe  Inc.,Capital Purchases,535.67,1/17/2024
Blue Print Shoppe  Inc.,Capital Purchases,1813.62,2/14/2024
Blue Print Shoppe  Inc.,Capital Purchases,704.29,3/5/2024
"BlueStar Computer Solutions, Inc. DBA BlueStar Case Solutions, Inc.",Claims & Insurance,10700.72,1/23/2024
"BlueStar Computer Solutions, Inc. DBA BlueStar Case Solutions, Inc.",Claims & Insurance,10493.72,1/26/2024
"BlueStar Computer Solutions, Inc. DBA BlueStar Case Solutions, Inc.",Claims & Insurance,10493.72,2/12/2024
Bnsf Railway Co.,Capital Purchases,5129.37,1/1/2024
Bnsf Railway Co.,Capital Purchases,14471.92,1/2/2024
Bnsf Railway Co.,Services,6256107,1/2/2024
Bnsf Railway Co.,Services,50,1/9/2024
Bnsf Railway Co.,Capital Purchases,17123.94,1/12/2024
Bnsf Railway Co.,Services,6859650,1/17/2024
Bnsf Railway Co.,Capital Purchases,606981.53,1/18/2024
Bnsf Railway Co.,Services,4500.02,1/29/2024
Bnsf Railway Co.,Services,4500.02,2/22/2024
Bnsf Railway Co.,Services,6757447,2/23/2024
Bnsf Railway Co.,Capital Purchases,74596.05,3/1/2024
Bnsf Railway Co.,Capital Purchases,9438.11,3/6/2024
Bnsf Railway Co.,Capital Purchases,958,3/6/2024
Bnsf Railway Co.,Capital Purchases,5977.75,3/7/2024
Bnsf Railway Co.,Capital Purchases,324212.42,3/14/2024
Bnsf Railway Co.,Capital Purchases,462792,3/14/2024
Bnsf Railway Co.,Services,6397310,3/19/2024
Bnsf Railway Co.,Services,4500.02,3/19/2024
Bnsf Railway Co.,Capital Purchases,6178.76,3/21/2024
Bnsf Railway Co.,Capital Purchases,277312.98,3/21/2024
Bounce Houses R Us LLC,Services,6790,2/27/2024
Brad Methling,Services,42.88,2/14/2024
Brad Methling,Services,14.74,2/14/2024
Brad Methling,Services,29.48,2/14/2024
Brad Methling,Services,288.1,3/20/2024
Brandon Scott Wilson,Services,105.86,3/20/2024
Brasco International  Inc.,Capital Purchases,150250,1/1/2024
BRAULIO Joel ZAMBONINO,Services,1915.64,2/28/2024
BRAULIO Joel ZAMBONINO,Services,134.99,2/28/2024
BRAULIO Joel ZAMBONINO,Services,434.5,2/28/2024
Brendan A. Stejskal,Services,290.82,1/2/2024
Brendan A. Stejskal,Services,297.48,2/13/2024
Brendan A. Stejskal,Services,307.53,2/26/2024
Brendan A. Stejskal,Services,307.53,3/12/2024
Brendan A. Stejskal,Services,297.48,3/21/2024
Brendan M. Ohara,Services,55.41,1/12/2024
BRIAN HARDY,Services,40.2,1/11/2024
BRIAN HARDY,Services,13.4,1/11/2024
BRIAN HARDY,Services,61.64,3/13/2024
BRIAN HARDY,Services,16.08,3/13/2024
BRIAN HARDY,Services,13.4,3/20/2024
BRIAN HARDY,Services,61.64,3/26/2024
Brian Richards,Services,60.26,1/4/2024
Brian Richards,Services,61.64,1/11/2024
Brian Richards,Services,61.64,1/30/2024
Brittany Bogan,Services,842.16,3/5/2024
Brittany Bogan,Services,259,3/5/2024
Brittany Bogan,Services,142.67,3/5/2024
Buona Catering LLC dba Beyond Catering & Events,Services,6580.67,2/27/2024
Cadient LLC,Services,12028,1/25/2024
Cadient LLC,Services,2400,3/7/2024
Cadient LLC,Services,5200,3/15/2024
Calumet Harbor Lumber & Supplyco.,Materials,227181,2/2/2024
Calumet Lift Truck Service Co. Inc.,Rental Expense,1665,1/16/2024
Calumet Lift Truck Service Co. Inc.,Rental Expense,1380,2/8/2024
Calumet Lift Truck Service Co. Inc.,Rental Expense,1380,3/6/2024
Canadian National Railroad,Services,76934.48,1/2/2024
Canadian National Railroad,Services,97109.42,2/5/2024
Canadian National Railroad,Services,5802.49,2/15/2024
Canadian National Railroad,Services,357.44,2/26/2024
Canadian National Railroad,Services,771007.08,3/22/2024
Canadian National Railroad,Services,514004.7,3/22/2024
Canadian Pacific Railway Co.,Services,88683.02,3/7/2024
Canadian Pacific Railway Co.,Services,90761.47,3/8/2024
Canadian Urban Transit Association (CUTA),Services,56592.5,2/1/2024
Canteen Refreshment Services,Materials,226.46,1/2/2024
Canteen Refreshment Services,Materials,43.96,1/8/2024
Canteen Refreshment Services,Materials,1056,1/10/2024
Canteen Refreshment Services,Materials,323.46,1/16/2024
Canteen Refreshment Services,Materials,167.08,3/4/2024
Canteen Refreshment Services,Materials,220.4,3/19/2024
Canteen Refreshment Services,Materials,195,3/28/2024
Cardinal Color Group,Services,63795.33,2/13/2024
Carlos A. Del Toro,Services,489.29,1/11/2024
Carlos A. Del Toro,Services,464.85,1/22/2024
Carlos A. Del Toro,Services,93.71,1/30/2024
Carlos A. Del Toro,Services,499.02,2/8/2024
Carlos A. Del Toro,Services,66.46,2/12/2024
Carlos A. Del Toro,Services,480.39,2/27/2024
Carlos A. Del Toro,Services,410.71,3/12/2024
Carlos A. Del Toro,Services,499.42,3/20/2024
Carmichael Leasing Co.  Inc.,Materials,4608.34,1/5/2024
Carmichael Leasing Co.  Inc.,Services,8911.11,1/5/2024
Carmichael Leasing Co.  Inc.,Services,163.8,1/5/2024
Carmichael Leasing Co.  Inc.,Services,3290.25,1/16/2024
Carmichael Leasing Co.  Inc.,Materials,7868.15,1/16/2024
Carmichael Leasing Co.  Inc.,Materials,163.8,1/31/2024
Carmichael Leasing Co.  Inc.,Materials,273,2/2/2024
Carmichael Leasing Co.  Inc.,Materials,218.4,2/13/2024
Carmichael Leasing Co.  Inc.,Materials,109.2,2/13/2024
Carmichael Leasing Co.  Inc.,Materials,1245.96,3/4/2024
Carmichael Leasing Co.  Inc.,Services,1231.6,3/4/2024
Carmichael Leasing Co.  Inc.,Materials,109.2,3/20/2024
Cavalry Fire Protection Svc. LLC,Services,35,1/9/2024
Cavalry Fire Protection Svc. LLC,Materials,610,1/9/2024
Cavalry Fire Protection Svc. LLC,Services,1493.9,1/9/2024
Cavalry Fire Protection Svc. LLC,Services,226,1/10/2024
Cavalry Fire Protection Svc. LLC,Services,594.5,1/10/2024
Cavalry Fire Protection Svc. LLC,Services,1420.6,1/16/2024
Cavalry Fire Protection Svc. LLC,Services,752.5,2/2/2024
Cavalry Fire Protection Svc. LLC,Services,1163.8,2/5/2024
Cavalry Fire Protection Svc. LLC,Services,693,2/12/2024
Cavalry Fire Protection Svc. LLC,Services,285.5,2/12/2024
Cavalry Fire Protection Svc. LLC,Services,755.3,2/14/2024
Cavalry Fire Protection Svc. LLC,Services,205.3,2/14/2024
Cavalry Fire Protection Svc. LLC,Materials,3283.5,2/15/2024
Cavalry Fire Protection Svc. LLC,Services,659.4,3/4/2024
Cavalry Fire Protection Svc. LLC,Materials,2767.1,3/11/2024
Cavalry Fire Protection Svc. LLC,Services,2680.1,3/11/2024
Cavalry Fire Protection Svc. LLC,Services,756.3,3/12/2024
Cavalry Fire Protection Svc. LLC,Materials,4840.9,3/14/2024
Cavalry Fire Protection Svc. LLC,Services,105,3/14/2024
Cavalry Fire Protection Svc. LLC,Services,150.6,3/14/2024
Cavalry Fire Protection Svc. LLC,Materials,1193.9,3/28/2024
Cavalry Fire Protection Svc. LLC,Services,3767.8,3/28/2024
Cavalry Fire Protection Svc. LLC,Services,585.1,3/28/2024
Cavalry Fire Protection Svc. LLC,Services,638.8,3/28/2024
"CBFC Development, LLC",Rental Expense,24749.69,1/10/2024
"CBFC Development, LLC",Rental Expense,24749.69,2/8/2024
"CBFC Development, LLC",Rental Expense,24749.69,3/6/2024
CDECI,Materials,4623.34,1/1/2024
CDECI,Services,41098.51,1/1/2024
CDECI,Services,56637.69,1/5/2024
CDECI,Services,23645.38,2/5/2024
CDECI,Services,70067.18,3/1/2024
CDECI,Materials,301.05,3/1/2024
CDECI,Services,20924.5,3/4/2024
Cdm Smith  Inc.,Capital Purchases,105125.65,1/2/2024
Cdm Smith  Inc.,Capital Purchases,6494.99,1/2/2024
Cdm Smith  Inc.,Capital Purchases,199328.2,1/9/2024
Cdm Smith  Inc.,Capital Purchases,3370.16,1/9/2024
Cdm Smith  Inc.,Capital Purchases,25470.3,2/7/2024
Cdm Smith  Inc.,Capital Purchases,31100.83,2/14/2024
CDW Government  LLC,Materials,18000,1/1/2024
CDW Government  LLC,Capital Purchases,1090,1/10/2024
CDW Government  LLC,Materials,4360,2/14/2024
CDW Government  LLC,Materials,1336.5,2/21/2024
CDW Government  LLC,Capital Purchases,545,3/4/2024
Celeste Industries Corp.,Materials,1500,1/10/2024
Celeste Industries Corp.,Materials,3900,2/5/2024
Central Sales & Service Inc.,Capital Purchases,26087.1,1/10/2024
Central Sales & Service Inc.,Materials,1759.6,1/10/2024
Central Sales & Service Inc.,Capital Purchases,17627.77,3/4/2024
Central Sales & Service Inc.,Capital Purchases,14232.72,3/11/2024
Central Sales & Service Inc.,Capital Purchases,26668.8,3/28/2024
CenTrio Energy Chicago LLC,Utilities,25626.68,1/10/2024
CenTrio Energy Chicago LLC,Utilities,16017.54,1/16/2024
CenTrio Energy Chicago LLC,Utilities,17724.19,2/21/2024
CenTrio Energy Chicago LLC,Utilities,21298.19,3/14/2024
Certified Languages International,Services,129.6,1/5/2024
Certified Languages International,Services,148.5,1/17/2024
Certified Languages International,Services,250,1/18/2024
Certified Languages International,Services,158.4,2/20/2024
Certified Languages International,Services,289.8,3/19/2024
CHARLES TILLMAN,Services,4.85,1/11/2024
CHARLES TILLMAN,Services,27.51,1/11/2024
CHARLES TILLMAN,Services,5.23,2/20/2024
CHARLES TILLMAN,Services,261.3,2/20/2024
CHARLES TILLMAN,Services,5.23,3/19/2024
CHARLES TILLMAN,Services,155.44,3/19/2024
Chauncey Lawrence,Services,129.85,1/2/2024
"Checkfluid, Inc",Materials,300,1/16/2024
"Checkfluid, Inc",Materials,16.9,1/16/2024
"Checkfluid, Inc",Materials,1200,1/17/2024
"Checkfluid, Inc",Materials,67.6,1/17/2024
"Checkfluid, Inc",Materials,900,1/24/2024
"Checkfluid, Inc",Materials,50.7,1/24/2024
"Checkfluid, Inc",Materials,1350,2/1/2024
"Checkfluid, Inc",Materials,80.82,2/1/2024
"Checkfluid, Inc",Materials,1350,3/7/2024
"Checkfluid, Inc",Materials,67.6,3/7/2024
Chem & Consult  Inc.,Materials,4243.8,2/5/2024
Chicago Metal Maintenance  Inc.,Services,615,2/5/2024
Chicago Metal Maintenance  Inc.,Services,615,2/15/2024
Chicago Minority Supplier Devel. Council  Inc.,Services,750,3/26/2024
Chicago Railroad Supply Inc.,Capital Purchases,109916.38,2/20/2024
Chicago Railroad Supply Inc.,Capital Purchases,25344,3/4/2024
Chicago Spence Tool & Rubber Co.,Materials,1107.88,2/21/2024
Chicago Tire Inc.,Services,3050.65,1/2/2024
Chicago Tire Inc.,Services,1131.47,1/2/2024
Chicago Tire Inc.,Services,25,1/10/2024
Chicago Tire Inc.,Services,2320.91,1/16/2024
Chicago Tire Inc.,Services,699.08,1/16/2024
Chicago Tire Inc.,Services,973.95,1/29/2024
Chicago Tire Inc.,Services,448.83,1/29/2024
Chicago Tire Inc.,Services,31499.16,1/29/2024
Chicago Tire Inc.,Services,2256,2/1/2024
Chicago Tire Inc.,Materials,1650,2/1/2024
Chicago Tire Inc.,Services,90,2/1/2024
Chicago Tire Inc.,Services,2967.02,2/8/2024
Chicago Tire Inc.,Services,25,2/8/2024
Chicago Tire Inc.,Services,1044.4,2/9/2024
Chicago Tire Inc.,Services,225.79,2/9/2024
Chicago Tire Inc.,Services,90,2/12/2024
Chicago Tire Inc.,Services,272.72,2/12/2024
Chicago Tire Inc.,Services,125,2/13/2024
Chicago Tire Inc.,Services,162.37,2/13/2024
Chicago Tire Inc.,Services,518.2,2/14/2024
Chicago Tire Inc.,Services,125,2/14/2024
Chicago Tire Inc.,Services,25,3/14/2024
Chicago Tire Inc.,Services,5568.75,3/26/2024
Chicago Tire Inc.,Services,23096,3/28/2024
Chicago Transit Authority,Services,17238,1/12/2024
Chicago Transit Authority,Services,10531.2,2/27/2024
Chicago Transit Authority,Services,2116.5,3/25/2024
Chicagoland Truck Parts LLC,Materials,416.96,1/5/2024
Chicagoland Truck Parts LLC,Materials,3598.78,2/9/2024
Chicagoland Truck Parts LLC,Materials,81.48,2/21/2024
Chicagoland Truck Parts LLC,Materials,2813.91,2/27/2024
Chicagoland Truck Parts LLC,Materials,121.8,3/4/2024
Chicagoland Truck Parts LLC,Materials,342.16,3/11/2024
Chicagoland Truck Parts LLC,Materials,1620.69,3/18/2024
Chicagoland Truck Parts LLC,Materials,532.35,3/20/2024
CHRISTINE HAYES,,29.64,3/19/2024
Christopher A Prutsman,Services,48.47,2/20/2024
CHRISTOPHER BUFORD,Services,868.12,3/12/2024
Christopher Dunn,Services,123.28,2/21/2024
Christopher Dunn,Services,80.4,2/21/2024
CHRISTOPHER GARDINER,,17325,1/16/2024
Citibank N.A.,,381952.77,1/4/2024
Citibank N.A.,,315000,1/8/2024
Citibank N.A.,,75000,1/11/2024
Citibank N.A.,,170290.92,1/17/2024
Citibank N.A.,,50000,1/18/2024
Citibank N.A.,,300000,1/23/2024
Citibank N.A.,,180000,1/26/2024
Citibank N.A.,,50000,1/31/2024
Citibank N.A.,,75000,2/1/2024
Citibank N.A.,,26515.19,2/13/2024
Citibank N.A.,,159634.71,2/21/2024
Citibank N.A.,,167967.24,3/12/2024
Citibank N.A.,,72225.96,3/19/2024
City Of Blue Island,Utilities,240.57,1/10/2024
City Of Blue Island,Utilities,408.24,1/16/2024
City Of Blue Island,Utilities,29.16,1/16/2024
City Of Blue Island,Utilities,704.7,1/16/2024
City Of Blue Island,Utilities,29.16,1/16/2024
City Of Blue Island,Utilities,218.7,1/16/2024
City Of Blue Island,Utilities,29.16,1/16/2024
City Of Blue Island,Utilities,218.7,1/16/2024
City Of Blue Island,Utilities,218.7,2/12/2024
City Of Blue Island,Utilities,218.7,2/12/2024
City Of Blue Island,Utilities,29.16,2/12/2024
City Of Blue Island,Utilities,29.16,2/12/2024
City Of Blue Island,Utilities,196.83,2/12/2024
City Of Blue Island,Utilities,704.7,2/12/2024
City Of Blue Island,Utilities,29.16,2/12/2024
City Of Blue Island,Utilities,218.7,3/11/2024
City Of Blue Island,Utilities,704.7,3/11/2024
City Of Blue Island,Utilities,29.16,3/11/2024
City Of Blue Island,Utilities,218.7,3/11/2024
City Of Blue Island,Utilities,29.16,3/11/2024
City Of Blue Island,Utilities,393.66,3/11/2024
City Of Blue Island,Utilities,29.16,3/11/2024
City of Chicago,Services,620,2/1/2024
City of Chicago,Services,105,2/21/2024
City Of Elgin,Utilities,224.07,1/2/2024
City Of Elgin,Utilities,54.63,1/9/2024
City Of Elgin,Utilities,1503.92,1/9/2024
City Of Elgin,Utilities,268.56,2/8/2024
City Of Elgin,Utilities,329.08,2/20/2024
City Of Elgin,Utilities,1028.16,2/20/2024
City Of Elgin,Utilities,265.43,2/28/2024
City Of Elgin,Utilities,56.65,3/11/2024
City Of Elgin,Utilities,1750.55,3/11/2024
City Of Harvey Water Department,Utilities,36.33,1/10/2024
City Of Harvey Water Department,Utilities,36.34,1/10/2024
City Of Harvey Water Department,Utilities,40.87,2/8/2024
City Of Harvey Water Department,Utilities,36.02,2/8/2024
City Of Harvey Water Department,Utilities,36.06,3/14/2024
City Of Harvey Water Department,Utilities,32.73,3/14/2024
City Of Highland Park,Utilities,28.78,3/20/2024
City Of Oak Forest Ill.,Utilities,56.34,1/25/2024
CJ's Towing & Recovery LLC,Services,4657.95,1/5/2024
CJ's Towing & Recovery LLC,Services,718.15,1/5/2024
CJ's Towing & Recovery LLC,Services,888.2,1/16/2024
CJ's Towing & Recovery LLC,Services,6729,2/9/2024
CJ's Towing & Recovery LLC,Services,1081.1,2/9/2024
CJ's Towing & Recovery LLC,Services,324.25,2/15/2024
CJ's Towing & Recovery LLC,Services,1627.7,3/5/2024
CJ's Towing & Recovery LLC,Services,662.15,3/5/2024
CJ's Towing & Recovery LLC,Services,482,3/12/2024
CJ's Towing & Recovery LLC,Services,112.6,3/12/2024
CJ's Towing & Recovery LLC,Services,816,3/14/2024
CJ's Towing & Recovery LLC,Services,326,3/15/2024
CJ's Towing & Recovery LLC,Services,1944.75,3/15/2024
CJ's Towing & Recovery LLC,Services,388.75,3/28/2024
Claeven  Ltd.,Materials,495.95,1/1/2024
Claeven  Ltd.,Services,495.95,1/5/2024
Claeven  Ltd.,Services,2338.05,1/5/2024
Claeven  Ltd.,Services,779.35,1/5/2024
Claeven  Ltd.,Services,4321.85,1/5/2024
Claeven  Ltd.,Services,782.89,1/10/2024
Claeven  Ltd.,Services,2621.45,1/11/2024
Claeven  Ltd.,Services,255.06,1/16/2024
Claeven  Ltd.,Services,495.95,1/16/2024
Claeven  Ltd.,Services,921.05,1/16/2024
Claeven  Ltd.,Services,779.35,1/17/2024
Claeven  Ltd.,Services,779.35,2/1/2024
Claeven  Ltd.,Services,1091.09,2/9/2024
Claeven  Ltd.,Services,1629.55,2/9/2024
Claeven  Ltd.,Services,921.05,2/9/2024
Claeven  Ltd.,Services,1275.3,2/9/2024
Claeven  Ltd.,Services,495.95,2/14/2024
Claeven  Ltd.,Services,1398.52,2/14/2024
Claeven  Ltd.,Services,495.95,2/15/2024
Claeven  Ltd.,Services,1062.75,2/15/2024
Claeven  Ltd.,Services,1246.89,2/20/2024
Claeven  Ltd.,Services,857.24,3/4/2024
Claeven  Ltd.,Services,68.66,3/4/2024
Claeven  Ltd.,Services,211.9,3/4/2024
Claeven  Ltd.,Services,389.65,3/5/2024
Claeven  Ltd.,Services,545.51,3/5/2024
Claeven  Ltd.,Services,857.24,3/15/2024
Claeven  Ltd.,Services,1558.61,3/15/2024
Claeven  Ltd.,Services,857.24,3/15/2024
Claeven  Ltd.,Services,857.24,3/18/2024
Claeven  Ltd.,Services,1293.65,3/18/2024
Claeven  Ltd.,Services,5766.86,3/20/2024
Claeven  Ltd.,Services,701.38,3/28/2024
Claeven  Ltd.,Services,857.23,3/28/2024
Claeven  Ltd.,Services,1246.89,3/28/2024
Claeven  Ltd.,Services,545.51,3/28/2024
Claeven  Ltd.,Services,545.51,3/28/2024
Clarity Partners  Llc,Services,2283.32,1/11/2024
Clarity Partners  Llc,Capital Purchases,8811.25,1/11/2024
Clarity Partners  Llc,Services,1752.83,2/2/2024
Clarity Partners  Llc,Capital Purchases,13370,2/2/2024
Clarity Partners  Llc,Capital Purchases,23450,2/20/2024
Clarity Partners  Llc,Services,8017.5,2/20/2024
Clarity Partners  Llc,Services,682.33,2/20/2024
Clarity Partners  Llc,Services,2121.1,2/20/2024
Clark Catering Inc,Services,3146.5,2/20/2024
Clark Catering Inc,Services,995,3/4/2024
Clark Catering Inc,Services,677.5,3/4/2024
Clark Catering Inc,Services,3494.5,3/4/2024
Clark Catering Inc,Services,373.3,3/5/2024
Clark Catering Inc,Services,3354.5,3/5/2024
Clark Industrial Power,Materials,2700,3/5/2024
Claybourne Miller,Services,41.92,1/17/2024
Cleaning Specialist  Inc.,Services,17531.68,1/10/2024
Cleaning Specialist  Inc.,Services,4905.68,2/14/2024
Cleaning Specialist  Inc.,Capital Purchases,4750,2/15/2024
Cleveland Punch & Die,Services,20.08,2/15/2024
Cleveland Punch & Die,Materials,51,2/15/2024
Clever Devices Ltd.,Services,719793,3/26/2024
"Clutch Solutions, LLC",Materials,3600,1/10/2024
"Clutch Solutions, LLC",Capital Purchases,103700,1/10/2024
"Clutch Solutions, LLC",Materials,1375.74,1/10/2024
"Clutch Solutions, LLC",Capital Purchases,53430.5,1/11/2024
"Clutch Solutions, LLC",Capital Purchases,2914.82,1/16/2024
"Clutch Solutions, LLC",Materials,3948.28,1/16/2024
"Clutch Solutions, LLC",Capital Purchases,10820.88,1/24/2024
"Clutch Solutions, LLC",Materials,9951.48,2/14/2024
"Clutch Solutions, LLC",Capital Purchases,65319.8,2/14/2024
"Clutch Solutions, LLC",Materials,7785.58,2/15/2024
"Clutch Solutions, LLC",Capital Purchases,5030.3,2/15/2024
"Clutch Solutions, LLC",Materials,4981.8,2/21/2024
"Clutch Solutions, LLC",Materials,5829.64,2/27/2024
"Clutch Solutions, LLC",Capital Purchases,28969.92,2/28/2024
"Clutch Solutions, LLC",Materials,11092.79,3/1/2024
"Clutch Solutions, LLC",Capital Purchases,9053.1,3/1/2024
"Clutch Solutions, LLC",Services,2674.25,3/1/2024
"Clutch Solutions, LLC",Capital Purchases,125898,3/11/2024
"Clutch Solutions, LLC",Capital Purchases,41470.9,3/14/2024
"Clutch Solutions, LLC",Capital Purchases,12968,3/18/2024
"Clutch Solutions, LLC",Capital Purchases,1950,3/18/2024
"Clutch Solutions, LLC",Materials,31747.2,3/19/2024
"Clutch Solutions, LLC",Materials,10811.44,3/25/2024
"Clutch Solutions, LLC",Capital Purchases,2914.82,3/26/2024
"Clutch Solutions, LLC",Materials,3892.79,3/26/2024
Cogent Communications Inc.,Utilities,1662.29,1/2/2024
Cogent Communications Inc.,Utilities,1662.29,1/9/2024
Cogent Communications Inc.,Utilities,1662.29,1/18/2024
Cogent Communications Inc.,Utilities,1663.55,2/14/2024
Cogent Communications Inc.,Utilities,3327.1,3/12/2024
Cohnreznick Llp,Services,29559.5,2/9/2024
Cohnreznick Llp,Services,5005,3/12/2024
Colleen F Ocon,Services,14.41,1/11/2024
Collins Engineers  Inc.,Capital Purchases,11000,1/2/2024
Columbia Pipe & Supply,Materials,2680.63,1/11/2024
Columbia Pipe & Supply,Materials,12435.82,1/12/2024
Columbia Pipe & Supply,Materials,1008.09,1/12/2024
Columbia Pipe & Supply,Materials,6887.47,1/18/2024
Columbia Pipe & Supply,Materials,216.19,1/26/2024
Columbia Pipe & Supply,Materials,5514.4,2/1/2024
Columbia Pipe & Supply,Materials,35.32,2/6/2024
Columbia Pipe & Supply,Materials,72.06,2/9/2024
Columbia Pipe & Supply,Materials,2423.4,2/15/2024
Columbia Pipe & Supply,Materials,992.48,2/15/2024
Columbia Pipe & Supply,Materials,9197.05,2/15/2024
Columbia Pipe & Supply,Materials,7095.45,2/20/2024
Columbia Pipe & Supply,Materials,1747.84,2/21/2024
Columbia Pipe & Supply,Materials,894.82,3/4/2024
Columbia Pipe & Supply,Materials,2060.12,3/4/2024
Columbia Pipe & Supply,Materials,1565.52,3/7/2024
Columbia Pipe & Supply,Materials,399.94,3/12/2024
Columbia Pipe & Supply,Materials,12438.79,3/26/2024
Comcast,Utilities,1490.14,1/11/2024
Comcast,Utilities,5283.23,1/11/2024
Comcast,Utilities,163.12,1/11/2024
Comcast,Utilities,189.59,1/30/2024
Comcast,Utilities,1509.94,2/7/2024
Comcast,Utilities,5353.41,2/7/2024
Comcast,Utilities,179.59,3/4/2024
Comcast,Utilities,5353.41,3/14/2024
Comcast,Utilities,1509.94,3/14/2024
Comcast Business,Utilities,43962.75,1/11/2024
Comcast Business,Utilities,29308.5,1/11/2024
Comcast Business,Utilities,29331.25,1/30/2024
Comcast Business,Utilities,43996.87,1/30/2024
Comcast Business,Utilities,44656.31,3/4/2024
Comcast Business,Utilities,29770.88,3/4/2024
Commercial Group Lifting Products,Services,330,1/12/2024
Commercial Group Lifting Products,Materials,3281.52,1/16/2024
Commercial Tire Service,Services,197,1/12/2024
Commercial Tire Service,Materials,856.3,1/12/2024
Commercial Tire Service,Services,96,2/12/2024
Commercial Tire Service,Materials,640.08,2/12/2024
Commercial Tire Service,Services,240,2/20/2024
Commercial Tire Service,Services,96,2/20/2024
Commercial Tire Service,Materials,1565.4,2/20/2024
Commercial Tire Service,Materials,347.44,2/20/2024
Commonwealth Edison,Utilities,126.85,1/2/2024
Commonwealth Edison,Utilities,263.65,1/2/2024
Commonwealth Edison,Utilities,94.93,1/2/2024
Commonwealth Edison,Utilities,186.54,1/4/2024
Commonwealth Edison,Utilities,302932.86,1/11/2024
Commonwealth Edison,Utilities,89.13,1/12/2024
Commonwealth Edison,Utilities,45.55,1/12/2024
Commonwealth Edison,Utilities,270.01,1/12/2024
Commonwealth Edison,Utilities,381.47,1/12/2024
Commonwealth Edison,Utilities,355.34,1/12/2024
Commonwealth Edison,Utilities,987.38,1/12/2024
Commonwealth Edison,Utilities,936.25,1/16/2024
Commonwealth Edison,Utilities,62.06,1/16/2024
Commonwealth Edison,Utilities,27.1,1/16/2024
Commonwealth Edison,Utilities,79.92,1/16/2024
Commonwealth Edison,Utilities,71.42,1/16/2024
Commonwealth Edison,Utilities,112.01,1/16/2024
Commonwealth Edison,Utilities,226.1,1/16/2024
Commonwealth Edison,Utilities,179.3,1/16/2024
Commonwealth Edison,Utilities,69.88,1/16/2024
Commonwealth Edison,Utilities,35.48,1/26/2024
Commonwealth Edison,Utilities,1425.61,1/26/2024
Commonwealth Edison,Utilities,560.92,1/26/2024
Commonwealth Edison,Utilities,25.35,1/26/2024
Commonwealth Edison,Utilities,480.67,1/26/2024
Commonwealth Edison,Utilities,3894.1,2/1/2024
Commonwealth Edison,Utilities,3550.41,2/1/2024
Commonwealth Edison,Utilities,300.86,2/1/2024
Commonwealth Edison,Utilities,28.98,2/1/2024
Commonwealth Edison,Utilities,51.52,2/1/2024
Commonwealth Edison,Utilities,254.43,2/1/2024
Commonwealth Edison,Utilities,282.35,2/1/2024
Commonwealth Edison,Utilities,375.16,2/9/2024
Commonwealth Edison,Utilities,801.58,2/9/2024
Commonwealth Edison,Utilities,1273.62,2/9/2024
Commonwealth Edison,Utilities,83.19,2/9/2024
Commonwealth Edison,Utilities,225.55,2/9/2024
Commonwealth Edison,Utilities,354.88,2/9/2024
Commonwealth Edison,Utilities,2253.43,2/9/2024
Commonwealth Edison,Utilities,25.33,2/9/2024
Commonwealth Edison,Utilities,84.32,2/9/2024
Commonwealth Edison,Utilities,404.49,2/9/2024
Commonwealth Edison,Utilities,921.46,2/9/2024
Commonwealth Edison,Utilities,25.02,2/9/2024
Commonwealth Edison,Utilities,74.24,2/9/2024
Commonwealth Edison,Utilities,389190.1,2/12/2024
Commonwealth Edison,Utilities,210.45,2/13/2024
Commonwealth Edison,Utilities,438.07,2/13/2024
Commonwealth Edison,Utilities,87.76,2/13/2024
Commonwealth Edison,Utilities,1809.44,2/27/2024
Commonwealth Edison,Utilities,731.23,2/27/2024
Commonwealth Edison,Utilities,25.37,2/27/2024
Commonwealth Edison,Utilities,35.4,2/27/2024
Commonwealth Edison,Utilities,687.95,2/27/2024
Commonwealth Edison,Utilities,25,2/27/2024
Commonwealth Edison,Utilities,142909.08,3/1/2024
Commonwealth Edison,Utilities,152509.06,3/1/2024
Commonwealth Edison,Utilities,166792.44,3/1/2024
Commonwealth Edison,Utilities,25.02,3/4/2024
Commonwealth Edison,Utilities,1381.77,3/4/2024
Commonwealth Edison,Utilities,3960.23,3/7/2024
Commonwealth Edison,Utilities,302.29,3/7/2024
Commonwealth Edison,Utilities,207.24,3/7/2024
Commonwealth Edison,Utilities,1760.85,3/7/2024
Commonwealth Edison,Utilities,98.94,3/7/2024
Commonwealth Edison,Utilities,377.99,3/18/2024
Commonwealth Edison,Utilities,339.52,3/18/2024
Commonwealth Edison,Utilities,1317.96,3/20/2024
Commonwealth Edison,Utilities,46.29,3/20/2024
Commonwealth Edison,Utilities,266.49,3/20/2024
Commonwealth Edison,Utilities,64.95,3/20/2024
Commonwealth Edison,Utilities,71.65,3/20/2024
Commonwealth Edison,Utilities,715.86,3/20/2024
Commonwealth Edison,Utilities,389.03,3/20/2024
Commonwealth Edison,Utilities,81.14,3/20/2024
Commonwealth Edison,Utilities,25.02,3/20/2024
Commonwealth Edison,Utilities,25.33,3/20/2024
Communications Direct Inc.,Capital Purchases,86250,2/13/2024
Commuter Rail Coalition,Services,31500,3/28/2024
"COMPIN, INC.",Materials,44.77,3/18/2024
Computer Aid  Inc.,Services,174129.6,1/10/2024
Computer Aid  Inc.,Services,184598.61,1/12/2024
Computer Aid  Inc.,Services,35043.31,1/24/2024
Computer Aid  Inc.,Services,217580.57,2/9/2024
Computer Aid  Inc.,Services,47900,3/4/2024
Computer Aid  Inc.,Services,187244.01,3/5/2024
Conklin & Conklin LLC,Claims & Insurance,2218.5,2/14/2024
Conklin & Conklin LLC,Claims & Insurance,12236.64,2/14/2024
Conklin & Conklin LLC,Claims & Insurance,2043,2/20/2024
Conklin & Conklin LLC,Claims & Insurance,81257,2/20/2024
Cook County Sheriffs Police Finance Dept. Rm 106,Services,260701.02,2/1/2024
Corey Brown,Services,172.92,1/12/2024
Corner Bakery,Services,65.5,2/15/2024
Corner Bakery,Services,675,2/15/2024
Corys Inc.,Services,7130,1/9/2024
Corys Inc.,Services,7130,2/14/2024
Corys Inc.,Services,14260,3/5/2024
Courtney Aubrecht,Services,76.77,1/11/2024
Courtney Aubrecht,Services,4.5,1/11/2024
Courtney Aubrecht,Services,27.59,2/22/2024
Courtney Aubrecht,Services,74.47,2/22/2024
Courtney Aubrecht,Services,842.16,2/22/2024
COVERT MEDIA CONSULTING LLC,Services,325,2/22/2024
"CPS Chicago Parking , LLC",,205035.69,2/20/2024
"CR Quality Services, Inc.",Capital Purchases,1032.62,3/28/2024
"CR Quality Services, Inc.",Capital Purchases,333.37,3/28/2024
Cranemasters Inc.,Services,1005,3/5/2024
Creative Safety Supply LLC,Materials,614.95,3/4/2024
Creative Safety Supply LLC,Services,14.48,3/4/2024
CRISTINA DIAZ MUNOZ,,16.14,3/27/2024
Critical Reach,Services,1395,3/19/2024
Crowe LLP,Capital Purchases,11738.14,2/14/2024
Crowe LLP,Services,2317.5,3/11/2024
Crowe LLP,Capital Purchases,32526.11,3/11/2024
Crowe LLP,Services,60375,3/12/2024
Crowe LLP,Services,347.32,3/12/2024
Crowe LLP,Capital Purchases,20231.79,3/14/2024
Crowe LLP,Capital Purchases,11796.08,3/14/2024
Crown Battery Mfg. Co.,Materials,2550,1/1/2024
Crown Battery Mfg. Co.,Materials,525,1/12/2024
Crown Battery Mfg. Co.,Materials,2550,2/14/2024
Crown Battery Mfg. Co.,Materials,218968,3/4/2024
Crown Battery Mfg. Co.,Materials,415,3/26/2024
Csx Transportation Inc.,Capital Purchases,466692.19,1/2/2024
Csx Transportation Inc.,Rental Expense,9506.09,2/1/2024
Csx Transportation Inc.,Capital Purchases,55309.89,2/8/2024
Cubic-Transportation Systems  Inc.,Services,327720.87,1/26/2024
Cubic-Transportation Systems  Inc.,Services,77647.49,1/26/2024
Cubic-Transportation Systems  Inc.,Services,309006.17,2/9/2024
Cubic-Transportation Systems  Inc.,Services,70038.74,2/9/2024
Cubic-Transportation Systems  Inc.,Services,316583.39,2/20/2024
Cubic-Transportation Systems  Inc.,Services,144654.74,2/20/2024
"Custom Glass Solutions Trumbauersville, LLC",Materials,372.6,1/8/2024
"Custom Glass Solutions Trumbauersville, LLC",Materials,6026.2,2/14/2024
"Custom Glass Solutions Trumbauersville, LLC",Materials,2610,2/20/2024
"Custom Glass Solutions Trumbauersville, LLC",Materials,704.4,2/23/2024
Cynthia Ochoa,Services,1261,1/2/2024
Dacra Adjudication Systems LLC dba Dacra Tech LLC,Services,2250,1/1/2024
Dacra Adjudication Systems LLC dba Dacra Tech LLC,Services,4500,2/1/2024
Dacra Adjudication Systems LLC dba Dacra Tech LLC,Services,2250,3/7/2024
DAIDA,Services,5861.51,3/19/2024
D'ANDRA STEPHENSON,Services,60.26,1/2/2024
D'ANDRA STEPHENSON,Services,61.64,1/23/2024
D'ANDRA STEPHENSON,Services,40.2,2/5/2024
D'ANDRA STEPHENSON,Services,40.2,3/28/2024
Danella Rental Systems Inc.,Rental Expense,6750,1/22/2024
Danella Rental Systems Inc.,Rental Expense,22701.5,1/22/2024
Danella Rental Systems Inc.,Rental Expense,33111.87,1/22/2024
Danella Rental Systems Inc.,Rental Expense,4144.66,2/9/2024
Danella Rental Systems Inc.,Rental Expense,369.39,2/9/2024
Danella Rental Systems Inc.,Rental Expense,30260,2/12/2024
Danella Rental Systems Inc.,Rental Expense,24246.72,2/12/2024
Danella Rental Systems Inc.,Rental Expense,6750,2/12/2024
Danella Rental Systems Inc.,Rental Expense,3510,3/26/2024
Danella Rental Systems Inc.,Rental Expense,22695,3/26/2024
Danella Rental Systems Inc.,Rental Expense,6750,3/27/2024
Danella Rental Systems Inc.,Rental Expense,19350,3/27/2024
Danella Rental Systems Inc.,Rental Expense,7565,3/27/2024
Daniel Heer,Services,141.44,3/12/2024
Daniel Heer,Services,8.5,3/12/2024
Daniel Hernandez,Services,131,1/2/2024
Daniel Ortega,Services,96.94,1/2/2024
Daniel Ortega,Services,132.74,1/23/2024
Daniel Ortega,Services,176.88,2/22/2024
Daniel Ortega,Services,105.86,3/14/2024
Daniel Ortega,Services,105.86,3/21/2024
Daniel Santiago,Services,261.3,1/23/2024
Daniel Vandermeer,Services,1700,1/4/2024
Daniel Vandermeer,Services,1785,1/9/2024
Daniel Vandermeer,Services,1530,2/9/2024
Daniel Vandermeer,Services,1020,3/8/2024
Danon Cameron,Services,40.2,1/12/2024
Danon Cameron,Services,61.64,1/22/2024
Danon Cameron,Services,13.4,1/22/2024
Danon Cameron,Services,40.2,1/30/2024
Danon Cameron,Services,40.2,2/8/2024
Danon Cameron,Services,16.08,2/15/2024
Danon Cameron,Services,61.64,2/23/2024
Danon Cameron,Services,16.08,2/23/2024
Danon Cameron,Services,40.2,2/27/2024
Danon Cameron,Services,40.2,3/5/2024
Danon Cameron,Services,40.2,3/14/2024
Danon Cameron,Services,40.2,3/26/2024
DARIEN STEELE,Services,134,2/20/2024
DARIEN STEELE,Services,49.58,3/18/2024
DARIEN STEELE,Services,99.16,3/18/2024
Darlynn Ball,Services,288.86,1/2/2024
Darlynn Ball,Services,251.52,1/12/2024
Darlynn Ball,Services,268,1/25/2024
Darlynn Ball,Services,264.65,2/8/2024
Darlynn Ball,Services,281.67,2/21/2024
Darlynn Ball,Services,263.98,3/14/2024
Darlynn Ball,Services,243.61,3/20/2024
Darnell Hart,Services,69.68,1/31/2024
Darnell Hart,Services,80.4,2/26/2024
Darnell Hart,Services,16.08,3/13/2024
David Booth,Services,75.98,1/11/2024
David Booth,Services,75.98,1/11/2024
David Booth,Services,75.98,1/17/2024
David Booth,Services,49.58,2/15/2024
David Booth,Services,38.86,2/15/2024
David Booth,Services,49.58,3/7/2024
David Booth,Services,38.86,3/7/2024
DAVID J KING,Services,14.74,2/7/2024
David J. Kralik,Services,118.5,2/13/2024
David J. Kralik,Services,230.74,2/13/2024
David J. Kralik,Services,93.48,2/13/2024
David L. McQueen,Services,96.94,1/2/2024
David Lee,Services,17.42,3/12/2024
David Lee,Services,563.52,3/12/2024
David Lee,Services,197.5,3/12/2024
David Lee,Services,525,3/13/2024
David M. Pedroza,Services,164.55,3/12/2024
Davis Bancorp,Services,1586,1/3/2024
Davis Bancorp,Services,788,1/3/2024
Davis Bancorp,Services,5255,1/3/2024
Davis Bancorp,Services,3214,1/3/2024
Davis Bancorp,Services,788,1/22/2024
Davis Bancorp,Services,5369,1/22/2024
Davis Bancorp,Services,1472,1/22/2024
Davis Bancorp,Services,114,1/22/2024
Davis Bancorp,Services,3100,1/22/2024
Davis Bancorp,Services,805,3/26/2024
Davis Bancorp,Services,1507,3/26/2024
Davis Bancorp,Services,117,3/26/2024
Davis Bancorp,Services,3267,3/26/2024
Davis Bancorp,Services,5363,3/26/2024
Davis Bancorp,Services,805,3/27/2024
Davis Bancorp,Services,5363,3/27/2024
Davis Bancorp,Services,3267,3/27/2024
Davis Bancorp,Services,1624,3/27/2024
"Davis Vision, Inc",Services,6980.8,1/5/2024
"Davis Vision, Inc",Services,6264.66,2/5/2024
"Davis Vision, Inc",Services,6235.06,3/4/2024
Dayton-Phoenix Group  Inc.,Services,13.97,3/22/2024
Dayton-Phoenix Group  Inc.,Materials,139,3/22/2024
Dayton-Phoenix Group  Inc.,Capital Purchases,153458.48,3/27/2024
DEANDRE NEELY,Services,55.02,1/17/2024
DEANDRE NEELY,Services,196.98,1/25/2024
DEANDRE NEELY,Services,28.14,2/21/2024
DEANDRE NEELY,Services,49.58,2/21/2024
DEANDRE NEELY,Services,112.56,3/12/2024
Dell Marketing  L.P.,Services,1062,1/3/2024
Dell Marketing  L.P.,Services,11091.17,1/4/2024
Delta Dental Plan Of Illinois,Services,74859.87,1/5/2024
Delta Dental Plan Of Illinois,Services,70587.82,2/5/2024
Delta Dental Plan Of Illinois,Services,57498.47,3/4/2024
Delta Industries Inc.,Services,1170.05,1/3/2024
Delta Industries Inc.,Services,559.29,1/8/2024
Delta Industries Inc.,Services,4446.24,1/8/2024
Delta Industries Inc.,Services,2909.39,2/1/2024
Delta Industries Inc.,Services,1698.21,2/21/2024
Delta Industries Inc.,Services,1003.39,3/11/2024
Delta Sonic Car Wash System Inc,Services,736,1/3/2024
Delta Sonic Car Wash System Inc,Services,626.75,1/22/2024
Delta Sonic Car Wash System Inc,Services,425.5,2/1/2024
Delta Sonic Car Wash System Inc,Services,782,3/11/2024
Delta Star Connector Co. C/O A Star Electric Co.,Services,115.06,2/21/2024
Delta Star Connector Co. C/O A Star Electric Co.,Materials,9961.9,2/21/2024
Demoulin Brothers & Co.,Services,22462.03,1/3/2024
Demoulin Brothers & Co.,Services,4132.98,1/3/2024
Demoulin Brothers & Co.,Services,40404.93,1/3/2024
Demoulin Brothers & Co.,Services,3412.11,1/3/2024
Demoulin Brothers & Co.,Services,3546.69,1/4/2024
Demoulin Brothers & Co.,Services,2811.05,1/4/2024
Demoulin Brothers & Co.,Services,8097.3,1/4/2024
Demoulin Brothers & Co.,Services,1494.31,1/4/2024
Demoulin Brothers & Co.,Services,3700.97,2/12/2024
Demoulin Brothers & Co.,Services,8088.06,2/12/2024
Demoulin Brothers & Co.,Services,2991.38,2/12/2024
Demoulin Brothers & Co.,Services,2015.86,2/12/2024
Demoulin Brothers & Co.,Services,1275.15,2/12/2024
Demoulin Brothers & Co.,Services,1700.5,2/20/2024
Demoulin Brothers & Co.,Services,1567.85,2/20/2024
Demoulin Brothers & Co.,Services,3199.18,3/6/2024
Demoulin Brothers & Co.,Services,1275.92,3/6/2024
Demoulin Brothers & Co.,Services,3257.38,3/6/2024
Demoulin Brothers & Co.,Services,9556.05,3/6/2024
Demoulin Brothers & Co.,Services,5176.58,3/27/2024
Denise  King,,1460,3/4/2024
Denzil Garcia,Services,40.2,1/25/2024
Dept Of Water Super Of Water Collections,Utilities,46.36,1/2/2024
Dept Of Water Super Of Water Collections,Utilities,86.89,1/2/2024
Dept Of Water Super Of Water Collections,Utilities,86.89,1/2/2024
Dept Of Water Super Of Water Collections,Utilities,18.12,1/2/2024
Dept Of Water Super Of Water Collections,Utilities,34.74,1/9/2024
Dept Of Water Super Of Water Collections,Utilities,11.62,1/9/2024
Dept Of Water Super Of Water Collections,Utilities,18.12,1/18/2024
Dept Of Water Super Of Water Collections,Utilities,3348.64,1/18/2024
Dept Of Water Super Of Water Collections,Utilities,46.36,1/18/2024
Dept Of Water Super Of Water Collections,Utilities,197.02,1/18/2024
Dept Of Water Super Of Water Collections,Utilities,11.62,1/18/2024
Dept Of Water Super Of Water Collections,Utilities,462.86,1/19/2024
Dept Of Water Super Of Water Collections,Utilities,5893.98,1/19/2024
Dept Of Water Super Of Water Collections,Utilities,3480.42,1/19/2024
Dept Of Water Super Of Water Collections,Utilities,226.92,1/29/2024
Dept Of Water Super Of Water Collections,Utilities,2741.26,1/29/2024
Dept Of Water Super Of Water Collections,Utilities,426.62,1/29/2024
Dept Of Water Super Of Water Collections,Utilities,99.82,1/29/2024
Dept Of Water Super Of Water Collections,Utilities,971.24,1/29/2024
Dept Of Water Super Of Water Collections,Utilities,944.02,1/30/2024
Dept Of Water Super Of Water Collections,Utilities,1784.4,1/30/2024
Dept Of Water Super Of Water Collections,Utilities,23.14,1/30/2024
Dept Of Water Super Of Water Collections,Utilities,92.66,2/8/2024
Dept Of Water Super Of Water Collections,Utilities,115.88,2/12/2024
Dept Of Water Super Of Water Collections,Utilities,18.12,2/12/2024
Dept Of Water Super Of Water Collections,Utilities,19,2/12/2024
Dept Of Water Super Of Water Collections,Utilities,3730.98,2/14/2024
Dept Of Water Super Of Water Collections,Utilities,706.84,2/14/2024
Dept Of Water Super Of Water Collections,Utilities,27.22,2/14/2024
Dept Of Water Super Of Water Collections,Utilities,475.08,2/14/2024
Dept Of Water Super Of Water Collections,Utilities,11.62,2/14/2024
Dept Of Water Super Of Water Collections,Utilities,127.42,2/14/2024
Dept Of Water Super Of Water Collections,Utilities,46.36,2/14/2024
Dept Of Water Super Of Water Collections,Utilities,339.5,2/14/2024
Dept Of Water Super Of Water Collections,Utilities,726.12,2/20/2024
Dept Of Water Super Of Water Collections,Utilities,9894.44,2/20/2024
Dept Of Water Super Of Water Collections,Utilities,18.12,2/22/2024
Dept Of Water Super Of Water Collections,Utilities,81.68,2/22/2024
Dept Of Water Super Of Water Collections,Utilities,254.14,2/22/2024
Dept Of Water Super Of Water Collections,Utilities,6671.52,2/22/2024
Dept Of Water Super Of Water Collections,Utilities,9.1,2/22/2024
Dept Of Water Super Of Water Collections,Utilities,1.62,2/22/2024
Dept Of Water Super Of Water Collections,Utilities,86.89,2/23/2024
Dept Of Water Super Of Water Collections,Utilities,1316.18,2/23/2024
Dept Of Water Super Of Water Collections,Utilities,81.14,2/23/2024
Dept Of Water Super Of Water Collections,Utilities,9.1,2/23/2024
Dept Of Water Super Of Water Collections,Utilities,86.89,2/23/2024
Dept Of Water Super Of Water Collections,Utilities,5037.7,2/27/2024
Dept Of Water Super Of Water Collections,Utilities,1098.28,2/28/2024
Dept Of Water Super Of Water Collections,Utilities,23.14,3/11/2024
Dept Of Water Super Of Water Collections,Utilities,3441.3,3/15/2024
Dept Of Water Super Of Water Collections,Utilities,46.36,3/15/2024
Dept Of Water Super Of Water Collections,Utilities,471.98,3/15/2024
Dept Of Water Super Of Water Collections,Utilities,741.62,3/15/2024
Dept Of Water Super Of Water Collections,Utilities,2700.34,3/19/2024
Dept Of Water Super Of Water Collections,Utilities,281.38,3/19/2024
Dept Of Water Super Of Water Collections,Utilities,5633.94,3/19/2024
Dept Of Water Super Of Water Collections,Utilities,3023.76,3/22/2024
Dept Of Water Super Of Water Collections,Utilities,9403.66,3/22/2024
Dept Of Water Super Of Water Collections,Utilities,762.44,3/22/2024
Dept Of Water Super Of Water Collections,Utilities,1334.3,3/22/2024
Dept Of Water Super Of Water Collections,Utilities,226.92,3/22/2024
Dept Of Water Super Of Water Collections,Utilities,9.1,3/22/2024
Dept Of Water Super Of Water Collections,Utilities,1166.84,3/22/2024
Dept Of Water Super Of Water Collections,Utilities,2444.88,3/28/2024
Derrick Forest,Services,124.45,1/2/2024
Derrick Forest,Services,145.41,1/17/2024
Derrick Forest,Services,11.52,1/30/2024
Derrick Forest,Services,49.58,2/15/2024
Derrick Forest,Services,99.16,2/15/2024
Derrick Forest,Services,49.58,3/13/2024
Derrick Forest,Services,10.72,3/14/2024
Derrick Forest,Services,10.99,3/26/2024
Derrick Forest,Services,127.3,3/26/2024
Design Group Signage Corp.,Materials,530.75,1/22/2024
Design Group Signage Corp.,Materials,743.05,2/1/2024
Design Group Signage Corp.,Materials,31500,2/12/2024
Design Group Signage Corp.,Capital Purchases,7981.76,2/12/2024
Design Group Signage Corp.,Capital Purchases,13111.76,3/15/2024
Design Group Signage Corp.,Capital Purchases,4798.8,3/27/2024
Deutz Power Center Great Lakes,Materials,1409.4,3/6/2024
Diesel Electrical Equipment  Inc.,Services,16412,2/12/2024
Diesel Electrical Equipment  Inc.,Services,11936,2/23/2024
Dillard Dabney,Services,52.78,2/1/2024
Dina Consulting & Design,Materials,536,1/22/2024
Dina Consulting & Design,Materials,285,1/22/2024
Ditch Witch Of Illinois,Services,4867.04,1/4/2024
Ditch Witch Of Illinois,Services,1599.64,1/18/2024
DIVERSITY TRAINING & CONSULTING INC,Services,2200,3/27/2024
Dominic Vella,Services,95.86,2/5/2024
"Door Systems Assa Abloy US, Inc.",Capital Purchases,0,1/22/2024
"Door Systems Assa Abloy US, Inc.",Capital Purchases,268906,1/22/2024
Doris Williams,Services,107.4,2/26/2024
"Drive Construction, Inc.",Services,58403.08,1/1/2024
"Drive Construction, Inc.",Materials,312.31,1/4/2024
"Drive Construction, Inc.",Services,23246.58,1/4/2024
"Drive Construction, Inc.",Services,22392.72,1/4/2024
"Drive Construction, Inc.",Services,21895.64,1/18/2024
"Drive Construction, Inc.",Services,25716.72,2/6/2024
"Drive Construction, Inc.",Services,57906,2/9/2024
"Drive Construction, Inc.",Services,21755.34,3/1/2024
"Drive Construction, Inc.",Materials,524.33,3/5/2024
"Drive Construction, Inc.",Services,25527.56,3/5/2024
"Drive Construction, Inc.",Services,115270.8,3/6/2024
Dun & Bradstreet  Inc.,Services,7478,3/1/2024
Dupage County Chiefs of Police Association,Services,275,1/17/2024
Dupage County Chiefs of Police Association,Services,275,3/19/2024
Dupage County Fire Chiefs' Assoc.,Services,50,1/17/2024
Dynamic Metals  LLC,Capital Purchases,55080,1/4/2024
Dynamic Metals  LLC,Capital Purchases,54580,1/18/2024
Dynamic Metals  LLC,Capital Purchases,33278,1/22/2024
Dynamic Metals  LLC,Materials,7748,2/1/2024
Dynamic Metals  LLC,Capital Purchases,20617,3/27/2024
Eddie Castillo,Services,99.04,1/9/2024
Edgar E. Alvarado,Services,155.44,3/26/2024
Edgar E. Alvarado,Services,28.14,3/26/2024
Edgar I. Jimenez,Services,2724,1/2/2024
Edgar I. Jimenez,Services,31.7,1/11/2024
Edgar I. Jimenez,Services,140.24,1/11/2024
Edgar I. Jimenez,Services,606.2,1/11/2024
Edgar I. Jimenez,Services,288,1/11/2024
Edgar I. Jimenez,Services,140.24,2/13/2024
Edgar I. Jimenez,Services,579.25,2/13/2024
Edgar I. Jimenez,Services,32.16,2/13/2024
Edgar I. Jimenez,Services,221.19,2/13/2024
Edgar I. Jimenez,Services,333,2/13/2024
Edgar I. Jimenez,Services,67.3,2/20/2024
Edgar I. Jimenez,Services,507.86,2/20/2024
Edgar I. Jimenez,Services,32.29,2/20/2024
Edgar I. Jimenez,Services,96.25,2/20/2024
Edgar I. Jimenez,Services,197.5,2/20/2024
Edgar I. Jimenez,Services,32.29,3/26/2024
Edgar I. Jimenez,Services,98.6,3/26/2024
Edgar I. Jimenez,Services,859.77,3/26/2024
Edgar I. Jimenez,Services,276.5,3/26/2024
Edgar Jimenez,Services,68.34,3/12/2024
Edna Flores,Services,38.93,3/20/2024
Eduardo Andrade  Jr.,Services,233.16,3/20/2024
Eduardo Andrade  Jr.,Services,42.88,3/20/2024
Edward R. Gower,Services,6215,2/6/2024
Edward R. Gower,Services,4290,3/14/2024
Elaine Davenport,Claims & Insurance,119.88,1/2/2024
Elcon  Inc.,Materials,2085,1/5/2024
Elcon  Inc.,Materials,1500,1/8/2024
Elcon  Inc.,Materials,2100,1/8/2024
Elcon  Inc.,Materials,295,1/12/2024
Elcon  Inc.,Materials,295,1/29/2024
Electric Motor Services  Inc.,Capital Purchases,5000,1/8/2024
Electric Motor Services  Inc.,Capital Purchases,129240,1/9/2024
Electric Motor Services  Inc.,Services,15295,1/29/2024
Electric Motor Services  Inc.,Capital Purchases,103560,2/1/2024
Electric Motor Services  Inc.,Capital Purchases,13720,2/2/2024
Electric Motor Services  Inc.,Capital Purchases,31090,2/20/2024
Electric Motor Services  Inc.,Capital Purchases,15000,2/27/2024
Electric Motor Services  Inc.,Capital Purchases,15000,3/1/2024
Electric Motor Services  Inc.,Capital Purchases,12325,3/5/2024
Electric Motor Services  Inc.,Capital Purchases,16600,3/6/2024
Electric Motor Services  Inc.,Capital Purchases,5200,3/13/2024
Electric Motor Services  Inc.,Capital Purchases,16825,3/26/2024
"Electro Wire a Division of EIS Intermediate Holdings, LLC DBA Genuine Cable Group, LLC",Capital Purchases,10776,1/8/2024
"Electro Wire a Division of EIS Intermediate Holdings, LLC DBA Genuine Cable Group, LLC",Materials,3240,1/8/2024
"Electro Wire a Division of EIS Intermediate Holdings, LLC DBA Genuine Cable Group, LLC",Capital Purchases,29440,2/20/2024
Elise Gluck,Services,615.54,3/13/2024
Elise Gluck,Services,241.5,3/13/2024
Elise Gluck,Services,94.72,3/13/2024
Engineered Plastics  Inc.,Capital Purchases,106148,2/8/2024
Engineered Plastics  Inc.,Materials,99200,2/8/2024
Engineered Plastics  Inc.,Capital Purchases,212436,2/12/2024
Engineered Plastics  Inc.,Materials,45396,2/27/2024
Engineered Plastics  Inc.,Capital Purchases,240380,3/21/2024
Enviroplus  Inc.,Services,3353,3/1/2024
EnviroServe Inc.,Services,4278.28,1/9/2024
EnviroServe Inc.,Services,31346.06,1/29/2024
EnviroServe Inc.,Services,22779.66,2/1/2024
EnviroServe Inc.,Services,10249.42,2/27/2024
EnviroServe Inc.,Services,11373.9,3/7/2024
EnviroServe Inc.,Services,2317.5,3/7/2024
EnviroServe Inc.,Services,12440.69,3/7/2024
EnviroServe Inc.,Services,528.3,3/7/2024
EnviroServe Inc.,Services,9033.59,3/27/2024
Equity Industrial Supply  Inc.,Materials,234,1/9/2024
Equity Industrial Supply  Inc.,Materials,341.25,2/20/2024
Eriberto Caneda,Services,734.5,1/9/2024
Eriberto Caneda,Services,791,1/12/2024
Eriberto Caneda,Services,113,2/1/2024
Eric Aspenson,Services,76.38,2/5/2024
Eric Aspenson,Services,432.75,2/5/2024
Eric Aspenson,Services,259,2/5/2024
Eric Aspenson,Services,222.98,2/5/2024
Eric Aspenson,Services,186.85,2/5/2024
Eric Aspenson,Services,114.99,2/5/2024
Eric Aspenson,Services,295.07,3/12/2024
Eric Aspenson,Services,102.99,3/12/2024
Eric Aspenson,Services,93.76,3/12/2024
Eric Aspenson,Services,206.5,3/12/2024
Eric Aspenson,Services,76.38,3/12/2024
Eric Aspenson,Services,859.77,3/12/2024
Eric Golden,Services,145.41,1/2/2024
Eric Golden,Services,48.47,1/2/2024
Eric Golden,Services,158.51,1/18/2024
Eric Golden,Services,99.16,1/22/2024
Eric Golden,Services,148.74,3/13/2024
Eric Hargett,Services,40.2,2/13/2024
Eric Hargett,Services,87.1,2/13/2024
Eric Jagiela,Services,75.98,1/2/2024
Eric Keyes  Jr.,Services,448.5,2/26/2024
Eric Keyes  Jr.,Services,244.6,2/26/2024
Eric Keyes  Jr.,Services,271.03,2/26/2024
Eric Keyes  Jr.,Services,248.18,2/26/2024
Eric Keyes  Jr.,Services,10,2/26/2024
ESRI  Inc.,Services,21922.4,1/29/2024
Evergreen Supply Co.,Materials,700,2/1/2024
Evergreen Supply Co.,Materials,115,2/20/2024
Exp Us Services  Inc.,Capital Purchases,34876.75,2/7/2024
F. H. Paschen &  S. N. Nielson & Associates LLC,Capital Purchases,262620,2/20/2024
Fabricacion Asientos Vehiculos Industriales S.A. DBA Fainsa,Capital Purchases,77711.1,1/3/2024
Fabricacion Asientos Vehiculos Industriales S.A. DBA Fainsa,Capital Purchases,77711.1,1/10/2024
Fabricacion Asientos Vehiculos Industriales S.A. DBA Fainsa,Capital Purchases,77711.1,1/30/2024
Fabricacion Asientos Vehiculos Industriales S.A. DBA Fainsa,Capital Purchases,77711.1,2/1/2024
Fabricacion Asientos Vehiculos Industriales S.A. DBA Fainsa,Capital Purchases,155422.2,2/1/2024
Fabricacion Asientos Vehiculos Industriales S.A. DBA Fainsa,Capital Purchases,147129,3/7/2024
Fabricacion Asientos Vehiculos Industriales S.A. DBA Fainsa,Capital Purchases,72182.3,3/7/2024
Fabricacion Asientos Vehiculos Industriales S.A. DBA Fainsa,Capital Purchases,72182.3,3/26/2024
Fastenal Co.,Services,600,1/3/2024
Fastenal Co.,Materials,540.4,1/5/2024
Fastenal Co.,Services,240,1/5/2024
Fastenal Co.,Materials,11851.89,1/8/2024
Fastenal Co.,Materials,50,1/10/2024
Fastenal Co.,Materials,140.42,1/18/2024
Fastenal Co.,Materials,403.88,1/18/2024
Fastenal Co.,Materials,2694.38,1/22/2024
Fastenal Co.,Services,800,1/22/2024
Fastenal Co.,Materials,252.08,1/22/2024
Fastenal Co.,Materials,3823.81,1/22/2024
Fastenal Co.,Materials,936.99,1/22/2024
Fastenal Co.,Materials,4041.32,1/29/2024
Fastenal Co.,Materials,1749.93,1/30/2024
Fastenal Co.,Materials,13699.69,2/1/2024
Fastenal Co.,Materials,1214.87,2/1/2024
Fastenal Co.,Materials,140.42,2/1/2024
Fastenal Co.,Materials,3069.94,2/2/2024
Fastenal Co.,Services,600,2/2/2024
Fastenal Co.,Materials,50,2/7/2024
Fastenal Co.,Materials,2016.25,2/7/2024
Fastenal Co.,Materials,4698.07,2/8/2024
Fastenal Co.,Materials,5079.01,2/8/2024
Fastenal Co.,Materials,1323.91,2/12/2024
Fastenal Co.,Materials,12189.29,2/12/2024
Fastenal Co.,Services,840.53,2/12/2024
Fastenal Co.,Services,3044.97,2/13/2024
Fastenal Co.,Materials,50,2/15/2024
Fastenal Co.,Materials,297.16,2/20/2024
Fastenal Co.,Materials,3084.71,2/20/2024
Fastenal Co.,Materials,4003.8,2/23/2024
Fastenal Co.,Services,769.22,2/23/2024
Fastenal Co.,Materials,3406.37,3/7/2024
Fastenal Co.,Materials,8656.77,3/7/2024
Fastenal Co.,Materials,50,3/14/2024
Fastenal Co.,Materials,744,3/18/2024
Fastenal Co.,Materials,6087.4,3/20/2024
Fastenal Co.,Services,401.85,3/20/2024
Fastenal Co.,Materials,8886.75,3/27/2024
Fastenal Co.,Materials,4206.9,3/27/2024
Favian Ochoa,Services,246.7,3/12/2024
Federal Express Corp.,Services,4972.14,1/3/2024
Federal Express Corp.,Services,592.68,1/18/2024
Federal Express Corp.,Services,1070.14,1/29/2024
Federal Express Corp.,Services,698.08,2/1/2024
Federal Express Corp.,Services,301.16,2/26/2024
Federal Express Corp.,Services,1300.67,2/28/2024
Federal Express Corp.,Services,4103.09,3/12/2024
Federal Express Corp.,Services,3567.44,3/19/2024
Federal Express Corp.,Services,1690.42,3/19/2024
Federal Express Corp.,Services,2133.3,3/21/2024
FEDERAL TRANSIT AUTHORITY,,21076,1/23/2024
Fibergrate Composite Structures Inc,Materials,46400,1/11/2024
"FilterBuy, Inc",Materials,16298.52,1/5/2024
"FilterBuy, Inc",Materials,15811.2,2/1/2024
"FilterBuy, Inc",Materials,9223.2,2/15/2024
"FilterBuy, Inc",Materials,2635.2,2/22/2024
"FilterBuy, Inc",Materials,15811.2,3/27/2024
Fis,Services,1753.09,1/3/2024
Fis,Services,1515.49,1/29/2024
Fis,Services,151.48,2/20/2024
FISSION CUBE 555 LLC,Services,1000,3/19/2024
Flawtech America LLC,Materials,5423,1/29/2024
Flawtech America LLC,Services,60,1/29/2024
Fletcher & Sippel  Llc,Claims & Insurance,146515.59,2/1/2024
Fletcher & Sippel  Llc,Services,3141.4,2/1/2024
Fletcher & Sippel  Llc,Claims & Insurance,8299.2,3/12/2024
Foley & Lardner LLP Three First National Plaza,Services,4543,1/29/2024
"Ford & Britton, PC",Services,3767.5,2/13/2024
"Ford & Britton, PC",Services,3025,2/22/2024
Francis Mascarenhas,Services,331.46,1/23/2024
Francis Mascarenhas,Services,147.5,1/23/2024
Francis Mascarenhas,Services,173.4,2/1/2024
Francis Mascarenhas,Services,486.42,2/1/2024
Francis Mascarenhas,Services,197.5,2/1/2024
"Frank Ralphs, Inc.",Capital Purchases,22586.6,2/1/2024
"Frank Ralphs, Inc.",Capital Purchases,41834,3/6/2024
Fraser Stamp & Seal Co.,Services,411.6,1/5/2024
Fraser Stamp & Seal Co.,Services,10.8,1/12/2024
Fraser Stamp & Seal Co.,Services,301.1,2/12/2024
Fraser Stamp & Seal Co.,Services,10.8,2/20/2024
Fraser Stamp & Seal Co.,Services,281.05,2/23/2024
Fraser Stamp & Seal Co.,Services,59.3,3/7/2024
Fraser Stamp & Seal Co.,Services,280.2,3/11/2024
Fraser Stamp & Seal Co.,Services,47.4,3/15/2024
FREDRICK JONES,Services,452,1/9/2024
FSS TECHNOLOGIES LLC,Services,516,2/22/2024
Fullife Safety Center,Services,196,1/12/2024
Fullife Safety Center,Services,196,3/14/2024
Fyre Marketing LLC,Materials,943.76,1/5/2024
Fyre Marketing LLC,Services,2206.5,2/1/2024
Fyre Marketing LLC,Services,119.98,2/1/2024
Fyre Marketing LLC,Services,7621.76,2/13/2024
Fyre Marketing LLC,Materials,8600,3/6/2024
Fyre Marketing LLC,Services,8480,3/14/2024
G & O Thermal Supply,Materials,171.44,1/1/2024
G & O Thermal Supply,Materials,428.6,2/5/2024
G & O Thermal Supply,Materials,514.32,2/7/2024
G & O Thermal Supply,Materials,257.16,2/14/2024
G & O Thermal Supply,Materials,171.44,3/25/2024
G & O Thermal Supply,Materials,17616.48,3/25/2024
"G.E. Riddiford Company, Inc. dba Riddiford Roofing Company",Capital Purchases,119854.11,2/1/2024
GABRIEL MEDINA,Services,130.87,1/17/2024
GABRIEL MEDINA,Services,89.24,2/2/2024
Galco Industrial Electronics Inc.,Materials,2554.92,2/5/2024
Galco Industrial Electronics Inc.,Materials,1277.46,2/7/2024
"Gallagher Bassett Services, Inc.",Services,358916,1/3/2024
"Gallagher Bassett Services, Inc.",Services,89729,1/8/2024
"Gallagher Bassett Services, Inc.",Services,89729,2/5/2024
"Gallagher Bassett Services, Inc.",Services,5205,2/22/2024
"Gallagher Bassett Services, Inc.",Services,8229,2/27/2024
"Gallagher Bassett Services, Inc.",Services,89729,3/11/2024
"Gallagher Bassett Services, Inc.",Services,872,3/27/2024
Garveys Office Products,Materials,2806.25,1/1/2024
Garveys Office Products,Materials,2744.5,1/4/2024
Garveys Office Products,Materials,1996,1/8/2024
Garveys Office Products,Capital Purchases,73147.14,1/24/2024
Garveys Office Products,Materials,2250.75,1/25/2024
Garveys Office Products,Capital Purchases,24071.44,2/5/2024
Garveys Office Products,Materials,1099.9,2/7/2024
Garveys Office Products,Materials,748.5,2/8/2024
Garveys Office Products,Capital Purchases,5655.2,3/6/2024
Garveys Office Products,Materials,998,3/14/2024
Garveys Office Products,Capital Purchases,21279.6,3/18/2024
Garveys Office Products,Capital Purchases,4902.18,3/18/2024
Garveys Office Products,Materials,1762.2,3/18/2024
Garveys Office Products,Capital Purchases,5624.49,3/25/2024
Garveys Office Products,Materials,1996,3/27/2024
Garveys Office Products,Materials,998,3/28/2024
GDS,Capital Purchases,49680,2/1/2024
GDS,Capital Purchases,74520,3/1/2024
Genaro Morales  Jr.,Services,61.64,3/20/2024
Genfare  A Division Of Spx Corp,Materials,925,3/1/2024
GEOFF MUELLER,,12.9,2/5/2024
Geoffrey  L. Lacina,Services,286.33,2/6/2024
Geoffrey  L. Lacina,Services,872,3/28/2024
Gerber Glass Chicago,Services,1070,1/11/2024
Gerber Glass Chicago,Services,75,1/11/2024
Gerber Glass Chicago,Materials,831.25,2/5/2024
Gerber Glass Chicago,Services,391.06,2/5/2024
Gerber Glass Chicago,Materials,1040.92,2/5/2024
Gerber Glass Chicago,Services,588.11,2/23/2024
Gerber Glass Chicago,Services,348.52,2/28/2024
Gerber Glass Chicago,Services,75,3/22/2024
Gerber Glass Chicago,Services,1154.88,3/22/2024
Germaine Jackson,Services,131,1/12/2024
Germaine Jackson,Services,62.98,2/14/2024
Germaine Jackson,Services,49.58,3/19/2024
"GFL Environmental Services USA, Inc.",Services,25,1/18/2024
"GFL Environmental Services USA, Inc.",Services,25,3/28/2024
"GIS Cloud, Inc.",Services,800,1/18/2024
Giselle Chavez,Services,48.47,1/22/2024
Giselle Chavez,Services,145.41,1/22/2024
Giselle Chavez,Services,127.3,2/15/2024
Giselle Chavez,Services,127.3,3/12/2024
"Gist Entities, LLC dba ARCpoint Labs of Orland Park",Services,16150,2/5/2024
"Gist Entities, LLC dba ARCpoint Labs of Orland Park",Services,15960,2/16/2024
"Gist Entities, LLC dba ARCpoint Labs of Orland Park",Services,18855.54,3/14/2024
Glass America,Services,2244,3/6/2024
Glass America,Services,606.5,3/18/2024
Global Display Solutions  Inc.,Capital Purchases,56250,1/1/2024
Global Display Solutions  Inc.,Capital Purchases,19923,1/4/2024
Global Display Solutions  Inc.,Capital Purchases,172666,2/21/2024
Global Display Solutions  Inc.,Services,33205,2/21/2024
Global Display Solutions  Inc.,Capital Purchases,5280,2/23/2024
Global Display Solutions  Inc.,Capital Purchases,159384,3/28/2024
Global Display Solutions  Inc.,Services,15938.4,3/28/2024
Global Industrial Equipment,Materials,4736.36,1/1/2024
Global Industrial Equipment,Materials,402,1/2/2024
Global Industrial Equipment,Materials,1368.54,2/1/2024
Global Industrial Equipment,Materials,147.14,2/5/2024
Global Industrial Equipment,Materials,676.45,2/5/2024
Global Industrial Equipment,Materials,1713.84,2/20/2024
Global Industrial Equipment,Materials,2369.5,2/28/2024
Global Industrial Equipment,Materials,4408,3/1/2024
Global Industrial Equipment,Services,397.9,3/1/2024
Global Industrial Equipment,Services,795.8,3/1/2024
Global Industrial Equipment,Materials,2204,3/1/2024
Global Industrial Equipment,Materials,3602.28,3/6/2024
Global Industrial Equipment,Materials,287.5,3/25/2024
"Global Knowledge Training, LLC",Services,4335,3/27/2024
Global Vision Eyewear,Materials,1284,1/2/2024
Global Vision Eyewear,Materials,224,1/3/2024
Global Vision Eyewear,Materials,222,1/9/2024
Global Vision Eyewear,Materials,88,2/8/2024
Global Vision Eyewear,Materials,441,2/14/2024
Global Vision Eyewear,Materials,702.5,2/20/2024
Global Vision Eyewear,Materials,429,2/21/2024
Global Vision Eyewear,Materials,459,2/23/2024
Global Vision Eyewear,Materials,1217.5,3/13/2024
Global Vision Eyewear,Materials,336,3/21/2024
GME Supply Company,Materials,8000,2/21/2024
GME Supply Company,Services,0,2/21/2024
"GNB Industrial Power, Div. of Stryten Energy LLC",Capital Purchases,131941.2,1/1/2024
Government Finance Officers Assc.,Services,315,2/7/2024
Government Finance Officers Assc.,Services,180,2/27/2024
GovHR USA,Services,10545.45,1/11/2024
GovHR USA,Services,8200,1/11/2024
Grainger,Materials,746.38,1/1/2024
Grainger,Materials,1625.37,1/1/2024
Grainger,Services,139,1/1/2024
Grainger,Materials,1234.08,1/1/2024
Grainger,Materials,2196.2,1/1/2024
Grainger,Materials,1658.8,1/1/2024
Grainger,Materials,47.46,1/3/2024
Grainger,Materials,254.56,1/4/2024
Grainger,Materials,2435.6,1/8/2024
Grainger,Services,149,1/8/2024
Grainger,Materials,168.36,1/8/2024
Grainger,Materials,295.55,1/8/2024
Grainger,Materials,7600.32,1/8/2024
Grainger,Materials,839.72,1/8/2024
Grainger,Materials,4411.54,1/8/2024
Grainger,Materials,537.91,1/8/2024
Grainger,Materials,2168.81,1/9/2024
Grainger,Services,278,1/9/2024
Grainger,Materials,284.22,1/9/2024
Grainger,Materials,2874,1/9/2024
Grainger,Materials,740.8,1/9/2024
Grainger,Materials,1059.01,1/9/2024
Grainger,Materials,1613.14,1/11/2024
Grainger,Materials,1498.82,1/11/2024
Grainger,Materials,965.53,1/11/2024
Grainger,Services,87.95,1/11/2024
Grainger,Materials,2113.64,1/11/2024
Grainger,Materials,40.02,1/11/2024
Grainger,Materials,484.63,1/11/2024
Grainger,Materials,551.93,1/12/2024
Grainger,Materials,887.5,1/12/2024
Grainger,Services,149,1/12/2024
Grainger,Materials,883.35,1/12/2024
Grainger,Materials,3289.12,1/12/2024
Grainger,Materials,345.04,1/12/2024
Grainger,Services,61.05,1/18/2024
Grainger,Materials,2307.48,1/18/2024
Grainger,Materials,330.3,1/18/2024
Grainger,Materials,666.2,1/25/2024
Grainger,Materials,1306.6,1/25/2024
Grainger,Materials,455.33,1/25/2024
Grainger,Materials,23.4,1/25/2024
Grainger,Materials,1421.45,1/25/2024
Grainger,Materials,448.65,2/1/2024
Grainger,Materials,112.64,2/1/2024
Grainger,Materials,295.42,2/6/2024
Grainger,Materials,27.68,2/6/2024
Grainger,Materials,624,2/6/2024
Grainger,Materials,1778.64,2/7/2024
Grainger,Materials,399.96,2/7/2024
Grainger,Materials,2380.64,2/7/2024
Grainger,Materials,7718.05,2/7/2024
Grainger,Materials,379.31,2/7/2024
Grainger,Materials,709.98,2/7/2024
Grainger,Materials,6179.94,2/7/2024
Grainger,Materials,71,2/7/2024
Grainger,Materials,2202.47,2/8/2024
Grainger,Services,2596.69,2/12/2024
Grainger,Materials,280.48,2/12/2024
Grainger,Materials,1243.8,2/12/2024
Grainger,Materials,6149.41,2/12/2024
Grainger,Materials,327.6,2/12/2024
Grainger,Materials,56.94,2/13/2024
Grainger,Materials,468.62,2/13/2024
Grainger,Services,8.87,2/13/2024
Grainger,Materials,346.24,2/20/2024
Grainger,Materials,3600.55,2/21/2024
Grainger,Materials,637.54,2/21/2024
Grainger,Materials,2261.3,2/21/2024
Grainger,Materials,1350.14,2/21/2024
Grainger,Materials,533,2/21/2024
Grainger,Materials,164.95,2/22/2024
Grainger,Materials,8637.13,2/22/2024
Grainger,Services,149,2/22/2024
Grainger,Materials,588.64,2/27/2024
Grainger,Materials,1176.82,2/27/2024
Grainger,Materials,2349.21,2/27/2024
Grainger,Materials,671.8,2/27/2024
Grainger,Services,139,2/27/2024
Grainger,Materials,4208.58,2/27/2024
Grainger,Materials,3644.09,3/1/2024
Grainger,Services,149,3/1/2024
Grainger,Services,149,3/1/2024
Grainger,Materials,1193.92,3/1/2024
Grainger,Materials,861.97,3/1/2024
Grainger,Materials,2603.76,3/1/2024
Grainger,Services,149,3/1/2024
Grainger,Services,157.89,3/1/2024
Grainger,Materials,253.49,3/1/2024
Grainger,Materials,317.49,3/1/2024
Grainger,Materials,453.53,3/1/2024
Grainger,Materials,1378.62,3/1/2024
Grainger,Materials,3618,3/1/2024
Grainger,Materials,5134.8,3/1/2024
Grainger,Materials,947.28,3/1/2024
Grainger,Materials,2603.76,3/1/2024
Grainger,Services,149,3/1/2024
Grainger,Services,25,3/1/2024
Graphic Arts Studio,Services,18369.33,2/8/2024
Graphic Arts Studio,Services,11346.04,2/13/2024
Graphic Products  Inc.,Materials,1795,2/5/2024
Graybar Electric Co.  Inc.,Materials,11169.37,2/21/2024
Graymills Corp.,Services,60.52,1/11/2024
Graymills Corp.,Materials,2424,1/11/2024
Great Realty Advisors  Inc.,Services,1000,2/20/2024
Great Realty Advisors  Inc.,Services,1000,3/20/2024
Greater Cook County Council Of Police Chiefs,Services,50,1/23/2024
Greenbrier Rail Services,Materials,2589,2/8/2024
Gregory Godfrey,Services,159.23,1/11/2024
Gregory Godfrey,Services,17,3/20/2024
Gregory Godfrey,Services,192.87,3/20/2024
"GSG-Material Testing, Inc. DBA The HOH Group, Inc.",Capital Purchases,32045.47,2/1/2024
"GSG-Material Testing, Inc. DBA The HOH Group, Inc.",Capital Purchases,34085.71,2/1/2024
Guadalupe Franco,Services,13.31,1/22/2024
H W Lochner  Inc.,Capital Purchases,97825.54,1/22/2024
"Hadady, LLC",Materials,560,2/7/2024
Harkamel Mann,Services,49.9,1/25/2024
Harlan Weivoda,Services,25.46,1/11/2024
Harlan Weivoda,Services,24.12,1/23/2024
Harlan Weivoda,Services,25.46,2/15/2024
Harlan Weivoda,Services,25.46,3/7/2024
Harris Ice Co.  Inc.,Materials,200,1/18/2024
Harris Ice Co.  Inc.,Materials,178,2/1/2024
Harsco Rail LLC,Materials,213.64,1/1/2024
Harsco Rail LLC,Materials,6168.95,1/23/2024
Harsco Rail LLC,Materials,959.97,2/1/2024
Harsco Rail LLC,Materials,1979.5,2/2/2024
Harsco Rail LLC,Materials,616.2,2/5/2024
Harsco Rail LLC,Materials,2521.44,2/7/2024
Harsco Rail LLC,Materials,692.25,2/15/2024
Harsco Rail LLC,Materials,367.1,2/20/2024
Harsco Rail LLC,Materials,8161.35,2/20/2024
Harsco Rail LLC,Materials,1379.16,2/23/2024
Harsco Rail LLC,Materials,39636.12,2/28/2024
Harsco Rail LLC,Materials,517.86,3/1/2024
Harsco Rail LLC,Materials,11.88,3/5/2024
Harsco Rail LLC,Materials,44.16,3/5/2024
Harsco Rail LLC,Materials,9880.78,3/14/2024
Harsco Rail LLC,Materials,1722.44,3/14/2024
Harsco Rail LLC,Materials,40332.54,3/15/2024
Harsco Rail LLC,Materials,4745.01,3/19/2024
Harsco Rail LLC,Materials,1685.64,3/25/2024
Harsco Rail LLC,Materials,4408.5,3/25/2024
Harsco Rail LLC,Materials,247.76,3/26/2024
"Hatch Associates Consultants, Inc.",Capital Purchases,112161.52,1/1/2024
"Hatch Associates Consultants, Inc.",Capital Purchases,4919.14,1/12/2024
"Hatch Associates Consultants, Inc.",Services,55067.08,1/22/2024
"Hatch Associates Consultants, Inc.",Capital Purchases,11555.13,1/25/2024
"Hatch Associates Consultants, Inc.",Capital Purchases,56555.48,1/25/2024
"Hatch Associates Consultants, Inc.",Capital Purchases,60327.88,1/26/2024
"Hatch Associates Consultants, Inc.",Capital Purchases,13427.12,2/1/2024
"Hatch Associates Consultants, Inc.",Capital Purchases,56912.4,2/9/2024
"Hatch Associates Consultants, Inc.",Capital Purchases,11204.14,2/13/2024
"Hatch Associates Consultants, Inc.",Services,43965.16,2/21/2024
"Hatch Associates Consultants, Inc.",Capital Purchases,303316.88,2/21/2024
"Hatch Associates Consultants, Inc.",Capital Purchases,140201.9,2/23/2024
"Hatch Associates Consultants, Inc.",Capital Purchases,11385.99,3/14/2024
"Hatch Associates Consultants, Inc.",Capital Purchases,118679.22,3/14/2024
"Hatch Associates Consultants, Inc.",Capital Purchases,73072.86,3/21/2024
"Hatch Associates Consultants, Inc.",Services,20092.29,3/21/2024
"Hatch Associates Consultants, Inc.",Capital Purchases,22561.1,3/27/2024
Haysite Reinforced Plastics  LLC,Capital Purchases,77405.04,1/1/2024
Haysite Reinforced Plastics  LLC,Capital Purchases,77405.04,2/5/2024
Haysite Reinforced Plastics  LLC,Capital Purchases,100178.62,3/15/2024
Hdr Engineering  Inc.,Capital Purchases,95063.83,1/4/2024
Hdr Engineering  Inc.,Capital Purchases,77210.33,2/13/2024
Hdr Engineering  Inc.,Capital Purchases,156448.06,3/5/2024
Hector Becerra,Services,53.59,3/14/2024
Hector Escalante Jr.,Services,182.48,1/12/2024
Hector Escalante Jr.,Services,220.03,2/8/2024
Hector Escalante Jr.,Services,245.89,3/5/2024
Helsel-Jepperson Electrical Inc.,Materials,1860,1/23/2024
Helsel-Jepperson Electrical Inc.,Materials,7130,3/8/2024
"Herzog Services, Inc.",Services,9119.12,2/27/2024
Hilary E. Konczal,Services,66,1/4/2024
Hilary E. Konczal,Services,118.5,1/4/2024
Hilary E. Konczal,Services,68.34,1/4/2024
Hilary E. Konczal,Services,124.36,3/14/2024
Hilary E. Konczal,Services,288,3/14/2024
Hilary E. Konczal,Services,29.28,3/19/2024
Hilary E. Konczal,Services,310.5,3/19/2024
Hinshaw & Culbertson,Claims & Insurance,587.45,1/12/2024
Hinshaw & Culbertson,Services,351,1/12/2024
Hinshaw & Culbertson,Services,117,2/22/2024
Hinshaw & Culbertson,Claims & Insurance,1174.9,2/27/2024
Hirewell Inc.,Services,17000,1/10/2024
Hirewell Inc.,Services,17000,2/7/2024
Hirewell Inc.,Services,32823.75,3/21/2024
Hispanic America Construction Industry Association (HACIA),Services,2000,2/29/2024
"Hitachi Rail STS USA, Inc.",Capital Purchases,12911.46,1/26/2024
"Hitachi Rail STS USA, Inc.",Capital Purchases,2063.4,2/2/2024
"Hitachi Rail STS USA, Inc.",Capital Purchases,85484.36,2/7/2024
"Hitachi Rail STS USA, Inc.",Capital Purchases,62822.98,2/7/2024
"Hitachi Rail STS USA, Inc.",Materials,9692,2/7/2024
"Hitachi Rail STS USA, Inc.",Capital Purchases,188084.41,2/7/2024
"Hitachi Rail STS USA, Inc.",Capital Purchases,78283.97,2/16/2024
"Hitachi Rail STS USA, Inc.",Capital Purchases,113979.15,2/16/2024
"Hitachi Rail STS USA, Inc.",Capital Purchases,12041.63,3/1/2024
"Hitachi Rail STS USA, Inc.",Capital Purchases,7605.24,3/5/2024
"Hitachi Rail STS USA, Inc.",Capital Purchases,90070.5,3/14/2024
"Hitachi Rail STS USA, Inc.",Capital Purchases,36028.2,3/25/2024
HNTB Corp.,Services,144814,1/1/2024
HNTB Corp.,Services,39366.25,1/22/2024
Holland & Knight Llp,Services,25000,3/7/2024
Holland L.P.,Services,38500,1/18/2024
Holland L.P.,Services,26950,1/18/2024
Holland L.P.,Services,42762.5,1/18/2024
Holland L.P.,Services,22412.5,1/18/2024
Holland L.P.,Services,11550,2/21/2024
Home Depot,Services,1040.9,1/1/2024
Home Depot,Services,2565.33,1/2/2024
Home Depot,Materials,124.25,1/11/2024
Home Depot,Services,0,1/11/2024
Home Depot,Materials,397,2/15/2024
"Home Depot U.S.A., Inc. DBA The Home Depot Pro",Materials,4499.9,2/1/2024
"Home Depot U.S.A., Inc. DBA The Home Depot Pro",Services,55,2/1/2024
Hotstart Sales  Llc,Materials,5435.25,1/19/2024
Hotstart Sales  Llc,Services,158.91,1/19/2024
Hotstart Sales  Llc,Materials,3261.15,1/23/2024
Hotstart Sales  Llc,Services,84.8,1/23/2024
Hp  Inc.,Services,4439.49,1/1/2024
Hp  Inc.,Services,4483.02,3/1/2024
Hp  Inc.,Services,5815.57,3/1/2024
"HUBBELL POWER SYSTEMS, INC",Services,2500,1/19/2024
"HUBBELL POWER SYSTEMS, INC",Services,2000,3/11/2024
Hydraulic Design & Repair Inc.,Materials,6204.69,1/1/2024
Hydraulic Design & Repair Inc.,Materials,1519.66,1/3/2024
Hydraulic Design & Repair Inc.,Materials,343.77,1/12/2024
Hydraulic Design & Repair Inc.,Services,3199.94,1/12/2024
Hydraulic Design & Repair Inc.,Services,850,1/19/2024
Hydraulic Design & Repair Inc.,Services,6190.89,1/23/2024
Hydraulic Design & Repair Inc.,Services,1955.51,2/2/2024
Hydraulic Design & Repair Inc.,Materials,1739.95,2/2/2024
Hydraulic Design & Repair Inc.,Materials,7554.27,2/13/2024
Hydraulic Design & Repair Inc.,Services,2959.5,2/13/2024
Hydraulic Design & Repair Inc.,Materials,29443.02,3/1/2024
Hydraulic Design & Repair Inc.,Services,6067.51,3/1/2024
Hydraulic Design & Repair Inc.,Services,747.83,3/4/2024
Hydraulic Design & Repair Inc.,Services,425,3/14/2024
Hydraulic Design & Repair Inc.,Materials,3118.42,3/26/2024
Hydraulic Design & Repair Inc.,Services,2494.69,3/26/2024
Hydraulic Design & Repair Inc.,Materials,5640.8,3/26/2024
Hy-Test Safety Shoe Service,Services,20001.89,2/21/2024
"I S Technology Solutions, Inc.",Materials,2500,3/1/2024
IBM Corp.,Services,110389.23,1/17/2024
IBM Corp.,Services,763065,1/18/2024
IBM Corp.,Services,110389.23,2/22/2024
"ICC Group, Inc.",Services,228260.09,2/1/2024
"ICC Group, Inc.",Services,180748.81,2/1/2024
"Idesco Safety Co., LLC",Materials,393.12,3/5/2024
"Idesco Safety Co., LLC",Materials,2975,3/22/2024
"Idesco Safety Co., LLC",Materials,77.5,3/26/2024
Ihc Construction Companies  Llc,Capital Purchases,1146694.74,1/1/2024
Ihc Construction Companies  Llc,Capital Purchases,5081320.42,2/1/2024
Ihc Construction Companies  Llc,Claims & Insurance,94443.9,2/15/2024
Ihc Construction Companies  Llc,Capital Purchases,3596730.89,3/1/2024
Ileas,Services,175,1/3/2024
Ileas,Services,175,1/3/2024
Ileas,Services,175,1/3/2024
Ileas,Services,175,1/18/2024
Ileas,Services,350,3/21/2024
ILETSB Executive Institute,Services,900,2/21/2024
Illinois Assn Of Chiefs Of Police,Services,115,2/5/2024
Illinois Central Railroad,Services,20877.62,1/2/2024
Illinois Central Railroad,Services,12450,1/5/2024
Illinois Central Railroad,Services,11908.97,1/23/2024
Illinois Central Railroad,Services,25259.09,2/5/2024
Illinois Central Railroad,Services,41207,2/23/2024
Illinois Central Railroad,Services,20701.86,3/13/2024
Illinois Central Railroad,Services,20909.66,3/22/2024
Illinois Department of Labor,Claims & Insurance,250,1/3/2024
Illinois Fire Chiefs Association,Services,150,1/2/2024
Illinois Homicide Investigators Assn.,Services,2200,1/22/2024
Illinois Law Enforcement Administrative Professionals (LEAP),Services,75,1/18/2024
Illinois Operation Lifesaver,Services,3000,2/7/2024
ILLINOIS STATE POLICE ACADEMY,Services,5691.55,3/4/2024
Illinois Tactical Officers Association,Services,520,3/19/2024
Illinois Tactical Officers Association,Services,160,3/19/2024
Illinois Tactical Officers Association,Services,40,3/20/2024
Illinois Tactical Officers Association,Services,40,3/21/2024
Illinois Tollway,Services,44.7,1/2/2024
Illinois Tollway,Services,47.5,1/9/2024
Illinois Tollway,Services,29.7,1/18/2024
Illinois Tollway,Services,16450.93,1/23/2024
Illinois Tollway,Services,33.15,2/13/2024
Illinois Tollway,Services,13.5,2/23/2024
Illinois Tollway,Services,63.9,2/27/2024
Illinois Tollway,Services,22.5,3/4/2024
"Illumia Consulting Group, LLC",Services,12125,2/26/2024
"Illumia Consulting Group, LLC",Services,6380,3/4/2024
Image Systems & Business Solutions Llc,Materials,949,2/6/2024
Impact Networking  Llc,Services,2742.59,1/11/2024
Impact Networking  Llc,Services,2751.04,1/16/2024
Impact Networking  Llc,Services,2742.59,1/25/2024
Impact Networking  Llc,Services,2742.59,2/21/2024
Independent Machine Co.  Inc.,Materials,2125,2/6/2024
Independent Recycling Services  Inc,Utilities,56069.22,1/10/2024
Independent Recycling Services  Inc,Services,1141.83,1/10/2024
Independent Recycling Services  Inc,Services,335,1/11/2024
Independent Recycling Services  Inc,Services,1942.51,1/12/2024
Independent Recycling Services  Inc,Services,4684.46,1/16/2024
Independent Recycling Services  Inc,Services,364.54,1/16/2024
Independent Recycling Services  Inc,Services,315.65,1/16/2024
Independent Recycling Services  Inc,Services,322.41,2/7/2024
Independent Recycling Services  Inc,Utilities,56069.22,2/9/2024
Independent Recycling Services  Inc,Services,2916.97,2/9/2024
Independent Recycling Services  Inc,Services,761.16,2/14/2024
Independent Recycling Services  Inc,Services,1602.38,2/14/2024
Independent Recycling Services  Inc,Services,393.77,2/15/2024
Independent Recycling Services  Inc,Utilities,56069.22,3/6/2024
Independent Recycling Services  Inc,Services,1770.78,3/8/2024
Independent Recycling Services  Inc,Services,941.46,3/14/2024
Industry-Railway Suppliers  Inc.,Materials,2232.7,1/3/2024
Industry-Railway Suppliers  Inc.,Materials,515.5,1/4/2024
Industry-Railway Suppliers  Inc.,Materials,1724.4,1/8/2024
Industry-Railway Suppliers  Inc.,Materials,1516.85,1/10/2024
Industry-Railway Suppliers  Inc.,Materials,17386.6,1/29/2024
Industry-Railway Suppliers  Inc.,Materials,3239.8,2/2/2024
Industry-Railway Suppliers  Inc.,Materials,465.5,2/5/2024
Industry-Railway Suppliers  Inc.,Materials,864.5,2/6/2024
Industry-Railway Suppliers  Inc.,Materials,208.2,2/7/2024
Industry-Railway Suppliers  Inc.,Materials,1134.6,2/9/2024
Industry-Railway Suppliers  Inc.,Materials,137.75,2/13/2024
Industry-Railway Suppliers  Inc.,Materials,3054.25,2/14/2024
Industry-Railway Suppliers  Inc.,Materials,2385.5,2/16/2024
Industry-Railway Suppliers  Inc.,Materials,624.6,2/21/2024
Industry-Railway Suppliers  Inc.,Materials,567.1,2/22/2024
Industry-Railway Suppliers  Inc.,Materials,870,2/26/2024
Industry-Railway Suppliers  Inc.,Materials,3863.15,3/5/2024
Industry-Railway Suppliers  Inc.,Materials,437.25,3/8/2024
Industry-Railway Suppliers  Inc.,Materials,1149.35,3/13/2024
Industry-Railway Suppliers  Inc.,Materials,3807.7,3/20/2024
Industry-Railway Suppliers  Inc.,Materials,7388.65,3/22/2024
Innovate Technologies Inc,Services,50.08,2/6/2024
Innovate Technologies Inc,Materials,233.75,2/6/2024
Innovate Technologies Inc,Materials,260,2/6/2024
Innovate Technologies Inc,Services,21.69,2/6/2024
Innovate Technologies Inc,Services,2193.7,2/21/2024
Innovate Technologies Inc,Materials,251,3/1/2024
Innovate Technologies Inc,Services,23.65,3/1/2024
Insight Public Sector,Services,34956.84,1/1/2024
Insight Public Sector,Services,35677.84,1/1/2024
Insight Public Sector,Services,14607.29,2/1/2024
Insight Public Sector,Services,14930.61,3/5/2024
Insight Public Sector,Services,14885.9,3/22/2024
Insight Strategies  Inc.,Services,30175,1/4/2024
Insight Strategies  Inc.,Services,11537.5,2/2/2024
Insight Strategies  Inc.,Services,10650,3/13/2024
Insight Strategies  Inc.,Services,2662.5,3/26/2024
International Assoc. Of,Services,380,1/18/2024
International Filter Mfg.  Corp.,Materials,130.32,1/8/2024
International Filter Mfg.  Corp.,Materials,472.32,1/8/2024
International Filter Mfg.  Corp.,Materials,821.76,1/24/2024
International Filter Mfg.  Corp.,Materials,2413.44,2/2/2024
International Filter Mfg.  Corp.,Materials,964.32,2/5/2024
International Filter Mfg.  Corp.,Materials,1403.84,2/6/2024
International Filter Mfg.  Corp.,Materials,354.24,2/15/2024
International Filter Mfg.  Corp.,Materials,777.6,2/16/2024
International Filter Mfg.  Corp.,Materials,821.76,3/5/2024
International Filter Mfg.  Corp.,Materials,1786.32,3/13/2024
International Filter Mfg.  Corp.,Materials,2294.08,3/13/2024
International Filter Mfg.  Corp.,Materials,106.08,3/25/2024
International Foundation of Employee Plans (IF),Services,1195,2/6/2024
International Nameplate Supplies Ltd.,Materials,40.02,1/16/2024
International Nameplate Supplies Ltd.,Materials,1447.1,1/16/2024
International Nameplate Supplies Ltd.,Materials,124.75,1/24/2024
International Nameplate Supplies Ltd.,Materials,124.75,1/24/2024
International Nameplate Supplies Ltd.,Materials,124.75,1/24/2024
International Nameplate Supplies Ltd.,Materials,124.75,1/24/2024
International Nameplate Supplies Ltd.,Materials,124.75,1/24/2024
International Nameplate Supplies Ltd.,Materials,459.9,2/15/2024
International Nameplate Supplies Ltd.,Materials,914.4,3/1/2024
International Nameplate U.S. Inc.,Materials,29.38,1/1/2024
International Nameplate U.S. Inc.,Materials,497.17,1/3/2024
International Nameplate U.S. Inc.,Materials,624.3,1/16/2024
International Nameplate U.S. Inc.,Materials,142.4,1/16/2024
International Nameplate U.S. Inc.,Materials,142.4,1/16/2024
International Nameplate U.S. Inc.,Materials,142.4,1/16/2024
International Nameplate U.S. Inc.,Materials,142.4,1/16/2024
International Nameplate U.S. Inc.,Materials,142.4,1/16/2024
International Nameplate U.S. Inc.,Materials,87,1/29/2024
International Nameplate U.S. Inc.,Materials,102.06,2/1/2024
International Nameplate U.S. Inc.,Materials,804.66,2/2/2024
International Nameplate U.S. Inc.,Materials,1411.5,2/7/2024
International Nameplate U.S. Inc.,Materials,779.85,2/9/2024
International Nameplate U.S. Inc.,Materials,767.79,2/14/2024
International Nameplate U.S. Inc.,Materials,190.4,2/15/2024
International Nameplate U.S. Inc.,Materials,1718.9,2/21/2024
International Nameplate U.S. Inc.,Materials,1336.78,2/26/2024
International Nameplate U.S. Inc.,Materials,205.66,3/1/2024
International Nameplate U.S. Inc.,Materials,1190.01,3/5/2024
International Nameplate U.S. Inc.,Materials,436.8,3/8/2024
International Nameplate U.S. Inc.,Materials,1002.8,3/13/2024
International Nameplate U.S. Inc.,Materials,957.46,3/15/2024
International Nameplate U.S. Inc.,Materials,1483.09,3/22/2024
International Nameplate U.S. Inc.,Materials,2757.03,3/27/2024
Interstate Power Systems  Inc.,Materials,16180.64,2/1/2024
Interstate Power Systems  Inc.,Services,21228.75,2/1/2024
Interstate Power Systems  Inc.,Materials,490.4,2/21/2024
Interstate Power Systems  Inc.,Services,4289.85,2/21/2024
Interstate Power Systems  Inc.,Materials,6273.75,2/22/2024
Interstate Power Systems  Inc.,Services,300,2/22/2024
Interstate Power Systems  Inc.,Services,8044.5,2/22/2024
ISACA,Services,390,2/15/2024
Ismael Cornejo,Services,678,1/9/2024
Ismael Cornejo,Services,791,2/13/2024
Ismael Cornejo,Services,508.5,2/20/2024
Ismael Cornejo,Services,734.5,2/22/2024
Ismael Cornejo,Services,56.5,2/29/2024
Ismael Cornejo,Services,847.5,3/13/2024
Ismael Cornejo,Services,621.5,3/26/2024
J P Simons & Co.,Capital Purchases,5000,1/1/2024
J P Simons & Co.,Materials,396.49,1/1/2024
J P Simons & Co.,Materials,1180.19,1/1/2024
J P Simons & Co.,Materials,68161.09,1/1/2024
J P Simons & Co.,Capital Purchases,35070,1/1/2024
J P Simons & Co.,Materials,1873.12,1/1/2024
J P Simons & Co.,Materials,2378.64,1/2/2024
J P Simons & Co.,Materials,1596.29,1/2/2024
J P Simons & Co.,Materials,26539.2,1/2/2024
J P Simons & Co.,Capital Purchases,25818,1/2/2024
J P Simons & Co.,Materials,465.32,1/3/2024
J P Simons & Co.,Materials,2935.19,1/4/2024
J P Simons & Co.,Materials,20784,1/5/2024
J P Simons & Co.,Materials,182.38,1/5/2024
J P Simons & Co.,Materials,13924.92,1/5/2024
J P Simons & Co.,Materials,3350.22,1/8/2024
J P Simons & Co.,Materials,9552.15,1/8/2024
J P Simons & Co.,Materials,135.76,1/9/2024
J P Simons & Co.,Materials,8883.76,1/9/2024
J P Simons & Co.,Materials,847.95,1/10/2024
J P Simons & Co.,Materials,1433.89,1/10/2024
J P Simons & Co.,Materials,6093.55,1/10/2024
J P Simons & Co.,Materials,13212.6,1/19/2024
J P Simons & Co.,Capital Purchases,5756.4,1/23/2024
J P Simons & Co.,Materials,3127.24,1/24/2024
J P Simons & Co.,Materials,2021.98,1/24/2024
J P Simons & Co.,Materials,4013.36,1/24/2024
J P Simons & Co.,Materials,107.46,1/24/2024
J P Simons & Co.,Materials,5137.73,1/25/2024
J P Simons & Co.,Materials,239.3,1/26/2024
J P Simons & Co.,Materials,8337.06,1/26/2024
J P Simons & Co.,Materials,1425,1/26/2024
J P Simons & Co.,Materials,2703.43,1/26/2024
J P Simons & Co.,Materials,3336.91,1/29/2024
J P Simons & Co.,Materials,287,1/29/2024
J P Simons & Co.,Materials,6288.8,1/29/2024
J P Simons & Co.,Materials,10384,2/1/2024
J P Simons & Co.,Materials,5715.82,2/1/2024
J P Simons & Co.,Materials,34817.48,2/1/2024
J P Simons & Co.,Materials,3324.76,2/1/2024
J P Simons & Co.,Materials,1950.16,2/1/2024
J P Simons & Co.,Materials,743.44,2/1/2024
J P Simons & Co.,Materials,1198.19,2/2/2024
J P Simons & Co.,Materials,840.3,2/5/2024
J P Simons & Co.,Materials,352.5,2/5/2024
J P Simons & Co.,Materials,7246.62,2/5/2024
J P Simons & Co.,Materials,5099.11,2/6/2024
J P Simons & Co.,Materials,768,2/7/2024
J P Simons & Co.,Capital Purchases,23336,2/7/2024
J P Simons & Co.,Materials,52746.71,2/8/2024
J P Simons & Co.,Materials,3352.88,2/8/2024
J P Simons & Co.,Materials,75.52,2/8/2024
J P Simons & Co.,Materials,13872,2/8/2024
J P Simons & Co.,Materials,460,2/8/2024
J P Simons & Co.,Materials,3059.48,2/14/2024
J P Simons & Co.,Materials,5939.8,2/14/2024
J P Simons & Co.,Materials,4679.23,2/15/2024
J P Simons & Co.,Materials,285.48,2/15/2024
J P Simons & Co.,Materials,1811.61,2/15/2024
J P Simons & Co.,Materials,886.6,2/16/2024
J P Simons & Co.,Materials,58.08,2/16/2024
J P Simons & Co.,Materials,1383.13,2/21/2024
J P Simons & Co.,Materials,2720.23,2/21/2024
J P Simons & Co.,Materials,317,2/22/2024
J P Simons & Co.,Materials,19111.25,2/22/2024
J P Simons & Co.,Materials,3192,2/22/2024
J P Simons & Co.,Materials,8366.64,2/23/2024
J P Simons & Co.,Materials,4701.35,2/23/2024
J P Simons & Co.,Materials,4621.26,2/26/2024
J P Simons & Co.,Materials,16502.31,2/26/2024
J P Simons & Co.,Materials,61992,2/27/2024
J P Simons & Co.,Capital Purchases,17258,2/27/2024
J P Simons & Co.,Materials,511.54,3/1/2024
J P Simons & Co.,Materials,180072.31,3/1/2024
J P Simons & Co.,Materials,957.22,3/1/2024
J P Simons & Co.,Materials,468.3,3/1/2024
J P Simons & Co.,Materials,6375,3/1/2024
J P Simons & Co.,Materials,10643.84,3/1/2024
J P Simons & Co.,Materials,325.82,3/5/2024
J P Simons & Co.,Materials,1023.48,3/6/2024
J P Simons & Co.,Materials,1862.88,3/6/2024
J P Simons & Co.,Materials,10944,3/6/2024
J P Simons & Co.,Materials,29826.22,3/7/2024
J P Simons & Co.,Materials,1975,3/7/2024
J P Simons & Co.,Materials,7754.22,3/7/2024
J P Simons & Co.,Materials,11852.71,3/8/2024
J P Simons & Co.,Materials,10739.48,3/11/2024
J P Simons & Co.,Materials,21440.31,3/14/2024
J P Simons & Co.,Materials,5598,3/14/2024
J P Simons & Co.,Materials,5325.98,3/14/2024
J P Simons & Co.,Materials,1018.74,3/15/2024
J P Simons & Co.,Materials,88.55,3/19/2024
J P Simons & Co.,Materials,412.06,3/20/2024
J P Simons & Co.,Materials,3483.6,3/20/2024
J P Simons & Co.,Materials,1163.75,3/21/2024
J P Simons & Co.,Materials,2533.91,3/21/2024
J P Simons & Co.,Materials,27746.9,3/27/2024
J P Simons & Co.,Materials,2236.54,3/28/2024
J P Simons & Co.,Materials,12124.91,3/28/2024
J V Crane & Engineering  Inc.,Materials,2155.88,1/1/2024
J V Crane & Engineering  Inc.,Materials,1378,1/1/2024
J V Crane & Engineering  Inc.,Materials,1378,1/1/2024
J V Crane & Engineering  Inc.,Services,2978,1/1/2024
J V Crane & Engineering  Inc.,Services,11334,3/1/2024
J V Crane & Engineering  Inc.,Materials,3549,3/1/2024
J V Crane & Engineering  Inc.,Services,1378,3/1/2024
Jacob Trevino,Services,27.51,1/4/2024
Jacob Trevino,Services,55.02,1/4/2024
Jacob Trevino,Services,123.28,1/23/2024
Jacob Trevino,Services,55.02,1/30/2024
Jacob Trevino,Services,84.42,2/27/2024
Jacob Trevino,Services,84.42,3/14/2024
Jacobs Engineering Group  Inc.,Capital Purchases,3697.01,3/1/2024
Jacobs Engineering Group  Inc.,Capital Purchases,157060.82,3/5/2024
JAIME G. MORALES,Services,734.5,1/9/2024
JAIME G. MORALES,Services,56.5,1/30/2024
JAIME G. MORALES,Services,734.5,2/13/2024
James  Curtis,Services,27.51,1/16/2024
James Derwinski,Services,355.5,1/11/2024
James Derwinski,Services,1267.68,1/11/2024
James Derwinski,Services,60,1/11/2024
James Derwinski,Services,132.6,1/11/2024
James Derwinski,Services,217.97,1/11/2024
James Derwinski,Services,217.2,2/8/2024
James Derwinski,Services,60,2/8/2024
James Derwinski,Services,154.72,2/8/2024
James Derwinski,Services,241.5,2/8/2024
James Derwinski,Services,994.56,2/8/2024
James Derwinski,Services,437.97,2/8/2024
James Derwinski,Services,30,2/26/2024
James Derwinski,Services,16.88,2/26/2024
James Derwinski,Services,331.8,2/26/2024
James Derwinski,Services,118.5,2/26/2024
James Derwinski,Services,250.34,2/26/2024
James Derwinski,Services,147.5,3/5/2024
James Derwinski,Services,421.8,3/5/2024
James Ferneborg,Services,4264,2/16/2024
James Ferneborg,Services,4160,2/22/2024
James Ferneborg,Services,6240,3/14/2024
James Grogans,Services,550.2,1/11/2024
James Grogans,Services,804,2/12/2024
James Grogans,Services,761.25,3/12/2024
James Kielczynski,Services,297.37,1/2/2024
James Kielczynski,Services,245.63,1/18/2024
James Kielczynski,Services,254.6,1/25/2024
James Kielczynski,Services,254.6,2/20/2024
James Kielczynski,Services,300.83,2/26/2024
James Kielczynski,Services,282.74,3/13/2024
James Kielczynski,Services,290.11,3/20/2024
James Kijowski,Services,40.2,1/11/2024
James Kijowski,Services,61.64,1/22/2024
James Kijowski,Services,142.04,1/30/2024
James Kijowski,Services,61.64,2/2/2024
James Kijowski,Services,40.2,2/20/2024
James Kijowski,Services,40.2,3/20/2024
James Kijowski,Services,40.2,3/26/2024
James L Howard & Co.,Materials,4309.5,1/1/2024
James L Howard & Co.,Materials,255,1/3/2024
James L Howard & Co.,Materials,1770,1/10/2024
James L Howard & Co.,Materials,4950,1/19/2024
James L Howard & Co.,Materials,85,2/7/2024
James Woods,Services,21.88,1/11/2024
James Woods,Services,10.72,3/12/2024
Jamie Maurizi,Services,60.26,1/11/2024
Jamie Maurizi,Services,80.4,2/14/2024
Jamie Maurizi,Services,53.6,3/13/2024
Jamie Maurizi,Services,61.64,3/13/2024
Janice R. Thomas,Services,310.5,1/11/2024
Janice R. Thomas,Services,33.02,1/23/2024
Janice R. Thomas,Services,118.5,1/23/2024
Janice R. Thomas,Services,147.5,2/15/2024
Janice R. Thomas,Services,333,2/27/2024
JASON STARK,Services,180.78,1/11/2024
JASON STARK,Services,117.9,1/11/2024
JASON STARK,Services,40.2,2/20/2024
JASON STARK,Services,61.64,2/20/2024
JASON STARK,Services,120.6,3/14/2024
Javier Villalobos,Services,452,1/11/2024
Javier Villalobos,Services,734.5,1/23/2024
Javier Villalobos,Services,791,2/29/2024
Javier Villalobos,Services,734.5,3/1/2024
Javier Villalobos,Services,734.5,3/14/2024
Javier Villalobos,Services,791,3/28/2024
JB Tools Inc.,Materials,7919.68,2/26/2024
Jeffrey J. Downey,Services,847.65,3/19/2024
Jeffrey J. Downey,Services,241.5,3/19/2024
Jeffrey J. Downey,Services,36.49,3/19/2024
Jeffrey J. Downey,Services,474.88,3/19/2024
JEREMY MAURIZI,Services,123.28,2/27/2024
Jibri Branch,Services,96.94,1/2/2024
Jibri Branch,Services,183.4,1/22/2024
Jibri Branch,Services,38.86,2/13/2024
Jibri Branch,Services,140.7,3/12/2024
JIM RICHERT,Capital Purchases,135341.75,3/25/2024
Jimmie Maxson  Jr.,Services,707.4,1/11/2024
Jimmie Maxson  Jr.,Services,844.2,2/12/2024
Jimmie Maxson  Jr.,Services,663.3,3/12/2024
Jimmy Harvard Jr,Services,103.49,1/17/2024
Jimmy Harvard Jr,Services,105.86,2/13/2024
Jimmy Harvard Jr,Services,155.44,3/13/2024
Jma Railroad Supply Co.,Materials,8100,2/22/2024
Joaquin Ochoa,Services,13.4,1/2/2024
Joaquin Ochoa,Services,662.86,1/2/2024
Joaquin Ochoa,Services,628.7,1/23/2024
Joaquin Ochoa,Services,935.32,2/22/2024
Joaquin Ochoa,Services,18.85,2/22/2024
Joaquin Ochoa,Services,5.1,3/28/2024
Joaquin Ochoa,Services,522.47,3/28/2024
John A. Milano,Services,58.85,1/30/2024
John Burns Construction,Capital Purchases,1179760.87,1/1/2024
John Burns Construction,Capital Purchases,182554.53,1/26/2024
John Burns Construction,Capital Purchases,2642802.25,2/1/2024
John Burns Construction,Claims & Insurance,73783.28,2/20/2024
John Burns Construction,Capital Purchases,1046103.57,3/1/2024
John Sakash Co.,Materials,240,1/10/2024
John Sakash Co.,Materials,2444.4,1/25/2024
John Sakash Co.,Materials,1000,2/1/2024
John Sakash Co.,Materials,3477.61,2/9/2024
John Sakash Co.,Materials,108.5,3/1/2024
John Sakash Co.,Materials,64,3/8/2024
Johnson Controls Fire Protection LP,Materials,186.48,1/11/2024
Johnson Controls Fire Protection LP,Services,153,1/29/2024
Johnson Controls Fire Protection LP,Services,67.09,2/20/2024
Johnson Plastics Plus,Services,17.92,2/27/2024
Johnson Plastics Plus,Materials,906.26,2/27/2024
Johnson Plastics Plus,Materials,167.63,3/1/2024
Johnson Plastics Plus,Services,24.85,3/22/2024
Johnson Plastics Plus,Materials,186.26,3/22/2024
Johnson Plastics Plus,Materials,636.28,3/22/2024
Jon Steele,Services,99.56,1/11/2024
Jon Steele,Services,76.38,2/13/2024
Jon Steele,Services,76.38,3/18/2024
Jonathan Calderon,Services,93.75,2/23/2024
Jonathan Calderon,Services,851.18,2/23/2024
Jonathan Calderon,Services,224,2/23/2024
Jordan Martinez,Services,39.3,1/11/2024
Jordan Martinez,Services,180.78,1/11/2024
Jose Antonio Urbieta,Services,59.5,3/20/2024
Jose Esparza,Services,734.5,1/3/2024
Jose Esparza,Services,226,1/11/2024
Jose Guerrero,Services,565,1/12/2024
Jose Guerrero,Services,113,1/17/2024
Jose Guerrero,Services,13.98,1/23/2024
Jose L. Lagunas,Services,508.5,1/9/2024
Jose L. Lagunas,Services,508.5,1/30/2024
Jose L. Lagunas,Services,734.5,2/13/2024
Jose L. Lagunas,Services,1356,2/21/2024
Jose L. Lagunas,Services,56.5,2/28/2024
Jose L. Lagunas,Services,791,3/13/2024
Jose L. Lagunas,Services,226,3/26/2024
JOSE ROCHA,Services,452,1/11/2024
JOSE ROCHA,Services,56.5,1/12/2024
Joseph Davis,Services,40.2,2/15/2024
Joseph Davis,Services,40.2,3/15/2024
Joseph J Henderson & Son  Inc.,Materials,16789,2/14/2024
Joseph J Henderson & Son  Inc.,Materials,1678.9,2/14/2024
Joseph J Henderson & Son  Inc.,Services,3909.69,2/23/2024
Joseph J Henderson & Son  Inc.,Services,600.19,2/23/2024
Joseph J Henderson & Son  Inc.,Services,13635.5,2/23/2024
Joseph J Henderson & Son  Inc.,Services,4987.71,2/23/2024
Joseph J Henderson & Son  Inc.,Services,443.52,2/23/2024
Joseph J Henderson & Son  Inc.,Services,2644.86,2/23/2024
Joseph J Henderson & Son  Inc.,Services,11433.04,3/27/2024
Joseph J Henderson & Son  Inc.,Services,7340.5,3/27/2024
Juan Escuita-Reyes,Services,734.5,1/9/2024
Juan Escuita-Reyes,Services,847.5,1/16/2024
Juan Escuita-Reyes,Services,169.5,1/30/2024
Juan F. Campos,Services,734.5,1/9/2024
Juan F. Campos,Services,678,1/30/2024
Juan F. Campos,Services,847.5,2/13/2024
Juan F. Campos,Services,678,2/20/2024
Juan F. Campos,Services,904,2/22/2024
Juan F. Campos,Services,56.5,2/29/2024
Juan F. Campos,Services,847.5,3/14/2024
Juan F. Campos,Services,226,3/26/2024
Julia A Elliott,Services,29.48,2/15/2024
Julie A. Daily,Services,189.2,2/15/2024
Julie A. Daily,Services,2528.62,2/15/2024
Julie A. Daily,Claims & Insurance,-3000,2/15/2024
Julie A. Daily,Services,37.25,2/15/2024
Julie A. Daily,Services,1114.25,2/15/2024
Julie A. Daily,Services,3,2/15/2024
Justin Draper,Services,181.04,1/3/2024
Justin Draper,Services,224.05,2/26/2024
Justin Draper,Services,250.45,3/15/2024
Justin Draper,Services,237.72,3/26/2024
K & G Electric Motor & Pump Corp. DBA KG Power Systems,Services,400,1/18/2024
K & G Electric Motor & Pump Corp. DBA KG Power Systems,Materials,5543.34,1/18/2024
"K&W Environmental Safety Supply, INC",Materials,205.5,1/4/2024
"K&W Environmental Safety Supply, INC",Materials,900,1/5/2024
"K&W Environmental Safety Supply, INC",Materials,150,1/16/2024
"K&W Environmental Safety Supply, INC",Materials,390,2/12/2024
"K&W Environmental Safety Supply, INC",Materials,1050,2/20/2024
"K&W Environmental Safety Supply, INC",Materials,660,3/12/2024
"K&W Environmental Safety Supply, INC",Materials,1440,3/28/2024
Kane County Chiefs Of Police,Services,50,3/19/2024
Kane County Chiefs Of Police,Services,150,3/22/2024
Kaplan Kirsch & Rockwell Llp,Claims & Insurance,55860.09,2/22/2024
Kaplan Kirsch & Rockwell Llp,Services,4645.6,2/22/2024
Kaplan Kirsch & Rockwell Llp,Services,2400,2/22/2024
Kaplan Kirsch & Rockwell Llp,Claims & Insurance,70799.77,3/12/2024
Kaplan Kirsch & Rockwell Llp,Services,210.3,3/12/2024
KARLTON COLLINS II,Services,99.56,1/3/2024
KARLTON COLLINS II,Services,99.16,3/13/2024
KBS III 500 West Madison  LLC,Services,102801.16,1/10/2024
KBS III 500 West Madison  LLC,Services,94715.31,2/2/2024
KBS III 500 West Madison  LLC,Services,80713.95,2/22/2024
Kelly Industrial Coatings Inc.,Materials,18432.38,1/26/2024
Kendall Luketic,Services,343.06,2/13/2024
Kendall Luketic,Services,169.91,2/13/2024
Kendall Luketic,Services,259,2/13/2024
Kendrick L. Howse,Services,104.54,1/31/2024
Kenneth Clay,Services,145.41,1/22/2024
Kenneth Clay,Services,77.72,2/13/2024
Kenneth Clay,Services,127.3,3/14/2024
Kenneth Demetrice Jackson,Services,15.72,1/18/2024
Kenneth Demetrice Jackson,Services,103.49,1/18/2024
Kenneth Demetrice Jackson,Services,77.72,1/22/2024
Kenneth Demetrice Jackson,Services,49.58,2/21/2024
Kenneth Rice,Services,44.55,2/8/2024
Kenneth Rice,Services,328.55,2/8/2024
Kerrys Auto Body  Inc.,Services,5992.16,1/30/2024
Kerrys Auto Body  Inc.,Services,4063.46,2/12/2024
Kerrys Auto Body  Inc.,Services,1760.1,2/26/2024
Kerrys Auto Body  Inc.,Services,2747.52,2/26/2024
Kerrys Auto Body  Inc.,Services,913.43,2/27/2024
Kerrys Auto Body  Inc.,Services,1079.76,3/20/2024
Kevin Chavez,Services,621.5,1/30/2024
Kevin Chavez,Services,1469,2/21/2024
Kevin Chavez,Services,56.5,2/29/2024
Kevin Chavez,Services,847.5,3/13/2024
Kevin Chavez,Services,395.5,3/26/2024
Kevin Llanuza,,442.5,2/6/2024
Kevin Lynch,Services,483.59,1/17/2024
Kevin R Mccann,Services,585.29,1/2/2024
Kevin R Mccann,Services,160,1/2/2024
Kevin R Mccann,Services,39.73,1/2/2024
Kiesters Garage  Inc.,Services,30,1/16/2024
Kiesters Garage  Inc.,Materials,2808.48,1/16/2024
Kiesters Garage  Inc.,Materials,1104.64,1/30/2024
Kiesters Garage  Inc.,Services,406.58,1/30/2024
Kiesters Garage  Inc.,Services,60,2/1/2024
Kiesters Garage  Inc.,Materials,33.81,2/1/2024
Kiesters Garage  Inc.,Materials,714.56,2/12/2024
Kiesters Garage  Inc.,Services,550,2/12/2024
Kiesters Garage  Inc.,Services,763.2,3/14/2024
Kiesters Garage  Inc.,Materials,1186.08,3/14/2024
Kiesters Garage  Inc.,Materials,2034.7,3/20/2024
Kiesters Garage  Inc.,Services,520,3/20/2024
Kiowa Howery,Services,55.02,1/17/2024
Kiowa Howery,Services,49.58,2/26/2024
Kiowa Howery,Services,28.14,3/13/2024
Kiowa Howery,Services,49.58,3/13/2024
Kiowa Howery,Services,28.14,3/20/2024
Kirby Sheet Metal Works  Inc.,Materials,8700,1/5/2024
Kirby Sheet Metal Works  Inc.,Materials,4350,1/17/2024
Klos Trucking  Inc.,Services,2400,1/1/2024
Klos Trucking  Inc.,Services,580.5,1/5/2024
Klos Trucking  Inc.,Services,709.5,1/5/2024
Klos Trucking  Inc.,Services,709.5,1/5/2024
Klos Trucking  Inc.,Services,1612.5,1/16/2024
Klos Trucking  Inc.,Services,580.5,1/22/2024
Klos Trucking  Inc.,Services,1032,1/26/2024
Klos Trucking  Inc.,Services,1161,1/29/2024
Klos Trucking  Inc.,Services,2380.5,2/1/2024
Klos Trucking  Inc.,Services,580.5,2/2/2024
Klos Trucking  Inc.,Services,580.5,2/7/2024
Klos Trucking  Inc.,Services,580.5,2/7/2024
Klos Trucking  Inc.,Services,580.5,2/16/2024
Klos Trucking  Inc.,Services,580.5,2/20/2024
Klos Trucking  Inc.,Services,580.5,2/26/2024
Klos Trucking  Inc.,Services,580.5,3/7/2024
Klos Trucking  Inc.,Services,709.5,3/12/2024
Klos Trucking  Inc.,Services,1032,3/14/2024
Klos Trucking  Inc.,Services,6550,3/20/2024
Klos Trucking  Inc.,Services,1032,3/22/2024
Klos Trucking  Inc.,Services,580.5,3/26/2024
K-Met Industries  Inc.,Materials,7591.2,3/7/2024
Knorr Brake Co.  LLC,Materials,917.52,1/1/2024
Knorr Brake Co.  LLC,Materials,135234,1/2/2024
Knorr Brake Co.  LLC,Capital Purchases,4860,1/4/2024
Knorr Brake Co.  LLC,Materials,3276,1/8/2024
Knorr Brake Co.  LLC,Materials,10800,1/9/2024
Knorr Brake Co.  LLC,Materials,8262,1/11/2024
Knorr Brake Co.  LLC,Materials,3406,1/17/2024
Knorr Brake Co.  LLC,Materials,144000,1/19/2024
Knorr Brake Co.  LLC,Materials,1301.3,1/22/2024
Knorr Brake Co.  LLC,Materials,6800,1/23/2024
Knorr Brake Co.  LLC,Materials,294.58,1/26/2024
Knorr Brake Co.  LLC,Services,6476.6,2/1/2024
Knorr Brake Co.  LLC,Capital Purchases,11052,2/1/2024
Knorr Brake Co.  LLC,Materials,21538,2/2/2024
Knorr Brake Co.  LLC,Materials,185.9,2/5/2024
Knorr Brake Co.  LLC,Materials,23443,2/12/2024
Knorr Brake Co.  LLC,Capital Purchases,16092,2/13/2024
Knorr Brake Co.  LLC,Materials,2249,2/20/2024
Knorr Brake Co.  LLC,Materials,6248.35,2/21/2024
Knorr Brake Co.  LLC,Materials,57360,2/22/2024
Knorr Brake Co.  LLC,Capital Purchases,16092,2/22/2024
Knorr Brake Co.  LLC,Materials,1022.45,2/26/2024
Knorr Brake Co.  LLC,Materials,81581.2,2/27/2024
Knorr Brake Co.  LLC,Materials,1442,2/28/2024
Knorr Brake Co.  LLC,Services,455,3/1/2024
Knorr Brake Co.  LLC,Materials,165136,3/11/2024
Knorr Brake Co.  LLC,Materials,1110.5,3/13/2024
Knorr Brake Co.  LLC,Materials,294.58,3/14/2024
Knorr Brake Co.  LLC,Materials,3050,3/20/2024
Knorr Brake Co.  LLC,Capital Purchases,103767.97,3/27/2024
Knorr-Bremse EVAC LLC,Materials,1750,1/22/2024
Knorr-Bremse EVAC LLC,Materials,232.75,2/8/2024
Knorr-Bremse EVAC LLC,Materials,7800,2/9/2024
Knorr-Bremse EVAC LLC,Materials,24,3/15/2024
Knorr-Bremse EVAC LLC,Materials,7405,3/19/2024
Knorr-Bremse EVAC LLC,Materials,825,3/22/2024
Knox Kershaw Inc.,Materials,4796.08,1/16/2024
Knox Kershaw Inc.,Materials,3289.92,1/17/2024
Knox Kershaw Inc.,Materials,3891.6,1/23/2024
Knox Kershaw Inc.,Materials,531.74,1/26/2024
Knox Kershaw Inc.,Materials,30007.04,2/1/2024
Knox Kershaw Inc.,Materials,10080,2/9/2024
Knox Kershaw Inc.,Materials,17390.26,2/20/2024
Knox Kershaw Inc.,Materials,10080,3/7/2024
Koenig Solutions Limited,Services,656,3/12/2024
Kor-Pak Corp,Materials,8308,1/5/2024
Kor-Pak Corp,Materials,6931.32,1/26/2024
Kor-Pak Corp,Materials,5312.22,2/12/2024
Kor-Pak Corp,Materials,5524.82,3/13/2024
Kor-Pak Corp,Materials,5903,3/15/2024
"Krando Metal Products, Inc..",Materials,5450,3/7/2024
"Kristen Ziman Consulting, LLC",Services,26000,1/17/2024
"Kristen Ziman Consulting, LLC",Services,25000,2/15/2024
"Kristen Ziman Consulting, LLC",Services,21400,3/8/2024
Kronos Inc.,Capital Purchases,250,2/21/2024
"KSU N.A., LLC",Capital Purchases,1808.48,1/1/2024
"KSU N.A., LLC",Capital Purchases,6829.59,1/3/2024
"KSU N.A., LLC",Materials,4721.6,2/1/2024
"KSU N.A., LLC",Materials,1197.3,2/6/2024
"KSU N.A., LLC",Materials,4249.44,2/14/2024
"KSU N.A., LLC",Capital Purchases,18084.8,3/1/2024
"KSU N.A., LLC",Capital Purchases,89745.78,3/1/2024
"KSU N.A., LLC",Materials,860,3/5/2024
"KSU N.A., LLC",Materials,144.75,3/28/2024
Kyle Dean Berray,Services,352.8,1/22/2024
Kyle Nanfeldt,Services,76.38,2/5/2024
Kyle Nanfeldt,Services,50.92,3/14/2024
"L&T Auto Repair Co., Inc.",Services,1923.5,1/18/2024
"L&T Auto Repair Co., Inc.",Materials,2957.87,1/18/2024
"L&T Auto Repair Co., Inc.",Materials,60,2/1/2024
"L&T Auto Repair Co., Inc.",Services,268,2/1/2024
"L&T Auto Repair Co., Inc.",Services,210.5,2/12/2024
"L&T Auto Repair Co., Inc.",Materials,360.88,2/12/2024
"L&T Auto Repair Co., Inc.",Materials,20,2/12/2024
"L&T Auto Repair Co., Inc.",Services,345,2/12/2024
"L&T Auto Repair Co., Inc.",Services,253.5,2/16/2024
"L&T Auto Repair Co., Inc.",Materials,720,2/16/2024
"L&T Auto Repair Co., Inc.",Services,398,3/13/2024
"L&T Auto Repair Co., Inc.",Materials,1770,3/13/2024
Laird Plastics  Inc.,Materials,484.5,1/1/2024
Laird Plastics  Inc.,Materials,14775.56,1/19/2024
Laird Plastics  Inc.,Materials,12780.36,1/19/2024
Laird Plastics  Inc.,Materials,2494,2/1/2024
Laird Plastics  Inc.,Materials,498.8,2/1/2024
Laird Plastics  Inc.,Materials,1845.56,2/7/2024
Laird Plastics  Inc.,Materials,7100.2,2/20/2024
Laird Plastics  Inc.,Materials,6224.44,3/20/2024
Laird Plastics  Inc.,Materials,226,3/25/2024
Laird Plastics  Inc.,Materials,229.05,3/26/2024
Laird Plastics (Local),Capital Purchases,32171.94,1/8/2024
Laird Plastics (Local),Capital Purchases,36278.3,2/1/2024
Lake County Public Works Department,Utilities,80.43,2/21/2024
Lake County Public Works Department,Utilities,32.64,2/21/2024
Lake County Transportation Alliance,Services,615,1/18/2024
Lamp Recyclers Inc. DBA Logistics Recycling Inc,Services,205,1/24/2024
Lamp Recyclers Inc. DBA Logistics Recycling Inc,Materials,218.4,1/25/2024
Lamp Recyclers Inc. DBA Logistics Recycling Inc,Materials,90,1/25/2024
Lamp Recyclers Inc. DBA Logistics Recycling Inc,Services,440,3/18/2024
Lanisa C Wimberly,Services,23.99,3/7/2024
Larry Bond,Services,75.98,1/2/2024
Lasalle Network,Services,11304,1/2/2024
Lasalle Network,Services,9517.16,1/24/2024
Lasalle Network,Services,853.24,1/24/2024
Lasalle Network,Services,28919.2,2/28/2024
Lasalle Network,Services,18296.5,2/28/2024
Lasalle Network,Services,5476,3/18/2024
Lasalle Network,Services,15317.4,3/20/2024
Lasalle Network,Services,2604.8,3/21/2024
Lasalle Network,Services,4943.2,3/25/2024
Law Bulletin Publishing Co.,Services,5557,1/18/2024
Law Bulletin Publishing Co.,Services,3772,2/16/2024
Law Bulletin Publishing Co.,Services,1785,2/20/2024
Lee's Auto Clinic,Materials,387.32,1/2/2024
Lee's Auto Clinic,Services,104,1/2/2024
Lee's Auto Clinic,Materials,156,1/11/2024
Lee's Auto Clinic,Services,65,1/11/2024
Lee's Auto Clinic,Materials,110.67,1/11/2024
Lee's Auto Clinic,Services,79.9,1/11/2024
Lee's Auto Clinic,Materials,1671.04,1/12/2024
Lee's Auto Clinic,Services,658.4,1/12/2024
Lee's Auto Clinic,Services,39.95,1/18/2024
Lee's Auto Clinic,Materials,241.18,1/18/2024
Lee's Auto Clinic,Materials,15.84,1/18/2024
Lee's Auto Clinic,Services,104.95,1/18/2024
Lee's Auto Clinic,Materials,14.36,1/25/2024
Lee's Auto Clinic,Services,919.35,1/25/2024
Lee's Auto Clinic,Materials,1986.97,1/25/2024
Lee's Auto Clinic,Services,39.95,1/25/2024
Lee's Auto Clinic,Materials,2439.93,2/1/2024
Lee's Auto Clinic,Services,234.95,2/1/2024
Lee's Auto Clinic,Materials,150.07,2/1/2024
Lee's Auto Clinic,Services,39.95,2/2/2024
Lee's Auto Clinic,Materials,10.89,2/2/2024
Lee's Auto Clinic,Services,884.95,2/12/2024
Lee's Auto Clinic,Materials,2574.56,2/12/2024
Lee's Auto Clinic,Services,889.7,2/14/2024
Lee's Auto Clinic,Services,39.95,2/14/2024
Lee's Auto Clinic,Materials,15.84,2/14/2024
Lee's Auto Clinic,Materials,4041.42,2/14/2024
Lee's Auto Clinic,Services,1204.4,2/23/2024
Lee's Auto Clinic,Services,539.5,2/23/2024
Lee's Auto Clinic,Materials,1988.71,2/23/2024
Lee's Auto Clinic,Materials,5248.23,2/23/2024
Lee's Auto Clinic,Materials,1730.25,2/28/2024
Lee's Auto Clinic,Materials,1579.34,2/28/2024
Lee's Auto Clinic,Services,421.4,2/28/2024
Lee's Auto Clinic,Services,973.25,2/28/2024
Lee's Auto Clinic,Services,390,3/13/2024
Lee's Auto Clinic,Materials,937.1,3/13/2024
Lee's Auto Clinic,Materials,863.84,3/13/2024
Lee's Auto Clinic,Services,299.95,3/13/2024
Lee's Auto Clinic,Materials,848.93,3/20/2024
Lee's Auto Clinic,Materials,2915.51,3/20/2024
Lee's Auto Clinic,Services,540.45,3/20/2024
Lee's Auto Clinic,Services,404.9,3/20/2024
Legat Architects,Capital Purchases,41172.62,2/14/2024
Legat Architects,Capital Purchases,12450.95,3/20/2024
LEONARD JONES JR,Services,40.2,1/22/2024
LEONARD JONES JR,Services,80.4,2/14/2024
LEONARD JONES JR,Services,61.64,2/28/2024
LEONARD JONES JR,Services,16.08,2/28/2024
LEONARD JONES JR,Services,80.4,3/12/2024
Libra Industries  Inc.,Materials,5536.94,1/1/2024
Libra Industries  Inc.,Materials,13004.1,1/2/2024
Libra Industries  Inc.,Materials,3153.54,1/9/2024
Libra Industries  Inc.,Materials,4478.81,1/11/2024
Libra Industries  Inc.,Materials,1532.64,1/12/2024
Libra Industries  Inc.,Materials,6558.85,1/19/2024
Libra Industries  Inc.,Materials,813.2,1/22/2024
Libra Industries  Inc.,Materials,4967.39,2/1/2024
Libra Industries  Inc.,Materials,9565.69,2/2/2024
Libra Industries  Inc.,Materials,10.78,2/6/2024
Libra Industries  Inc.,Materials,10140.09,2/9/2024
Libra Industries  Inc.,Materials,2890.29,2/16/2024
Libra Industries  Inc.,Materials,5675.55,2/20/2024
Libra Industries  Inc.,Materials,43.26,2/22/2024
Libra Industries  Inc.,Materials,5602.34,2/23/2024
Libra Industries  Inc.,Materials,2666.37,2/28/2024
Libra Industries  Inc.,Materials,26.18,3/1/2024
Libra Industries  Inc.,Materials,3788.5,3/6/2024
Libra Industries  Inc.,Materials,13147.26,3/13/2024
Libra Industries  Inc.,Materials,8707.35,3/20/2024
Linde Gas & Equipment Inc.,Materials,1080.14,1/1/2024
Linde Gas & Equipment Inc.,Materials,88.51,1/1/2024
Linde Gas & Equipment Inc.,Materials,51.5,1/1/2024
Linde Gas & Equipment Inc.,Materials,196,1/1/2024
Linde Gas & Equipment Inc.,Materials,290.43,1/12/2024
Linde Gas & Equipment Inc.,Materials,1296.56,1/12/2024
Linde Gas & Equipment Inc.,Materials,286,1/19/2024
Linde Gas & Equipment Inc.,Materials,393.49,1/29/2024
Linde Gas & Equipment Inc.,Materials,2877,1/29/2024
Linde Gas & Equipment Inc.,Materials,712.96,1/30/2024
Linde Gas & Equipment Inc.,Materials,445.89,1/30/2024
Linde Gas & Equipment Inc.,Materials,312,2/1/2024
Linde Gas & Equipment Inc.,Materials,326.12,2/1/2024
Linde Gas & Equipment Inc.,Materials,498.8,2/6/2024
Linde Gas & Equipment Inc.,Materials,63.32,2/16/2024
Linde Gas & Equipment Inc.,Materials,329.91,2/20/2024
Linde Gas & Equipment Inc.,Rental Expense,40,2/20/2024
Linde Gas & Equipment Inc.,Materials,49.98,2/20/2024
Linde Gas & Equipment Inc.,Materials,903.31,2/20/2024
Linde Gas & Equipment Inc.,Materials,4499.1,2/20/2024
Linde Gas & Equipment Inc.,Rental Expense,40,2/20/2024
Linde Gas & Equipment Inc.,Materials,232.9,2/20/2024
Linde Gas & Equipment Inc.,Materials,638.95,2/20/2024
Linde Gas & Equipment Inc.,Materials,897.46,2/22/2024
Linde Gas & Equipment Inc.,Materials,826.54,2/22/2024
Linde Gas & Equipment Inc.,Materials,206.91,2/22/2024
Linde Gas & Equipment Inc.,Materials,371.73,3/7/2024
Linde Gas & Equipment Inc.,Materials,1714.48,3/8/2024
Linde Gas & Equipment Inc.,Materials,176.18,3/19/2024
Linde Gas & Equipment Inc.,Materials,435.7,3/19/2024
Linde Gas & Equipment Inc.,Materials,645.43,3/19/2024
Linde Gas & Equipment Inc.,Materials,189.53,3/19/2024
Linovation Inc.,Capital Purchases,29628,1/1/2024
Linovation Inc.,Capital Purchases,12315,1/19/2024
Linovation Inc.,Capital Purchases,20160,2/13/2024
Linovation Inc.,Materials,22000,2/13/2024
Linovation Inc.,Materials,13750,2/20/2024
Linovation Inc.,Capital Purchases,15240,3/1/2024
Linovation Inc.,Materials,1074,3/1/2024
Linovation Inc.,Materials,4416.45,3/20/2024
Lisa D. Gibson,Services,65.59,2/27/2024
"LKH & S, Inc.",Services,195794,1/2/2024
"LKH & S, Inc.",Services,284196,1/9/2024
"LKH & S, Inc.",Services,295462,3/18/2024
"LKH & S, Inc.",Services,227719,3/20/2024
Lodakk Brown,Services,155.63,1/12/2024
Lodakk Brown,Services,106.13,2/5/2024
"LOGIK SYSTEMS, INC.",Services,146000,2/28/2024
Lookin Good Car Wash,Services,212,2/12/2024
Loram Maintenance Of Way  Inc.,Services,483.78,1/11/2024
Loram Maintenance Of Way  Inc.,Services,55982.5,3/14/2024
Loram Maintenance Of Way  Inc.,Materials,388361.53,3/15/2024
Loram Maintenance Of Way  Inc.,Materials,161562.02,3/15/2024
Lori K. Jones,Services,244,3/13/2024
Lynell Williams,Services,804,3/28/2024
Macon County Law Enforcement Training Center,Services,14800,1/23/2024
Maddox Industrial Transformer,Materials,19907,2/9/2024
Madell Consulting LLC,Services,5980,2/6/2024
Madell Consulting LLC,Services,1650,3/11/2024
Magnus  Llc,Materials,8644,1/1/2024
Magnus  Llc,Services,1190.07,2/2/2024
Magnus  Llc,Materials,10414,2/6/2024
Magnus  Llc,Materials,8800,2/20/2024
Magnus  Llc,Materials,8432,2/28/2024
Magnus  Llc,Materials,25126,3/19/2024
Magnus  Llc,Services,585.57,3/19/2024
Manley Bros. Of Indiana Inc.,Services,2825.2,1/11/2024
Manley Bros. Of Indiana Inc.,Services,2847.76,1/22/2024
Mansfield Oil Co. Of Gainesville In,Fuel,18091.41,1/1/2024
Mansfield Oil Co. Of Gainesville In,Fuel,17135.38,1/1/2024
Mansfield Oil Co. Of Gainesville In,Fuel,36200.4,1/2/2024
Mansfield Oil Co. Of Gainesville In,Fuel,315215.31,1/3/2024
Mansfield Oil Co. Of Gainesville In,Fuel,204216.14,1/4/2024
Mansfield Oil Co. Of Gainesville In,Fuel,229474.3,1/4/2024
Mansfield Oil Co. Of Gainesville In,Fuel,393180.87,1/4/2024
Mansfield Oil Co. Of Gainesville In,Fuel,130657.74,1/5/2024
Mansfield Oil Co. Of Gainesville In,Fuel,326376.46,1/5/2024
Mansfield Oil Co. Of Gainesville In,Fuel,37882.68,1/5/2024
Mansfield Oil Co. Of Gainesville In,Fuel,198491.88,1/8/2024
Mansfield Oil Co. Of Gainesville In,Fuel,231583.57,1/8/2024
Mansfield Oil Co. Of Gainesville In,Fuel,256285.23,1/8/2024
Mansfield Oil Co. Of Gainesville In,Fuel,67997.78,1/9/2024
Mansfield Oil Co. Of Gainesville In,Fuel,147005.84,1/10/2024
Mansfield Oil Co. Of Gainesville In,Fuel,17373.4,1/18/2024
Mansfield Oil Co. Of Gainesville In,Fuel,34492.1,1/18/2024
Mansfield Oil Co. Of Gainesville In,Fuel,95645.1,1/19/2024
Mansfield Oil Co. Of Gainesville In,Fuel,17147.27,1/19/2024
Mansfield Oil Co. Of Gainesville In,Fuel,535177.43,1/23/2024
Mansfield Oil Co. Of Gainesville In,Fuel,299968.67,1/23/2024
Mansfield Oil Co. Of Gainesville In,Fuel,150300.07,1/23/2024
Mansfield Oil Co. Of Gainesville In,Fuel,215353.55,1/23/2024
Mansfield Oil Co. Of Gainesville In,Fuel,129018.84,1/24/2024
Mansfield Oil Co. Of Gainesville In,Fuel,277614.13,1/25/2024
Mansfield Oil Co. Of Gainesville In,Fuel,643353.69,1/25/2024
Mansfield Oil Co. Of Gainesville In,Fuel,235662.35,1/26/2024
Mansfield Oil Co. Of Gainesville In,Fuel,279452.33,1/29/2024
Mansfield Oil Co. Of Gainesville In,Fuel,64012.81,2/1/2024
Mansfield Oil Co. Of Gainesville In,Fuel,63449.04,2/5/2024
Mansfield Oil Co. Of Gainesville In,Fuel,280208.95,2/5/2024
Mansfield Oil Co. Of Gainesville In,Fuel,59891.25,2/5/2024
Mansfield Oil Co. Of Gainesville In,Fuel,150109.23,2/6/2024
Mansfield Oil Co. Of Gainesville In,Fuel,185112.35,2/6/2024
Mansfield Oil Co. Of Gainesville In,Fuel,151680.13,2/6/2024
Mansfield Oil Co. Of Gainesville In,Fuel,220535.82,2/7/2024
Mansfield Oil Co. Of Gainesville In,Fuel,67805.44,2/7/2024
Mansfield Oil Co. Of Gainesville In,Fuel,230963.18,2/7/2024
Mansfield Oil Co. Of Gainesville In,Fuel,203313.25,2/7/2024
Mansfield Oil Co. Of Gainesville In,Fuel,117840.41,2/8/2024
Mansfield Oil Co. Of Gainesville In,Fuel,382249.37,2/8/2024
Mansfield Oil Co. Of Gainesville In,Fuel,84832.93,2/8/2024
Mansfield Oil Co. Of Gainesville In,Fuel,156802.64,2/9/2024
Mansfield Oil Co. Of Gainesville In,Fuel,151767.41,2/12/2024
Mansfield Oil Co. Of Gainesville In,Fuel,400345.69,2/12/2024
Mansfield Oil Co. Of Gainesville In,Fuel,226332.74,2/13/2024
Mansfield Oil Co. Of Gainesville In,Fuel,332025.69,2/13/2024
Mansfield Oil Co. Of Gainesville In,Fuel,107773.13,2/14/2024
Mansfield Oil Co. Of Gainesville In,Fuel,278669.61,2/14/2024
Mansfield Oil Co. Of Gainesville In,Fuel,85543.13,2/20/2024
Mansfield Oil Co. Of Gainesville In,Fuel,323612.88,2/21/2024
Mansfield Oil Co. Of Gainesville In,Fuel,408269.49,2/21/2024
Mansfield Oil Co. Of Gainesville In,Fuel,581807.71,2/21/2024
Mansfield Oil Co. Of Gainesville In,Fuel,64484.21,2/21/2024
Mansfield Oil Co. Of Gainesville In,Fuel,300763.2,2/22/2024
Mansfield Oil Co. Of Gainesville In,Fuel,278524.34,2/22/2024
Mansfield Oil Co. Of Gainesville In,Fuel,165687.86,2/26/2024
Mansfield Oil Co. Of Gainesville In,Fuel,246528.4,2/26/2024
Mansfield Oil Co. Of Gainesville In,Fuel,59723.52,2/26/2024
Mansfield Oil Co. Of Gainesville In,Fuel,74534.92,2/27/2024
Mansfield Oil Co. Of Gainesville In,Fuel,59558.08,2/27/2024
Mansfield Oil Co. Of Gainesville In,Fuel,76002.31,2/28/2024
Mansfield Oil Co. Of Gainesville In,Fuel,370413.67,2/28/2024
Mansfield Oil Co. Of Gainesville In,Fuel,42856.06,2/28/2024
Mansfield Oil Co. Of Gainesville In,Fuel,230938.08,3/1/2024
Mansfield Oil Co. Of Gainesville In,Fuel,112971.4,3/1/2024
Mansfield Oil Co. Of Gainesville In,Fuel,426181.94,3/1/2024
Mansfield Oil Co. Of Gainesville In,Fuel,75922.23,3/4/2024
Mansfield Oil Co. Of Gainesville In,Fuel,188914.06,3/4/2024
Mansfield Oil Co. Of Gainesville In,Fuel,39703.55,3/5/2024
Mansfield Oil Co. Of Gainesville In,Fuel,58520.19,3/6/2024
Mansfield Oil Co. Of Gainesville In,Fuel,215015.46,3/6/2024
Mansfield Oil Co. Of Gainesville In,Fuel,349469.17,3/7/2024
Mansfield Oil Co. Of Gainesville In,Fuel,85857.39,3/8/2024
Mansfield Oil Co. Of Gainesville In,Fuel,324233.57,3/11/2024
Mansfield Oil Co. Of Gainesville In,Fuel,257515.83,3/11/2024
Mansfield Oil Co. Of Gainesville In,Fuel,38843.1,3/11/2024
Mansfield Oil Co. Of Gainesville In,Fuel,257987.24,3/12/2024
Mansfield Oil Co. Of Gainesville In,Fuel,64522.75,3/12/2024
Mansfield Oil Co. Of Gainesville In,Fuel,235712.76,3/13/2024
Mansfield Oil Co. Of Gainesville In,Fuel,85709.15,3/14/2024
Mansfield Oil Co. Of Gainesville In,Fuel,128660.06,3/15/2024
Mansfield Oil Co. Of Gainesville In,Fuel,64081,3/18/2024
Mansfield Oil Co. Of Gainesville In,Fuel,42704.86,3/18/2024
Mansfield Oil Co. Of Gainesville In,Fuel,85694.33,3/19/2024
Mansfield Oil Co. Of Gainesville In,Fuel,128734.21,3/19/2024
Mansfield Oil Co. Of Gainesville In,Fuel,444928.37,3/19/2024
Mansfield Oil Co. Of Gainesville In,Fuel,209609.14,3/20/2024
Mansfield Oil Co. Of Gainesville In,Fuel,107020.07,3/21/2024
Mansfield Oil Co. Of Gainesville In,Fuel,320037.37,3/22/2024
Mansfield Oil Co. Of Gainesville In,Fuel,16299.92,3/25/2024
Mansfield Oil Co. Of Gainesville In,Fuel,171359.01,3/26/2024
Mansfield Oil Co. Of Gainesville In,Fuel,10735.46,3/27/2024
Mansfield Oil Co. Of Gainesville In,Fuel,106809.58,3/27/2024
Marco Supply Company,Materials,255.41,1/1/2024
Marco Supply Company,Materials,208.2,1/8/2024
Marco Supply Company,Materials,34.79,1/11/2024
Marco Supply Company,Materials,9.2,1/16/2024
Marco Supply Company,Materials,417.6,2/1/2024
Marco Supply Company,Materials,31.92,2/5/2024
Marco Supply Company,Materials,669.3,2/12/2024
Marco Supply Company,Materials,70.06,2/16/2024
Marco Supply Company,Materials,212.8,2/20/2024
Marco Supply Company,Materials,1556.24,2/20/2024
Marco Supply Company,Materials,339.75,2/22/2024
Marco Supply Company,Materials,498,2/28/2024
Marco Supply Company,Materials,128.65,3/19/2024
Marcus Craighead,Services,24.89,1/11/2024
Marcus Craighead,Services,76.38,2/12/2024
Marcus Craighead,Services,25.46,3/14/2024
Marcus Craighead,Services,25.46,3/14/2024
Margaret Lipsky,Services,3696.5,1/16/2024
Mark A. Rotundo,Services,14.74,2/20/2024
Mark A. Rotundo,Services,14.74,2/20/2024
Mark A. Rotundo,Services,101.84,3/19/2024
Mark Alexander,Services,48.47,1/22/2024
Mark Graehling,Services,86.87,1/12/2024
Mark Graehling,Services,310.5,1/12/2024
Marshall Beecher,Services,68.25,1/12/2024
Marshall Beecher,Services,83.62,1/25/2024
Marshall Beecher,Services,90.18,2/12/2024
Marshall Beecher,Services,44.09,3/12/2024
Marshall Beecher,Services,93,3/26/2024
Martha Hill,Services,106.73,3/4/2024
Martha Hill,Services,259,3/4/2024
Martin Killarney,Services,135.58,2/2/2024
Martin Killarney,Services,197.5,2/2/2024
Martin Killarney,Services,486.42,2/2/2024
Martin Killarney,Services,72.36,3/4/2024
Mary Bucki,Services,259,2/20/2024
Mary Bucki,Services,343.06,2/20/2024
Mary Bucki,Services,162.19,2/20/2024
Matt Roth,Services,77.72,2/20/2024
Matt Roth,Services,25.46,2/20/2024
Matt Roth,Services,25.46,2/26/2024
Matthew Ellington,Services,121.9,2/26/2024
Matthew Ellington,Services,56.28,2/26/2024
Matthew Ellington,Services,80.4,3/14/2024
Matthew Ellington,Services,61.64,3/14/2024
Matthew Ellington,Services,13.4,3/14/2024
Matthew Koszulinski,Services,1495,3/12/2024
Maywood Industries  Inc.,Materials,3300,3/13/2024
McCann Industries  Inc.,Materials,546.46,1/2/2024
McCann Industries  Inc.,Services,836.5,1/3/2024
McCann Industries  Inc.,Materials,980.53,1/5/2024
McCann Industries  Inc.,Services,8104.03,1/5/2024
McCann Industries  Inc.,Materials,1001.64,1/19/2024
McCann Industries  Inc.,Materials,3100,1/22/2024
McCann Industries  Inc.,Materials,640,2/1/2024
McCann Industries  Inc.,Materials,1518.19,2/2/2024
McCann Industries  Inc.,Materials,402.86,2/5/2024
McCann Industries  Inc.,Services,777.75,2/9/2024
McCann Industries  Inc.,Materials,2695.8,2/20/2024
McCann Industries  Inc.,Services,3006.34,2/20/2024
McCann Industries  Inc.,Materials,3004.49,3/11/2024
McCann Industries  Inc.,Materials,1203.71,3/18/2024
McCann Industries  Inc.,Services,254,3/18/2024
Mccorkle Litigation Services  Inc.,Services,465,1/3/2024
Mccorkle Litigation Services  Inc.,Services,239.75,1/22/2024
Mccorkle Litigation Services  Inc.,Services,303.6,1/22/2024
Mccorkle Litigation Services  Inc.,Services,585.2,1/23/2024
Mccorkle Litigation Services  Inc.,Services,452.45,1/25/2024
Mccorkle Litigation Services  Inc.,Services,703.5,2/1/2024
Mccorkle Litigation Services  Inc.,Services,235.3,2/1/2024
Mccorkle Litigation Services  Inc.,Services,239.75,3/1/2024
Mccorkle Litigation Services  Inc.,Services,778.75,3/14/2024
Mccorkle Litigation Services  Inc.,Services,455,3/15/2024
Mccorkle Litigation Services  Inc.,Services,260,3/19/2024
Mccorkle Litigation Services  Inc.,Services,952.15,3/21/2024
Mccorkle Litigation Services  Inc.,Services,3193.6,3/28/2024
McHenry County Council of Governments,Services,1500,1/18/2024
MCLE Board C/O Inb Processing Centr,Services,15,3/13/2024
Mcmaster Carr Supply Corp.,Materials,70.72,1/1/2024
Mcmaster Carr Supply Corp.,Materials,3790.76,1/1/2024
Mcmaster Carr Supply Corp.,Materials,369.9,1/1/2024
Mcmaster Carr Supply Corp.,Materials,922.62,1/1/2024
Mcmaster Carr Supply Corp.,Materials,1895.38,1/1/2024
Mcmaster Carr Supply Corp.,Materials,8286.4,1/5/2024
Mcmaster Carr Supply Corp.,Materials,319.17,1/5/2024
Mcmaster Carr Supply Corp.,Materials,3497.52,1/9/2024
Mcmaster Carr Supply Corp.,Materials,2203.34,1/11/2024
Mcmaster Carr Supply Corp.,Materials,744.21,1/19/2024
Mcmaster Carr Supply Corp.,Materials,2497.86,2/1/2024
Mcmaster Carr Supply Corp.,Materials,535.08,2/1/2024
Mcmaster Carr Supply Corp.,Materials,926.1,2/2/2024
Mcmaster Carr Supply Corp.,Materials,418.73,2/2/2024
Mcmaster Carr Supply Corp.,Materials,872.95,2/2/2024
Mcmaster Carr Supply Corp.,Materials,287.3,2/2/2024
Mcmaster Carr Supply Corp.,Materials,33.66,2/2/2024
Mcmaster Carr Supply Corp.,Materials,484.11,2/2/2024
Mcmaster Carr Supply Corp.,Materials,492.85,2/9/2024
Mcmaster Carr Supply Corp.,Materials,3093.5,2/9/2024
Mcmaster Carr Supply Corp.,Materials,1583.68,2/16/2024
Mcmaster Carr Supply Corp.,Materials,753.1,2/21/2024
Mcmaster Carr Supply Corp.,Materials,1088.34,3/1/2024
Mcmaster Carr Supply Corp.,Materials,259.91,3/1/2024
Mcmaster Carr Supply Corp.,Materials,513,3/1/2024
Mcmaster Carr Supply Corp.,Materials,754.33,3/1/2024
Mcmaster Carr Supply Corp.,Materials,138.49,3/1/2024
Mcmaster Carr Supply Corp.,Materials,809.14,3/19/2024
Mcmaster Carr Supply Corp.,Materials,2094.75,3/19/2024
Mcmaster Carr Supply Corp.,Materials,1074.13,3/19/2024
"Meade, Inc.",Claims & Insurance,2286.32,1/23/2024
"Mesirow Financial Investment Management, Inc.",Services,4037.43,1/8/2024
Meteorcomm  Llc,Services,398143,2/21/2024
Metropolitan Water Reclamation District Of Greater Chicago,Utilities,7755.53,1/16/2024
Michael Bania,Services,3.22,3/19/2024
Michael Bania,Services,523.5,3/19/2024
Michael Bania,Services,206.5,3/19/2024
Michael Clifton,Services,149.21,1/3/2024
Michael Clifton,Services,537.89,1/9/2024
Michael Clifton,Services,213.21,1/16/2024
Michael Forneris,Services,331.46,1/22/2024
Michael Forneris,Services,147.5,1/22/2024
Michael Forneris,Services,49.71,3/19/2024
Michael Forneris,Services,60,3/19/2024
Michael Forneris,Services,847.65,3/19/2024
Michael Forneris,Services,241.5,3/19/2024
Michael Hernandez,Services,83.75,3/14/2024
Michal A. Dering,Services,148.95,1/11/2024
Michal A. Dering,Services,624.98,2/12/2024
Michal A. Dering,Services,491.71,3/14/2024
Michelle J. Harris,Services,39.3,1/4/2024
Michels Road & Stone Inc.,Materials,2632.26,1/1/2024
Michels Road & Stone Inc.,Materials,50371.2,1/2/2024
Michels Road & Stone Inc.,Materials,5626.47,1/19/2024
Michels Road & Stone Inc.,Claims & Insurance,3921.6,1/23/2024
Michels Road & Stone Inc.,Materials,92211.26,2/2/2024
Michigan Plaza  LLC C/O Mb Real Estate,Rental Expense,304.38,1/10/2024
Michigan Plaza  LLC C/O Mb Real Estate,Rental Expense,279.73,2/2/2024
Michigan Plaza  LLC C/O Mb Real Estate,Rental Expense,312.02,3/4/2024
Micro-Aide Corp.,Capital Purchases,5800,3/19/2024
Mid-American Elevator Co. Inc.,Services,1074,1/1/2024
Mid-American Elevator Co. Inc.,Services,21506.86,1/1/2024
Mid-American Elevator Co. Inc.,Services,12082.98,1/1/2024
Mid-American Elevator Co. Inc.,Services,716,2/1/2024
Mid-American Elevator Co. Inc.,Services,6016.04,2/1/2024
Mid-American Elevator Co. Inc.,Services,179,3/1/2024
Mid-American Elevator Co. Inc.,Services,25513.25,3/1/2024
Mid-American Elevator Co. Inc.,Services,537,3/1/2024
Mid-American Elevator Co. Inc.,Materials,1608.65,3/1/2024
Mid-American Elevator Co. Inc.,Services,895,3/1/2024
Mid-American Elevator Co. Inc.,Services,537,3/1/2024
Mid-American Elevator Co. Inc.,Materials,155.79,3/11/2024
Mid-American Elevator Co. Inc.,Services,537,3/11/2024
Mid-American Elevator Co. Inc.,Services,8933,3/11/2024
Mid-American Elevator Co. Inc.,Services,358,3/11/2024
Mid-American Elevator Co. Inc.,Services,179,3/11/2024
Mid-American Elevator Co. Inc.,Services,3938,3/14/2024
Mid-American Elevator Co. Inc.,Materials,716,3/19/2024
Mid-American Elevator Co. Inc.,Materials,179,3/19/2024
Mid-American Elevator Co. Inc.,Services,537,3/19/2024
Mid-American Elevator Co. Inc.,Services,358,3/22/2024
Mid-American Elevator Co. Inc.,Services,767.25,3/22/2024
Mid-American Elevator Co. Inc.,Materials,179,3/22/2024
Mid-American Elevator Co. Inc.,Services,268.5,3/22/2024
Midco Electric Supply,Capital Purchases,1395,3/19/2024
Midco Electric Supply,Capital Purchases,3720,3/19/2024
Mid-States Organized Crime Info Ctr,Services,300,2/5/2024
Midway Moving And Storage,Services,2160,1/2/2024
Midway Moving And Storage,Services,1080,1/5/2024
Midway Moving And Storage,Services,2699,1/9/2024
Midway Moving And Storage,Services,360,1/11/2024
Midway Moving And Storage,Services,360,1/12/2024
Midway Moving And Storage,Services,1080,2/5/2024
Midway Moving And Storage,Services,1440,2/6/2024
Midway Moving And Storage,Services,1080,2/9/2024
Midway Moving And Storage,Services,720,2/16/2024
Midway Moving And Storage,Services,1440,2/21/2024
Midway Moving And Storage,Services,720,2/29/2024
Midway Moving And Storage,Services,1440,3/15/2024
Midway Moving And Storage,Services,2880,3/19/2024
Midwest Animal Hospital,Services,168,2/1/2024
Midwest Animal Hospital,Services,584.76,2/2/2024
Midwest Animal Hospital,Services,286.4,2/21/2024
Midwest Animal Hospital,Services,1314.6,3/14/2024
Midwest Business Group on Health,Services,1650,2/5/2024
Midwest Business Group on Health,Services,699,2/21/2024
Midwest Industrial Supply  Inc.,Materials,1046,1/1/2024
Midwest Industrial Supply  Inc.,Materials,1046,1/26/2024
Midwest Industrial Supply  Inc.,Materials,3138,2/21/2024
Miguel A Chavez,Services,621.5,1/9/2024
Miguel A Chavez,Services,169.5,1/30/2024
Miguel A Ochoa,Services,621.5,1/9/2024
Miguel A Ochoa,Services,508.5,1/30/2024
Miguel A Ochoa,Services,56.5,2/13/2024
Miguel A Ochoa,Services,1582,2/22/2024
Miguel A Ochoa,Services,56.5,2/29/2024
Miguel A Ochoa,Services,847.5,3/14/2024
Miguel A. Diaz,Services,80.4,2/27/2024
Miguel A. Diaz,Services,40.2,2/27/2024
Minya Coleman,Claims & Insurance,6.75,3/19/2024
Minya Coleman,Services,135.92,3/21/2024
Minya Coleman,Services,333,3/21/2024
Minya Coleman,Claims & Insurance,6.5,3/21/2024
Minya Coleman,Services,12.86,3/21/2024
Mitchell Instrument Co.,Materials,2350.84,3/15/2024
Mitchell Instrument Co.,Services,59.48,3/15/2024
Mittler Corporation DBA Mittler Bros. Machine & Tool,Services,313.35,2/27/2024
Mittler Corporation DBA Mittler Bros. Machine & Tool,Materials,8800,2/27/2024
"MNJ Technologies Direct, Inc.",Capital Purchases,1904,1/1/2024
"MNJ Technologies Direct, Inc.",Capital Purchases,3969,1/1/2024
"MNJ Technologies Direct, Inc.",Capital Purchases,2397.07,2/1/2024
"MNJ Technologies Direct, Inc.",Services,15757,2/1/2024
Mobile Office  Inc.,Capital Purchases,1050,1/1/2024
Mobile Office  Inc.,Capital Purchases,2100,1/1/2024
Mobile Office  Inc.,Capital Purchases,1050,2/1/2024
Mobile Office  Inc.,Capital Purchases,1050,2/21/2024
Mobile Office  Inc.,Capital Purchases,2100,3/11/2024
Mobile Office  Inc.,Capital Purchases,1050,3/19/2024
"Modern Railway Systems, Inc.",Services,90424.12,1/12/2024
"Modern Railway Systems, Inc.",Capital Purchases,30888,1/24/2024
"Modern Railway Systems, Inc.",Capital Purchases,55053,2/1/2024
"Modern Railway Systems, Inc.",Capital Purchases,17388,3/1/2024
"Modern Railway Systems, Inc.",Services,122891.63,3/1/2024
"Modern Railway Systems, Inc.",Capital Purchases,130473,3/13/2024
"Modern Railway Systems, Inc.",Services,456589.13,3/19/2024
"Morgan Park Auto Service, Inc.",Materials,7525.63,2/1/2024
"Morgan Park Auto Service, Inc.",Services,15498.46,2/1/2024
"Morgan Park Auto Service, Inc.",Materials,16552.21,2/9/2024
"Morgan Park Auto Service, Inc.",Services,8318.8,2/9/2024
"Morgan Park Auto Service, Inc.",Services,945,2/21/2024
"Morgan Park Auto Service, Inc.",Materials,5368.52,2/21/2024
"Morgan Park Auto Service, Inc.",Services,4308.78,2/21/2024
"Morgan Park Auto Service, Inc.",Materials,44.45,3/1/2024
"Morgan Park Auto Service, Inc.",Services,325.95,3/1/2024
"Morgan Park Auto Service, Inc.",Services,450,3/13/2024
"Morgan Park Auto Service, Inc.",Materials,13107.06,3/13/2024
"Morgan Park Auto Service, Inc.",Services,11615.75,3/13/2024
"Morgan Park Auto Service, Inc.",Services,6133.35,3/19/2024
"Morgan Park Auto Service, Inc.",Materials,5807.24,3/19/2024
"Morgan Park Auto Service, Inc.",Services,2086.9,3/19/2024
"Morgan Park Auto Service, Inc.",Materials,1288.07,3/19/2024
"Morgan Park Auto Service, Inc.",Services,1980,3/28/2024
"Morgan Park Auto Service, Inc.",Materials,2312.57,3/28/2024
"Morgan Park Auto Service, Inc.",Services,3505.95,3/28/2024
Morton Salt Co.,Materials,1625.84,1/8/2024
Morton Salt Co.,Materials,1697.19,1/8/2024
Morton Salt Co.,Materials,1684.96,1/11/2024
Morton Salt Co.,Materials,1723.26,1/12/2024
Morton Salt Co.,Materials,1567.32,1/19/2024
Morton Salt Co.,Materials,5118.76,2/2/2024
Morton Salt Co.,Materials,3196.59,2/2/2024
Morton Salt Co.,Materials,6672.56,2/2/2024
Morton Salt Co.,Materials,1669.67,2/2/2024
Morton Salt Co.,Materials,1580.09,2/2/2024
Morton Salt Co.,Materials,1632.68,2/2/2024
Morton Suggestion Co.,Services,2940.54,1/1/2024
Morton Suggestion Co.,Materials,2699.96,1/18/2024
Morton Suggestion Co.,Materials,6288,2/2/2024
Morton Suggestion Co.,Services,1044,2/2/2024
Morton Suggestion Co.,Services,7163.5,2/5/2024
Morton Suggestion Co.,Services,819.7,2/5/2024
Morton Suggestion Co.,Services,1111.44,2/6/2024
Morton Suggestion Co.,Services,2989.36,2/7/2024
Morton Suggestion Co.,Materials,27994.97,3/1/2024
Morton Suggestion Co.,Services,439.82,3/1/2024
Morton Suggestion Co.,Services,217.12,3/1/2024
Morton Suggestion Co.,Materials,4060,3/19/2024
Morton Suggestion Co.,Services,1625,3/19/2024
Morton Suggestion Co.,Materials,18726.93,3/19/2024
Morton Suggestion Co.,Claims & Insurance,5336.3,3/27/2024
Moses F. Tillman,Services,110.75,2/1/2024
"Motion & Control Enterprises, LLC",Materials,2466.23,1/1/2024
"Motion & Control Enterprises, LLC",Materials,1277.35,1/4/2024
"Motion & Control Enterprises, LLC",Materials,89.41,1/5/2024
"Motion & Control Enterprises, LLC",Materials,414.51,2/2/2024
"Motion & Control Enterprises, LLC",Materials,499.6,2/8/2024
"Motion & Control Enterprises, LLC",Materials,716.53,2/21/2024
"Motion & Control Enterprises, LLC",Materials,2215.52,3/14/2024
Motion Industries  Inc.,Materials,220,1/2/2024
Motion Industries  Inc.,Materials,1057.54,1/9/2024
Motion Industries  Inc.,Materials,7647.39,2/1/2024
Motion Industries  Inc.,Materials,436.59,2/2/2024
Motion Industries  Inc.,Materials,11448.33,2/9/2024
Motion Industries  Inc.,Materials,1400,2/12/2024
Motion Industries  Inc.,Materials,1379.4,3/19/2024
Motion Industries  Inc.,Materials,436.59,3/21/2024
MP2 Energy NE LLC DBA Shell Energy Solutions,Utilities,925903.33,2/7/2024
MP2 Energy NE LLC DBA Shell Energy Solutions,Utilities,1082381.61,2/7/2024
MP2 Energy NE LLC DBA Shell Energy Solutions,Utilities,993480.09,2/28/2024
MP2 Energy NE LLC DBA Shell Energy Solutions,Utilities,133101.07,3/8/2024
MSC Industrial Supply,Materials,2344.5,1/8/2024
MSC Industrial Supply,Materials,418.92,1/12/2024
MSC Industrial Supply,Materials,3515,1/16/2024
MSC Industrial Supply,Materials,3664,2/5/2024
MSC Industrial Supply,Materials,2085.35,3/19/2024
MSC Industrial Supply,Materials,4383.93,3/19/2024
MSC Industrial Supply,Materials,2065.4,3/19/2024
MSC Industrial Supply,Materials,1359.79,3/25/2024
MSC Industrial Supply,Materials,564.63,3/25/2024
MSC Industrial Supply,Materials,152.96,3/28/2024
Mth Industries,Services,1043.7,1/1/2024
Mth Industries,Materials,994.54,1/1/2024
Mth Industries,Services,3835,1/1/2024
Mth Industries,Services,3228.42,1/3/2024
Mth Industries,Services,1857.25,2/1/2024
Mth Industries,Materials,506.05,2/1/2024
Mth Industries,Services,2058.42,2/1/2024
Mth Industries,Services,1040,2/1/2024
Mth Industries,Materials,235.2,3/1/2024
Mth Industries,Services,2748.9,3/1/2024
Mtm Recognition Corp,Services,635.66,1/12/2024
Mtm Recognition Corp,Services,1337.32,2/2/2024
Mtm Recognition Corp,Services,2693.05,2/5/2024
Mtm Recognition Corp,Services,2658.83,2/5/2024
Mtm Recognition Corp,Services,111.85,2/5/2024
Mtm Recognition Corp,Services,1688.84,2/28/2024
Mtm Recognition Corp,Services,1337.32,3/25/2024
Mtm Recognition Corp,Services,1421.73,3/25/2024
Muller & Muller  Ltd.,Capital Purchases,12338.77,1/5/2024
Muller & Muller  Ltd.,Capital Purchases,305707.57,2/1/2024
Muller & Muller  Ltd.,Capital Purchases,6717.04,2/14/2024
Multi-Service Supply,Materials,390.05,1/9/2024
Multi-Service Supply,Services,2580,1/9/2024
Nak-Man Corp.,Materials,2783.5,1/1/2024
Nak-Man Corp.,Materials,0,1/1/2024
Nak-Man Corp.,Materials,6121.14,1/1/2024
Nak-Man Corp.,Materials,0,1/1/2024
Nak-Man Corp.,Materials,4000.86,1/1/2024
Nak-Man Corp.,Materials,0,1/1/2024
Nak-Man Corp.,Materials,16131.4,1/1/2024
Nak-Man Corp.,Materials,7200,1/11/2024
Nak-Man Corp.,Materials,3662.4,1/17/2024
Nak-Man Corp.,Materials,11983.26,1/29/2024
Nak-Man Corp.,Materials,7561.7,2/1/2024
Nak-Man Corp.,Materials,29855.51,2/1/2024
Nak-Man Corp.,Services,677,2/13/2024
Nak-Man Corp.,Materials,12183,2/13/2024
Nak-Man Corp.,Materials,1169.3,2/13/2024
Nak-Man Corp.,Materials,6861.2,2/14/2024
Nak-Man Corp.,Materials,886.32,2/14/2024
Nak-Man Corp.,Materials,125,2/26/2024
Nak-Man Corp.,Materials,933.1,2/26/2024
Nak-Man Corp.,Materials,10420,2/26/2024
Nak-Man Corp.,Materials,1256.4,3/1/2024
Nak-Man Corp.,Materials,7883.5,3/5/2024
Nak-Man Corp.,Materials,11276.16,3/5/2024
Nak-Man Corp.,Materials,1478.58,3/19/2024
Nak-Man Corp.,Materials,3550.5,3/19/2024
Nana Bekoe,Services,15.72,1/11/2024
Nana Bekoe,Services,60.26,1/11/2024
Nana Bekoe,Services,48.24,2/15/2024
Nana Bekoe,Services,61.64,2/15/2024
Nana Bekoe,Services,48.24,3/14/2024
Nasco Industries,Services,66.4,3/8/2024
Nasco Industries,Materials,1668,3/8/2024
Nathan Airchime  Inc.,Materials,9480,1/29/2024
NATHAN CORTES,Services,1258,3/25/2024
NATHAN STEEN,,30,2/6/2024
"Nathaniel Russell, Jr",Services,193.5,2/13/2024
"Nathaniel Russell, Jr",Services,174.87,3/12/2024
National Electric Gate Co.  Inc.,Materials,5815,2/13/2024
National Electric Gate Co.  Inc.,Materials,5815,2/13/2024
National Electric Gate Co.  Inc.,Materials,736,3/5/2024
National Electrical Carbon Products dba Morgan Advanced Materials,Materials,4438.8,1/1/2024
National Electrical Carbon Products dba Morgan Advanced Materials,Materials,2613.96,1/11/2024
National Electrical Carbon Products dba Morgan Advanced Materials,Materials,2729.04,1/16/2024
National Electrical Carbon Products dba Morgan Advanced Materials,Materials,476.76,1/19/2024
National Electrical Carbon Products dba Morgan Advanced Materials,Materials,4932,2/1/2024
National Electrical Carbon Products dba Morgan Advanced Materials,Materials,1972.8,2/5/2024
National Electrical Carbon Products dba Morgan Advanced Materials,Materials,4603.2,2/26/2024
National Electrical Carbon Products dba Morgan Advanced Materials,Materials,9042,3/1/2024
National Electrical Carbon Products dba Morgan Advanced Materials,Materials,7965.18,3/19/2024
National Electrical Carbon Products dba Morgan Advanced Materials,Materials,1076.82,3/28/2024
National Gear Repair,Capital Purchases,59500,2/13/2024
National Gear Repair,Services,59500,2/14/2024
National Lst Services Corp.,Claims & Insurance,3600,2/15/2024
National Railroad Passenger Corp,Services,75341.52,1/3/2024
National Railroad Passenger Corp,Rental Expense,988263.47,1/3/2024
National Railroad Passenger Corp,Services,34765.56,1/12/2024
National Railroad Passenger Corp,Rental Expense,1976526.94,1/12/2024
National Railroad Passenger Corp,Services,749676,1/18/2024
National Railroad Passenger Corp,Claims & Insurance,1040620,1/18/2024
National Railroad Passenger Corp,Services,36072.9,1/24/2024
National Railroad Passenger Corp,Rental Expense,988263.47,2/29/2024
National Railroad Passenger Corp,Services,38445.48,3/7/2024
National Railroad Passenger Corp,Rental Expense,988263.47,3/28/2024
National Railroad Passenger Corp.,Capital Purchases,139220.08,1/29/2024
National Railway Labor Conference,Services,17825.34,1/12/2024
Natural Settings & Design,Services,288.25,1/17/2024
Natural Settings & Design,Services,288.25,2/14/2024
Natural Settings & Design,Services,288.25,3/19/2024
"NAVEX Global, Inc.",Services,21817.43,1/19/2024
Neal & Leroy  LLC,Services,7931.25,1/29/2024
Neal & Leroy  LLC,Services,5.6,2/2/2024
Neal & Leroy  LLC,Services,24468.75,2/2/2024
Neal & Leroy  LLC,Services,10687.5,3/5/2024
Neal & Leroy  LLC,Services,225,3/5/2024
Neher Electric Supply Inc.,Materials,11226.3,2/13/2024
Neher Electric Supply Inc.,Materials,1881,2/14/2024
Neher Electric Supply Inc.,Materials,1281.15,2/26/2024
Neher Electric Supply Inc.,Materials,5734.8,3/11/2024
Neher Electric Supply Inc.,Materials,47.6,3/28/2024
Newark Element14,Materials,667.96,1/18/2024
Nicholas L. Boss,Services,508.5,1/9/2024
Nicholas L. Boss,Services,169.5,1/11/2024
Nicor Gas,Utilities,366.28,1/3/2024
Nicor Gas,Utilities,5077.46,1/5/2024
Nicor Gas,Utilities,7450.38,1/5/2024
Nicor Gas,Utilities,1399.9,1/8/2024
Nicor Gas,Utilities,960.56,1/9/2024
Nicor Gas,Utilities,831.61,1/12/2024
Nicor Gas,Utilities,2653.41,1/12/2024
Nicor Gas,Utilities,53.27,1/16/2024
Nicor Gas,Utilities,9041.07,1/17/2024
Nicor Gas,Utilities,8394.24,1/18/2024
Nicor Gas,Utilities,264.25,1/18/2024
Nicor Gas,Utilities,1564.81,1/29/2024
Nicor Gas,Utilities,14757.93,2/1/2024
Nicor Gas,Utilities,27185.16,2/5/2024
Nicor Gas,Utilities,32173.24,2/9/2024
Nicor Gas,Utilities,9779.71,2/9/2024
Nicor Gas,Utilities,12731.54,2/22/2024
Nicor Gas,Utilities,13225.21,2/23/2024
Nicor Gas,Utilities,12579.28,3/5/2024
Nicor Gas,Utilities,51606.27,3/5/2024
Nicor Gas,Utilities,88.16,3/8/2024
Nicor Gas,Utilities,14046.36,3/11/2024
Nicor Gas,Utilities,1373.18,3/13/2024
Nicor Gas,Utilities,11267.64,3/20/2024
Nicor Gas,Utilities,4411.68,3/27/2024
Niesha Martin,Services,27.51,1/23/2024
Niesha Martin,Services,205.02,2/21/2024
Niesha Martin,Services,105.86,3/13/2024
Nina Lewis,Services,82.21,3/20/2024
Nora Systems  Inc.,Materials,648.6,1/2/2024
Nora Systems  Inc.,Materials,9080.4,3/11/2024
Nordco Inc.,Materials,20352.47,2/26/2024
Nordco Inc.,Materials,32910.26,3/5/2024
Nordco Inc.,Materials,257.75,3/5/2024
Nordco Inc.,Materials,2639.68,3/5/2024
Nordco Inc.,Materials,1599.12,3/6/2024
Nordco Inc.,Materials,8877.23,3/11/2024
Nordco Inc.,Materials,3671.2,3/19/2024
Norfolk Southern Corp. Alicia Katusich,Services,86912.51,1/2/2024
Norfolk Southern Corp. Alicia Katusich,Services,410422.5,1/9/2024
Norfolk Southern Corp. Alicia Katusich,Services,173825.02,2/22/2024
Norfolk Southern Corp. Alicia Katusich,Services,391106.25,3/21/2024
Norfolk Southern Corp. Alicia Katusich,Services,86912.51,3/22/2024
North American Equipment Sales,Rental Expense,61590,1/2/2024
North American Equipment Sales,Rental Expense,15964,1/23/2024
North American Equipment Sales,Rental Expense,17975,2/13/2024
North East Multi Regional Training,Services,125,1/2/2024
North East Multi Regional Training,Services,1125,1/2/2024
North East Multi Regional Training,Services,1050,1/8/2024
North East Multi Regional Training,Services,70,2/6/2024
North Shore Gas,Utilities,2936.1,1/22/2024
North Shore Gas,Utilities,95.14,2/12/2024
North Shore Gas,Utilities,398.69,2/12/2024
North Shore Gas,Utilities,2437.15,2/12/2024
North Shore Gas,Utilities,3600.87,3/6/2024
North Shore Gas,Utilities,2632.32,3/27/2024
North Shore Gas,Utilities,8514.28,3/28/2024
North Shore Water Reclamation Dist,Utilities,46.42,1/9/2024
North Shore Water Reclamation Dist,Utilities,27.21,3/7/2024
North Suburban Assn-Chiefs Of Police,Services,200,1/3/2024
North Suburban Assn-Chiefs Of Police,Services,200,1/3/2024
Northern Illinois University,Services,1350,3/21/2024
Northern Indiana Commuter,Services,616666.66,3/11/2024
Northern Indiana Commuter,Services,308333.33,3/11/2024
Northern Tool & Equipment,Capital Purchases,5988.06,1/1/2024
Northern Tool & Equipment,Materials,2477,3/28/2024
Northwestern University,Services,1145,3/26/2024
Northwestern University Center For Public Safety,Services,1100,1/23/2024
Northwestern University Center For Public Safety,Services,4300,3/26/2024
NSH USA Corporation,Materials,6600,2/26/2024
NSH USA Corporation,Materials,1872.5,2/26/2024
NSH USA Corporation,Materials,3300,3/19/2024
NSH USA Corporation,Materials,2140,3/19/2024
Occupational Health Centers Of Illinois  P.C.,Services,10579,1/2/2024
Occupational Health Centers Of Illinois  P.C.,Services,164,1/10/2024
Occupational Health Centers Of Illinois  P.C.,Services,105,1/10/2024
Occupational Health Centers Of Illinois  P.C.,Services,60,1/11/2024
Occupational Health Centers Of Illinois  P.C.,Services,6067,1/17/2024
Occupational Health Centers Of Illinois  P.C.,Services,390,1/19/2024
Occupational Health Centers Of Illinois  P.C.,Services,30,1/23/2024
Occupational Health Centers Of Illinois  P.C.,Services,13006.5,2/20/2024
Occupational Health Centers Of Illinois  P.C.,Services,1125,2/20/2024
Occupational Health Centers Of Illinois  P.C.,Services,315,2/20/2024
Occupational Health Centers Of Illinois  P.C.,Services,78,2/26/2024
Occupational Health Centers Of Illinois  P.C.,Services,279.5,3/6/2024
Occupational Health Centers Of Illinois  P.C.,Services,10240.5,3/28/2024
Ohio Crankshaft Co. Park-Ohio Industries Inc.,Materials,3990,1/1/2024
"Omni Care Group, Inc.",Materials,1198.6,1/29/2024
"Omni Care Group, Inc.",Materials,51.45,2/26/2024
"Omni Care Group, Inc.",Materials,5.26,3/19/2024
Omni-Pump Repairs  Inc.,Materials,24289.6,1/1/2024
Omni-Pump Repairs  Inc.,Materials,9401.58,1/1/2024
Omni-Pump Repairs  Inc.,Services,3800,1/1/2024
Omni-Pump Repairs  Inc.,Materials,4664,2/14/2024
Orgo-Thermit  Inc.,Materials,10260,2/1/2024
Orgo-Thermit  Inc.,Materials,620.62,3/11/2024
Oriental Trading Company,Services,951.83,2/1/2024
Oriental Trading Company,Services,95.18,2/1/2024
ORX Railway Corp. dba ORX,Capital Purchases,133770,1/2/2024
ORX Railway Corp. dba ORX,Services,4786,2/13/2024
"OZINGA READY MIX CONCRETE, INC.",Services,1380,1/1/2024
"OZINGA READY MIX CONCRETE, INC.",Services,2700.38,1/5/2024
Pace,Services,21922.5,1/8/2024
Pace,Services,3042,1/12/2024
Pace,Services,1140.2,2/21/2024
Pace,Services,1858.5,2/27/2024
Pace,Services,23761.75,3/11/2024
Pace,Services,373.5,3/26/2024
Pan-Oceanic Engineering Co  Inc.,Capital Purchases,72880.55,2/1/2024
Pan-Oceanic Engineering Co  Inc.,Services,2874.99,2/1/2024
Pan-Oceanic Engineering Co  Inc.,Capital Purchases,22942.11,2/1/2024
Pan-Oceanic Engineering Co  Inc.,Capital Purchases,20743.92,3/1/2024
Pan-Oceanic Engineering Co  Inc.,Capital Purchases,36534.17,3/1/2024
Pan-Oceanic Engineering Co  Inc.,Capital Purchases,14222.67,3/1/2024
Pan-Oceanic Engineering Co  Inc.,Capital Purchases,75755.83,3/1/2024
Parkview Automotive,Services,3260.88,3/1/2024
Parkview Automotive,Services,3862.55,3/1/2024
Parkview Automotive,Materials,1086.48,3/1/2024
Parkview Automotive,Materials,2491.96,3/1/2024
Parkview Automotive,Services,9448.21,3/1/2024
Parkview Automotive,Services,2859.58,3/4/2024
Parkview Automotive,Services,399,3/7/2024
Parkview Automotive,Materials,520.59,3/7/2024
Parkview Automotive,Materials,83.82,3/11/2024
Parkview Automotive,Materials,1856.61,3/11/2024
Parkview Automotive,Services,36,3/11/2024
Parkview Automotive,Services,656.99,3/11/2024
Parkview Automotive,Services,6344.36,3/26/2024
Paul A Molitor,Services,24.44,1/23/2024
Paul Bukowski,Services,200,2/5/2024
Paul Larsen,Services,851.24,2/13/2024
Paul Larsen,Services,557.19,2/13/2024
Paul Larsen,Services,224,2/13/2024
Paul Larsen,Services,50.94,2/13/2024
Payscale Inc.,Services,11900,3/1/2024
"PDS Consultants, Inc. dba Korrect Optical",Services,770,1/3/2024
"PDS Consultants, Inc. dba Korrect Optical",Services,333,1/23/2024
"PDS Consultants, Inc. dba Korrect Optical",Services,986.01,2/7/2024
Pedro Salazar,Services,48.21,1/11/2024
Pedro Salazar,Services,41.54,2/13/2024
Pedro Salazar,Services,41.67,3/14/2024
Penn Machine Co.,Services,11445,1/10/2024
Penn Machine Co.,Services,11445,1/10/2024
Penn Machine Co.,Services,11445,1/10/2024
Penn Machine Co.,Services,11445,1/10/2024
Peoples Gas,Utilities,1606.75,1/1/2024
Peoples Gas,Utilities,36209.66,1/2/2024
Peoples Gas,Utilities,30944.59,1/2/2024
Peoples Gas,Utilities,3991.89,1/2/2024
Peoples Gas,Utilities,11528.22,1/16/2024
Peoples Gas,Utilities,360.47,1/16/2024
Peoples Gas,Utilities,4881.88,1/16/2024
Peoples Gas,Utilities,19042.85,1/16/2024
Peoples Gas,Utilities,967.67,1/17/2024
Peoples Gas,Utilities,3013.85,1/17/2024
Peoples Gas,Utilities,71550.74,2/16/2024
Peoples Gas,Utilities,133834.76,2/16/2024
Peoples Gas,Utilities,11471.84,2/23/2024
Peoples Gas,Utilities,51511.57,3/1/2024
Peoples Gas,Utilities,1095.75,3/6/2024
Peoples Gas,Utilities,11480.45,3/15/2024
Peoples Gas,Utilities,151156.13,3/15/2024
Peoples Gas,Utilities,19174.49,3/18/2024
Peoples Gas,Utilities,2122.41,3/18/2024
Peoples Gas,Utilities,8530.57,3/19/2024
Peoples Gas,Utilities,2174.52,3/19/2024
Perspectives Ltd,Services,4165,1/1/2024
Perspectives Ltd,Services,4165,2/21/2024
Perspectives Ltd,Services,4165,3/1/2024
Peter Harris,Services,14.74,2/1/2024
Peter Harris,Services,42.88,2/26/2024
Peter Harris,Services,14.74,3/14/2024
Peter Harris,Services,14.74,3/14/2024
Petro-Chem Industries,Materials,3590,1/9/2024
Petro-Chem Industries,Materials,240,1/9/2024
Petro-Chem Industries,Materials,3590,1/18/2024
Petro-Chem Industries,Materials,3590,1/19/2024
Petro-Chem Industries,Materials,18850,2/6/2024
Petro-Chem Industries,Materials,4300,3/1/2024
Petro-Chem Industries,Materials,840,3/1/2024
Petro-Chem Industries,Materials,7180,3/6/2024
Petro-Chem Industries,Materials,240,3/6/2024
"Pharma Consultants Of Illinois, LTD",Services,25000,1/23/2024
Phillip A. Romito,Services,147.5,1/23/2024
Phillip A. Romito,Services,331.46,1/23/2024
Phillip A. Romito,Services,724.5,3/12/2024
Phillip A. Romito,Services,30.62,3/12/2024
Phillip A. Romito,Services,121.88,3/12/2024
Phillip A. Romito,Services,972.51,3/12/2024
"Pinkerton Oil Company, Inc.",Fuel,38145.37,2/1/2024
"Pinkerton Oil Company, Inc.",Fuel,1784.64,2/1/2024
"Pinkerton Oil Company, Inc.",Fuel,17657.41,2/1/2024
"Pinkerton Oil Company, Inc.",Fuel,25073.71,2/1/2024
"Pinkerton Oil Company, Inc.",Fuel,59949.72,2/2/2024
"Pinkerton Oil Company, Inc.",Fuel,52747.1,2/2/2024
"Pinkerton Oil Company, Inc.",Fuel,113709.47,2/2/2024
"Pinkerton Oil Company, Inc.",Fuel,12289.09,2/2/2024
"Pinkerton Oil Company, Inc.",Fuel,16614.3,2/7/2024
"Pinkerton Oil Company, Inc.",Fuel,4014.95,2/7/2024
"Pinkerton Oil Company, Inc.",Fuel,6127.9,2/7/2024
"Pinkerton Oil Company, Inc.",Fuel,42092.7,2/7/2024
"Pinkerton Oil Company, Inc.",Fuel,14303.98,2/7/2024
"Pinkerton Oil Company, Inc.",Fuel,13503.88,2/9/2024
"Pinkerton Oil Company, Inc.",Fuel,33955.33,2/9/2024
"Pinkerton Oil Company, Inc.",Fuel,53263.11,2/9/2024
"Pinkerton Oil Company, Inc.",Fuel,22066.57,2/9/2024
"Pinkerton Oil Company, Inc.",Fuel,15467.09,2/9/2024
"Pinkerton Oil Company, Inc.",Fuel,20029.89,2/13/2024
"Pinkerton Oil Company, Inc.",Fuel,20897.66,2/13/2024
"Pinkerton Oil Company, Inc.",Fuel,3575.92,2/13/2024
"Pinkerton Oil Company, Inc.",Fuel,3584.46,2/13/2024
"Pinkerton Oil Company, Inc.",Fuel,10471.08,2/13/2024
"Pinkerton Oil Company, Inc.",Fuel,2753.58,2/14/2024
"Pinkerton Oil Company, Inc.",Fuel,5920.23,2/14/2024
"Pinkerton Oil Company, Inc.",Fuel,17888.02,2/14/2024
"Pinkerton Oil Company, Inc.",Fuel,7538.43,2/20/2024
"Pinkerton Oil Company, Inc.",Fuel,8538.97,2/20/2024
"Pinkerton Oil Company, Inc.",Fuel,24188.8,2/20/2024
"Pinkerton Oil Company, Inc.",Fuel,9228.04,2/26/2024
"Pinkerton Oil Company, Inc.",Fuel,10683.37,2/26/2024
"Pinkerton Oil Company, Inc.",Fuel,16797.02,3/1/2024
"Pinkerton Oil Company, Inc.",Fuel,8619.65,3/1/2024
"Pinkerton Oil Company, Inc.",Fuel,5957.53,3/4/2024
"Pinkerton Oil Company, Inc.",Fuel,4307.51,3/4/2024
"Pinkerton Oil Company, Inc.",Fuel,18673.44,3/4/2024
"Pinkerton Oil Company, Inc.",Fuel,2820.39,3/5/2024
"Pinkerton Oil Company, Inc.",Fuel,6957.28,3/5/2024
"Pinkerton Oil Company, Inc.",Fuel,18802.28,3/5/2024
"Pinkerton Oil Company, Inc.",Fuel,4423.19,3/6/2024
"Pinkerton Oil Company, Inc.",Fuel,11961.13,3/6/2024
"Pinkerton Oil Company, Inc.",Fuel,9088.29,3/7/2024
"Pinkerton Oil Company, Inc.",Fuel,6735.14,3/7/2024
"Pinkerton Oil Company, Inc.",Fuel,4048.65,3/7/2024
"Pinkerton Oil Company, Inc.",Fuel,21747.49,3/8/2024
"Pinkerton Oil Company, Inc.",Fuel,17964.93,3/8/2024
"Pinkerton Oil Company, Inc.",Fuel,11094.46,3/8/2024
"Pinkerton Oil Company, Inc.",Fuel,5125.42,3/8/2024
"Pinkerton Oil Company, Inc.",Fuel,4128.31,3/11/2024
"Pinkerton Oil Company, Inc.",Fuel,8887.44,3/11/2024
"Pinkerton Oil Company, Inc.",Fuel,7336.72,3/11/2024
"Pinkerton Oil Company, Inc.",Fuel,23509.61,3/11/2024
"Pinkerton Oil Company, Inc.",Fuel,8510.56,3/19/2024
"Pinkerton Oil Company, Inc.",Fuel,4171.15,3/26/2024
"Pinkerton Oil Company, Inc.",Fuel,19206.92,3/26/2024
"Pinkerton Oil Company, Inc.",Fuel,29572.87,3/26/2024
Piotr Jedraszczak,Services,100.22,3/12/2024
Piotr Jedraszczak,Services,59,3/12/2024
Piotr Jedraszczak,Services,972.51,3/12/2024
Piotr Jedraszczak,Services,724.5,3/12/2024
Plasser American Corp.,Materials,4046.8,1/23/2024
Polach Appraisal Group  Inc.,Services,2625,1/23/2024
"Police Law Institute, Inc.",Services,11400,3/26/2024
"Portable Storage of MN, Inc. dba Contain-It MN, LLC",Materials,17400,1/1/2024
"Portable Storage of MN, Inc. dba Contain-It MN, LLC",Services,750,1/1/2024
Postmaster,Services,15000,1/26/2024
Power Parts Sign Co.,Materials,677,1/1/2024
Power Parts Sign Co.,Capital Purchases,7822.5,1/1/2024
Power Parts Sign Co.,Capital Purchases,9120,1/3/2024
Power Parts Sign Co.,Materials,988,1/17/2024
Power Parts Sign Co.,Materials,1200,1/17/2024
Power Parts Sign Co.,Materials,12350,2/12/2024
Power Parts Sign Co.,Materials,1800,2/14/2024
Power Parts Sign Co.,Materials,3800,2/22/2024
Power Parts Sign Co.,Capital Purchases,15960,3/4/2024
Power Parts Sign Co.,Capital Purchases,29250,3/7/2024
Power Parts Sign Co.,Materials,18600,3/19/2024
Power Parts Sign Co.,Materials,9300,3/26/2024
Powerrail Distribution Inc,Materials,334,2/21/2024
Powerrail Distribution Inc,Services,9761,2/21/2024
Powerrail Distribution Inc,Services,16313.6,3/7/2024
Powerrail Distribution Inc,Materials,2714.88,3/8/2024
Powerrail Distribution Inc,Materials,167,3/26/2024
"Powertech Controls Co., Inc.",Capital Purchases,17473.97,2/6/2024
"Powertech Controls Co., Inc.",Capital Purchases,801,2/12/2024
"Powertech Controls Co., Inc.",Capital Purchases,10323.82,2/16/2024
"Powertech Controls Co., Inc.",Capital Purchases,20184,3/1/2024
"Powertech Controls Co., Inc.",Capital Purchases,12835,3/19/2024
Pretzel & Stouffer  Chartered,Services,1344,3/14/2024
PREVENTIVE HEALTH PARTNERS IL S.C.,Services,78,1/8/2024
"PRIME SCAFFOLD, INC",Materials,7685,1/17/2024
Pro- Temp Of Illinois Inc.,Services,20634.11,1/1/2024
Pro- Temp Of Illinois Inc.,Capital Purchases,173190,1/1/2024
Pro- Temp Of Illinois Inc.,Capital Purchases,149430,1/1/2024
Pro- Temp Of Illinois Inc.,Services,4390.91,1/1/2024
Pro- Temp Of Illinois Inc.,Capital Purchases,47890.6,1/17/2024
Pro- Temp Of Illinois Inc.,Services,2340.89,2/1/2024
Pro- Temp Of Illinois Inc.,Services,3196,2/1/2024
Pro- Temp Of Illinois Inc.,Materials,7098.59,2/1/2024
Pro- Temp Of Illinois Inc.,Services,42734.12,2/1/2024
Pro- Temp Of Illinois Inc.,Services,11686.52,2/1/2024
Pro- Temp Of Illinois Inc.,Services,1128,2/1/2024
Pro- Temp Of Illinois Inc.,Services,38794.06,2/1/2024
Pro- Temp Of Illinois Inc.,Services,12863.02,2/1/2024
Pro- Temp Of Illinois Inc.,Services,3314,2/1/2024
Pro- Temp Of Illinois Inc.,Services,12982.39,2/1/2024
Pro- Temp Of Illinois Inc.,Materials,5669.15,2/1/2024
Pro- Temp Of Illinois Inc.,Services,7520,2/1/2024
Production Distribution Companies,Materials,330.32,1/1/2024
Production Distribution Companies,Materials,206.45,1/8/2024
Production Distribution Companies,Materials,5394,1/8/2024
Production Distribution Companies,Services,125,1/8/2024
Production Distribution Companies,Materials,1144.77,1/8/2024
Production Distribution Companies,Materials,1752.6,1/8/2024
Production Distribution Companies,Materials,646.2,1/11/2024
Production Distribution Companies,Materials,2828.48,1/17/2024
Production Distribution Companies,Services,300,1/17/2024
Production Distribution Companies,Materials,1523.1,1/17/2024
Production Distribution Companies,Materials,305.76,1/18/2024
Production Distribution Companies,Materials,2600,1/23/2024
Production Distribution Companies,Materials,1050,2/1/2024
Production Distribution Companies,Materials,918.75,2/1/2024
Production Distribution Companies,Materials,1879.5,2/1/2024
Production Distribution Companies,Materials,1879.5,2/1/2024
Production Distribution Companies,Materials,233.04,2/5/2024
Production Distribution Companies,Capital Purchases,2822.4,2/13/2024
Production Distribution Companies,Materials,1362.57,2/14/2024
Production Distribution Companies,Materials,1015,2/21/2024
Production Distribution Companies,Materials,1940.63,3/4/2024
Production Distribution Companies,Materials,486.5,3/5/2024
Production Distribution Companies,Materials,9800,3/5/2024
Production Distribution Companies,Materials,10846.48,3/5/2024
Production Distribution Companies,Materials,4469.13,3/6/2024
Production Distribution Companies,Materials,206.45,3/6/2024
Production Distribution Companies,Capital Purchases,5071.32,3/7/2024
Production Distribution Companies,Materials,1470,3/7/2024
Production Distribution Companies,Materials,6468,3/8/2024
Production Distribution Companies,Materials,458.64,3/11/2024
Production Distribution Companies,Materials,458.64,3/26/2024
Production Distribution Companies,Materials,305.76,3/26/2024
Production Distribution Companies,Capital Purchases,830,3/26/2024
Production Distribution Companies,Materials,77.68,3/26/2024
Progress Rail - Signal Div.,Capital Purchases,159686,3/19/2024
Progress Rail - Signal Div.,Capital Purchases,179928.35,3/19/2024
Progress Rail - Signal Div.,Capital Purchases,455691,3/19/2024
Progress Rail Locomotive  Inc.,Materials,2317.69,3/6/2024
Progress Rail Locomotive  Inc.,Materials,5822.5,3/14/2024
Progress Rail Locomotive  Inc.,Materials,1854.15,3/28/2024
"Progress Rail Locomotive, Inc.",Materials,300,1/1/2024
"Progress Rail Locomotive, Inc.",Materials,113.3,1/1/2024
"Progress Rail Locomotive, Inc.",Capital Purchases,514684.75,1/1/2024
"Progress Rail Locomotive, Inc.",Materials,17046.72,1/1/2024
"Progress Rail Locomotive, Inc.",Materials,2980.6,1/1/2024
"Progress Rail Locomotive, Inc.",Materials,7379,1/5/2024
"Progress Rail Locomotive, Inc.",Materials,35580.25,1/8/2024
"Progress Rail Locomotive, Inc.",Capital Purchases,3997614.06,1/8/2024
"Progress Rail Locomotive, Inc.",Materials,1930.92,1/8/2024
"Progress Rail Locomotive, Inc.",Materials,570.22,1/9/2024
"Progress Rail Locomotive, Inc.",Materials,76.72,1/9/2024
"Progress Rail Locomotive, Inc.",Materials,19241.24,1/11/2024
"Progress Rail Locomotive, Inc.",Materials,1821.44,1/11/2024
"Progress Rail Locomotive, Inc.",Materials,26153.43,1/17/2024
"Progress Rail Locomotive, Inc.",Materials,1161.33,1/18/2024
"Progress Rail Locomotive, Inc.",Materials,41170.89,1/19/2024
"Progress Rail Locomotive, Inc.",Materials,395.01,1/23/2024
"Progress Rail Locomotive, Inc.",Materials,660.69,1/23/2024
"Progress Rail Locomotive, Inc.",Materials,74685.08,1/29/2024
"Progress Rail Locomotive, Inc.",Materials,13861.38,1/30/2024
"Progress Rail Locomotive, Inc.",Materials,120.3,2/1/2024
"Progress Rail Locomotive, Inc.",Materials,25029.96,2/1/2024
"Progress Rail Locomotive, Inc.",Materials,35725.46,2/5/2024
"Progress Rail Locomotive, Inc.",Materials,22717.46,2/6/2024
"Progress Rail Locomotive, Inc.",Materials,2831.5,2/6/2024
"Progress Rail Locomotive, Inc.",Materials,18053.8,2/7/2024
"Progress Rail Locomotive, Inc.",Materials,316.21,2/7/2024
"Progress Rail Locomotive, Inc.",Materials,18818.27,2/13/2024
"Progress Rail Locomotive, Inc.",Materials,301.53,2/13/2024
"Progress Rail Locomotive, Inc.",Services,187,2/13/2024
"Progress Rail Locomotive, Inc.",Materials,312.48,2/15/2024
"Progress Rail Locomotive, Inc.",Capital Purchases,1332538.02,2/20/2024
"Progress Rail Locomotive, Inc.",Materials,6800.56,2/20/2024
"Progress Rail Locomotive, Inc.",Materials,12778.43,2/20/2024
"Progress Rail Locomotive, Inc.",Materials,2980.03,2/21/2024
"Progress Rail Locomotive, Inc.",Materials,14498.89,2/21/2024
"Progress Rail Locomotive, Inc.",Materials,6018.03,2/21/2024
"Progress Rail Locomotive, Inc.",Materials,23840.85,2/26/2024
"Progress Rail Locomotive, Inc.",Services,368.88,2/26/2024
"Progress Rail Locomotive, Inc.",Materials,40920.11,2/27/2024
"Progress Rail Locomotive, Inc.",Materials,8936.38,3/1/2024
"Progress Rail Locomotive, Inc.",Capital Purchases,1332538.02,3/1/2024
"Progress Rail Locomotive, Inc.",Materials,175,3/1/2024
"Progress Rail Locomotive, Inc.",Materials,27204.76,3/4/2024
"Progress Rail Locomotive, Inc.",Materials,26571.76,3/5/2024
"Progress Rail Locomotive, Inc.",Materials,46134.8,3/6/2024
"Progress Rail Locomotive, Inc.",Materials,7811.92,3/8/2024
"Progress Rail Locomotive, Inc.",Materials,2457.87,3/11/2024
"Progress Rail Locomotive, Inc.",Capital Purchases,1660373.57,3/11/2024
"Progress Rail Locomotive, Inc.",Materials,29723.58,3/13/2024
"Progress Rail Locomotive, Inc.",Services,277.31,3/13/2024
"Progress Rail Locomotive, Inc.",Materials,6432.6,3/14/2024
"Progress Rail Locomotive, Inc.",Materials,72488.25,3/20/2024
"Progress Rail Locomotive, Inc.",Materials,1657.7,3/20/2024
"Progress Rail Locomotive, Inc.",Materials,809.77,3/28/2024
"Progress Rail Locomotive, Inc.",Materials,83023.36,3/28/2024
Progress Rail Services (Kershaw),Materials,4.5,2/20/2024
Progress Rail Services (Kershaw),Materials,3259.1,2/20/2024
Progress Rail Services (Kershaw),Materials,3703.1,3/1/2024
Progress Rail Services (Kershaw),Materials,1536.4,3/1/2024
Progress Rail Services (Kershaw),Materials,1052.28,3/4/2024
Progress Rail Services (Kershaw),Materials,1232.8,3/11/2024
Progress Rail Services (Kershaw),Materials,1169.74,3/11/2024
Progress Rail Services (Kershaw),Materials,5148.43,3/19/2024
Progress Rail Services Corporation,Materials,16284,2/9/2024
Progress Rail Services Corporation,Capital Purchases,137389.38,3/19/2024
Progress Rail Services Corporation,Capital Purchases,160108.91,3/19/2024
"Project Management Institute, Inc.",Services,150,3/8/2024
Ptc-220  Llc.,Services,4207.44,1/11/2024
Quandel Consultants Inc,Services,75299.14,2/13/2024
"Quench USA, Inc.",Materials,220.36,1/23/2024
"Quench USA, Inc.",Materials,143.64,1/23/2024
"Quench USA, Inc.",Rental Expense,1547.4,2/13/2024
Quest Diagnostics  Inc.,Services,828.75,1/5/2024
Quest Diagnostics  Inc.,Services,900.5,1/30/2024
Quest Diagnostics  Inc.,Services,1482.5,2/1/2024
Quest Diagnostics  Inc.,Services,1608.75,2/13/2024
Quest Diagnostics  Inc.,Services,1429.25,2/14/2024
Quest Diagnostics  Inc.,Services,1316.25,2/20/2024
Quest Diagnostics  Inc.,Services,998.8,3/14/2024
R & W Machine Div. Warner Ind.  Inc,Services,25905,1/3/2024
R & W Machine Div. Warner Ind.  Inc,Services,24178,2/27/2024
R & W Machine Div. Warner Ind.  Inc,Services,25905,3/8/2024
R J Harris and Associates,Services,30500,1/31/2024
R J Harris and Associates,Services,36000,2/13/2024
R.C. Dargan,Services,133.19,3/14/2024
R4 Services  Llc,Claims & Insurance,52597.62,2/1/2024
R4 Services  Llc,Services,250.16,2/23/2024
R4 Services  Llc,Services,336.23,2/23/2024
Racine Railroad Products Inc.,Materials,2763.02,3/4/2024
Racine Railroad Products Inc.,Materials,12980.62,3/4/2024
Racine Railroad Products Inc.,Materials,354.69,3/11/2024
Radwell International,Materials,1495.74,1/1/2024
Radwell International,Services,31.88,1/1/2024
Railhead Corp.,Materials,273.91,1/1/2024
Railhead Corp.,Materials,4593.8,1/5/2024
Railhead Corp.,Materials,25480,1/10/2024
Railhead Corp.,Materials,1774.39,1/16/2024
Railhead Corp.,Services,255,1/16/2024
Railhead Corp.,Materials,16632.56,1/18/2024
Railhead Corp.,Materials,710.4,1/23/2024
Railhead Corp.,Materials,1356.22,1/24/2024
Railhead Corp.,Materials,328.69,1/25/2024
Railhead Corp.,Materials,9782.95,1/29/2024
Railhead Corp.,Materials,1099.51,2/1/2024
Railhead Corp.,Services,181.3,2/1/2024
Railhead Corp.,Services,2209.9,2/1/2024
Railhead Corp.,Materials,7644,2/12/2024
Railhead Corp.,Services,251.6,2/12/2024
Railhead Corp.,Materials,1171.44,2/14/2024
Railhead Corp.,Materials,440.51,2/15/2024
Railhead Corp.,Materials,219.13,2/16/2024
Railhead Corp.,Services,83.3,2/22/2024
Railhead Corp.,Services,1724.8,2/22/2024
Railhead Corp.,Materials,2134.59,2/28/2024
Railhead Corp.,Services,558.6,2/28/2024
Railhead Corp.,Services,362.6,2/28/2024
Railhead Corp.,Services,333.2,3/1/2024
Railhead Corp.,Materials,1386.7,3/4/2024
Railhead Corp.,Materials,132.3,3/7/2024
Railhead Corp.,Services,488.04,3/7/2024
Railhead Corp.,Materials,1033.31,3/8/2024
Railhead Corp.,Materials,1444.72,3/14/2024
Railhead Corp.,Materials,2477.49,3/19/2024
Railhead Corp.,Services,490,3/20/2024
Railhead Corp.,Services,1566.04,3/20/2024
Railhead Corp.,Materials,264.31,3/20/2024
Railhead Corp.,Materials,774.98,3/25/2024
Railinc Corp.,Services,200,1/8/2024
Railinc Corp.,Services,200,1/8/2024
Railinc Corp.,Services,50,2/1/2024
Railinc Corp.,Services,1553.86,3/1/2024
"Railroad Component Rebuilds, Inc",Materials,56750,3/12/2024
Railroad Friction Products Corp.,Materials,9840,2/7/2024
Railroad Friction Products Corp.,Materials,4920,2/13/2024
Railroad Friction Products Corp.,Materials,3019.2,2/15/2024
Railroad Friction Products Corp.,Materials,4920,2/16/2024
Railroad Friction Products Corp.,Materials,6038.4,2/20/2024
Railroad Friction Products Corp.,Materials,4920,2/21/2024
Railroad Friction Products Corp.,Materials,6793.2,2/23/2024
Railroad Friction Products Corp.,Materials,6038.4,2/26/2024
Railroad Friction Products Corp.,Materials,4543.04,3/7/2024
Railroad Friction Products Corp.,Materials,4920,3/8/2024
Railroad Friction Products Corp.,Materials,2460,3/11/2024
Railroad Friction Products Corp.,Materials,4920,3/14/2024
Railroad Friction Products Corp.,Materials,2460,3/19/2024
Railroad Friction Products Corp.,Materials,9840,3/25/2024
Railroad Tools & Solutions LLC,Materials,342.58,1/5/2024
Railroad Tools & Solutions LLC,Materials,200,3/27/2024
Railway Age,Services,4326,1/17/2024
Railway Equipment Co.,Materials,75674.79,1/1/2024
Railway Equipment Co.,Materials,2711.8,1/1/2024
Railway Equipment Co.,Materials,450,2/27/2024
Railway Equipment Co.,Materials,3920.94,3/11/2024
Railway Equipment Co.,Materials,4320,3/13/2024
Rana Abudayyeh,Services,180.41,1/4/2024
Rana Abudayyeh,Services,621.99,1/4/2024
Rana Abudayyeh,Services,118.5,1/4/2024
Raucci & Sullivan Strategies  Llc,Services,8000,1/4/2024
Raucci & Sullivan Strategies  Llc,Services,8000,2/8/2024
Raucci & Sullivan Strategies  Llc,Services,8000,3/4/2024
Raul V. Bravo & Associates Inc.,Capital Purchases,249304.43,3/15/2024
Raul V. Bravo & Associates Inc.,Capital Purchases,24414,3/15/2024
Raymond M Monty,Services,113.27,2/2/2024
Raymond M Monty,Services,27.71,2/20/2024
Rebel Railway Supply Co.  Llc,Materials,1568,3/1/2024
"Red Wing Brands Of America, Inc.",Services,23680.26,1/4/2024
"Red Wing Brands Of America, Inc.",Services,60522.33,1/26/2024
"Red Wing Brands Of America, Inc.",Services,46962.7,2/20/2024
Reginald Hill,Services,200.43,1/17/2024
Reginald Hill,Services,67,3/20/2024
Reginald L Johnson,Services,72.76,2/28/2024
Regional Transportation Authority,Services,24945.75,3/22/2024
Rene Ortiz,Services,53.71,1/12/2024
Rene Ortiz,Services,52.4,1/12/2024
Rene Ortiz,Services,42.88,3/4/2024
Renewal Compounds  Inc.,Materials,7678,1/17/2024
Ricardo Rizo,Services,96.48,2/20/2024
Richard Moya,Services,77.02,2/21/2024
Richard Moya,Services,369.9,2/21/2024
Richard Moya,Services,259,2/21/2024
Richard Moya,Services,487.2,2/21/2024
RICKY OCHOA,Services,621.5,1/9/2024
RICKY OCHOA,Services,13.76,1/23/2024
RICKY OCHOA,Services,169.5,2/13/2024
Ricon Corp.,Materials,29492.5,1/1/2024
Ricon Corp.,Materials,29.66,1/1/2024
Ricon Corp.,Capital Purchases,297214.02,1/4/2024
Ricon Corp.,Materials,1985.5,1/5/2024
Ricon Corp.,Materials,12.28,1/5/2024
Ricon Corp.,Materials,815.2,1/8/2024
Ricon Corp.,Materials,10.24,1/8/2024
Ricon Corp.,Materials,505.14,1/24/2024
Ricon Corp.,Materials,33.67,1/24/2024
Ricon Corp.,Materials,7821.26,1/29/2024
Ricon Corp.,Materials,19.16,1/29/2024
Ricon Corp.,Capital Purchases,99071.34,1/30/2024
Ricon Corp.,Materials,65808.61,2/1/2024
Ricon Corp.,Materials,63.03,2/1/2024
Ricon Corp.,Capital Purchases,99071.34,3/1/2024
Ricon Corp.,Materials,47765.27,3/11/2024
Ricon Corp.,Materials,46.45,3/11/2024
Ricon Corp.,Materials,10.29,3/15/2024
Ricon Corp.,Materials,1630.4,3/15/2024
Ricon Corp.,Materials,35823.95,3/28/2024
Rilco Inc.,Materials,9207,1/1/2024
Rilco Inc.,Materials,9207,1/5/2024
Rilco Inc.,Materials,2610,1/10/2024
Rilco Inc.,Materials,6960,1/26/2024
Rilco Inc.,Materials,6960,2/12/2024
Rilco Inc.,Materials,870,2/15/2024
Rilco Inc.,Materials,7627.8,2/28/2024
Rilco Inc.,Materials,6090,3/4/2024
Rilco Inc.,Materials,4350,3/12/2024
Rilco Inc.,Materials,8268.7,3/19/2024
Rilco Inc.,Materials,3480,3/26/2024
Roadsafe Traffic Systems,Rental Expense,5859,2/1/2024
Roadsafe Traffic Systems,Capital Purchases,10043.75,2/1/2024
Roadsafe Traffic Systems,Capital Purchases,4792,3/1/2024
Roadsafe Traffic Systems,Capital Purchases,1565.5,3/1/2024
Roadsafe Traffic Systems,Capital Purchases,1158.75,3/1/2024
Roadsafe Traffic Systems,Capital Purchases,6567,3/1/2024
Robert D. Tellin,Services,48.11,3/14/2024
Robert D. Tellin,Services,19.75,3/14/2024
Robert D. Tellin,Services,114.99,3/14/2024
Robert D. Tellin,Services,44.12,3/26/2024
Robert Half International  Inc.,Services,2553,1/1/2024
Robert Half International  Inc.,Services,2208,1/3/2024
Robert Half International  Inc.,Services,7247.75,1/5/2024
Robert Half International  Inc.,Services,1584.68,2/1/2024
Robert Half International  Inc.,Services,1656,2/1/2024
Robert Half International  Inc.,Services,4271.33,2/1/2024
Robert Half International  Inc.,Services,2760,2/2/2024
Robert Half International  Inc.,Services,8031.34,2/14/2024
Robert Half International  Inc.,Services,2760,2/14/2024
Robert Half International  Inc.,Services,4400,2/16/2024
Robert Half International  Inc.,Services,2654.35,2/22/2024
Robert Half International  Inc.,Services,2679.18,2/27/2024
Robert Half International  Inc.,Services,4400,3/1/2024
Robert Half International  Inc.,Services,4400,3/4/2024
Robert Half International  Inc.,Services,2651.25,3/4/2024
Robert Half International  Inc.,Services,2596.16,3/8/2024
Robert Half International  Inc.,Services,4400,3/8/2024
Robert Half International  Inc.,Services,4400,3/14/2024
Robert Half International  Inc.,Services,4400,3/25/2024
Robert Half International  Inc.,Services,4400,3/28/2024
Robert J Tague,Services,45.98,1/3/2024
Robert J Tague,Services,276.5,1/3/2024
Robert J Tague,Services,61.81,1/3/2024
Robert J Tague,Services,1120.14,1/3/2024
Robert J Tague,Services,60,1/3/2024
Robert Vorisek,Services,15840,1/1/2024
Robert Vorisek,Services,4200,3/12/2024
Roesch Ford,Services,3734.9,1/3/2024
Roesch Ford,Materials,3372.69,1/3/2024
Roesch Ford,Materials,5393.52,1/16/2024
Roesch Ford,Services,8771.78,1/16/2024
Roesch Ford,Services,1844.35,1/26/2024
Roesch Ford,Materials,121.08,1/26/2024
Roesch Ford,Services,75.05,1/26/2024
Roesch Ford,Materials,1004.93,1/26/2024
Roesch Ford,Services,269.25,2/12/2024
Roesch Ford,Materials,315.71,2/12/2024
Roesch Ford,Services,256.65,2/14/2024
Roesch Ford,Materials,103.79,2/14/2024
Roesch Ford,Materials,1549.44,2/23/2024
Roesch Ford,Services,1643.2,2/23/2024
Roesch Ford,Materials,392.11,3/5/2024
Roesch Ford,Services,623.7,3/5/2024
Roesch Ford,Materials,136.04,3/11/2024
Roesch Ford,Services,889.05,3/11/2024
Roesch Ford,Services,3299.65,3/14/2024
Roesch Ford,Materials,1525.71,3/14/2024
Roesch Ford,Materials,3832.9,3/20/2024
Roesch Ford,Services,9687.54,3/20/2024
Rome Truck Parts,Materials,1440,1/16/2024
Rome Truck Parts,Materials,672.16,2/1/2024
Rome Truck Parts,Materials,1526.4,2/2/2024
Rome Truck Parts,Materials,1633.72,2/2/2024
Rome Truck Parts,Materials,166.3,2/12/2024
Rome Truck Parts,Materials,415.75,2/13/2024
Rome Truck Parts,Materials,6248.28,2/20/2024
Rome Truck Parts,Materials,139.15,2/21/2024
Rome Truck Parts,Materials,839.52,3/1/2024
Rome Truck Parts,Materials,31933.67,3/1/2024
Rome Truck Parts,Materials,5301.24,3/4/2024
Rome Truck Parts,Materials,522.6,3/4/2024
Rome Truck Parts,Materials,1421.35,3/12/2024
Rome Truck Parts,Materials,2030.5,3/13/2024
Rome Truck Parts,Materials,1593.48,3/25/2024
Ronald M. Johnson LLC,Services,6780,3/15/2024
ROOFERS BENEFIT FUNDS,Services,6436.94,3/25/2024
ROOFERS BENEFIT FUNDS,Capital Purchases,26199.44,3/25/2024
Root Bros. Manufacturing & Supply,Materials,74212.56,1/1/2024
Root Bros. Manufacturing & Supply,Materials,3678.23,1/2/2024
Root Bros. Manufacturing & Supply,Materials,6957.02,1/2/2024
Root Bros. Manufacturing & Supply,Materials,6978.91,1/3/2024
Root Bros. Manufacturing & Supply,Materials,11365.53,1/10/2024
Root Bros. Manufacturing & Supply,Materials,941.49,1/16/2024
Root Bros. Manufacturing & Supply,Materials,18393.52,1/17/2024
Root Bros. Manufacturing & Supply,Materials,9607.89,1/18/2024
Root Bros. Manufacturing & Supply,Materials,1383.48,1/18/2024
Root Bros. Manufacturing & Supply,Materials,4104.86,1/24/2024
Root Bros. Manufacturing & Supply,Materials,506.22,1/26/2024
Root Bros. Manufacturing & Supply,Materials,7119.33,1/29/2024
Root Bros. Manufacturing & Supply,Materials,8606.88,1/30/2024
Root Bros. Manufacturing & Supply,Materials,184.22,1/31/2024
Root Bros. Manufacturing & Supply,Materials,41911.01,2/1/2024
Root Bros. Manufacturing & Supply,Materials,4602.5,2/2/2024
Root Bros. Manufacturing & Supply,Materials,1375.92,2/7/2024
Root Bros. Manufacturing & Supply,Materials,35052.89,2/8/2024
Root Bros. Manufacturing & Supply,Materials,10317.51,2/9/2024
Root Bros. Manufacturing & Supply,Materials,2128.5,2/12/2024
Root Bros. Manufacturing & Supply,Materials,20900.32,2/13/2024
Root Bros. Manufacturing & Supply,Materials,9616.78,2/15/2024
Root Bros. Manufacturing & Supply,Materials,10413.7,2/16/2024
Root Bros. Manufacturing & Supply,Materials,5988.55,2/20/2024
Root Bros. Manufacturing & Supply,Materials,15431.19,2/23/2024
Root Bros. Manufacturing & Supply,Materials,37410.23,2/26/2024
Root Bros. Manufacturing & Supply,Capital Purchases,6637.5,2/28/2024
Root Bros. Manufacturing & Supply,Materials,946.76,2/29/2024
Root Bros. Manufacturing & Supply,Materials,34511.39,3/1/2024
Root Bros. Manufacturing & Supply,Materials,99.7,3/4/2024
Root Bros. Manufacturing & Supply,Materials,144.7,3/5/2024
Root Bros. Manufacturing & Supply,Capital Purchases,1067.36,3/7/2024
Root Bros. Manufacturing & Supply,Materials,120.24,3/7/2024
Root Bros. Manufacturing & Supply,Materials,51808.87,3/8/2024
Root Bros. Manufacturing & Supply,Materials,21204.57,3/11/2024
Root Bros. Manufacturing & Supply,Materials,7575.8,3/19/2024
Root Bros. Manufacturing & Supply,Materials,46601.23,3/20/2024
Root Bros. Manufacturing & Supply,Materials,7069.49,3/22/2024
Root Bros. Manufacturing & Supply,Materials,188.05,3/25/2024
Root Bros. Manufacturing & Supply,Materials,5452,3/26/2024
Root Bros. Manufacturing & Supply,Materials,945.28,3/26/2024
Root Bros. Manufacturing & Supply,Materials,1687.81,3/28/2024
Rubrix LLC,Materials,292.2,1/1/2024
Rubrix LLC,Materials,715,1/18/2024
Rubrix LLC,Materials,1999.64,3/1/2024
"Rummel, Klepper & Kahl, LLP",Services,20347.5,1/1/2024
"Rummel, Klepper & Kahl, LLP",Services,7210,2/13/2024
"Rummel, Klepper & Kahl, LLP",Services,19812.5,3/4/2024
Russal John Anderson,Services,365,1/11/2024
Russal John Anderson,Services,374.13,2/15/2024
Russal John Anderson,Services,3043.9,2/15/2024
Russal John Anderson,Services,1292.25,2/15/2024
Russal John Anderson,Services,20.5,2/20/2024
Russal John Anderson,Services,9,2/26/2024
Russal John Anderson,Services,335.68,3/7/2024
Russal John Anderson,Services,492.5,3/7/2024
Russal John Anderson,Services,1296.66,3/7/2024
Russal John Anderson,Services,5,3/7/2024
Russo Power Equipment,Materials,1377.57,1/5/2024
Russo Power Equipment,Materials,3755.89,1/17/2024
Russo Power Equipment,Materials,460,1/18/2024
Russo Power Equipment,Materials,45.99,1/24/2024
Russo Power Equipment,Materials,659.98,2/8/2024
Russo Power Equipment,Materials,7670,2/26/2024
Russo Power Equipment,Materials,3071.39,2/26/2024
Russo Power Equipment,Capital Purchases,75062.46,2/27/2024
Russo Power Equipment,Services,9163.93,2/27/2024
Russo Power Equipment,Materials,2400,3/4/2024
Russo Power Equipment,Materials,3969.95,3/4/2024
Russo Power Equipment,Materials,278.92,3/19/2024
Russo Power Equipment,Materials,359.91,3/19/2024
Russo Power Equipment,Materials,4536,3/25/2024
Ryan Aardema,Services,101.84,1/22/2024
Ryan Aardema,Services,92.46,2/12/2024
Ryan Aardema,Services,61.64,2/15/2024
Ryan Aardema,Services,120.6,3/4/2024
Ryan Aardema,Services,123.28,3/19/2024
Ryan Aardema,Services,61.64,3/26/2024
Ryan Patrick Mullin,Services,5250,3/27/2024
S & B Finishing Co.  Inc.,Materials,1264,1/11/2024
S D Myers  LLC,Services,243,1/26/2024
S D Myers  LLC,Services,243,2/22/2024
S D Myers  LLC,Materials,243,3/27/2024
Safety-Kleen Systems Inc.,Materials,1128.6,1/2/2024
Safety-Kleen Systems Inc.,Materials,1128.6,1/11/2024
Safety-Kleen Systems Inc.,Materials,1128.6,2/27/2024
Safety-Kleen Systems Inc.,Materials,360,2/27/2024
Safety-Kleen Systems Inc.,Materials,1128.6,3/1/2024
Safety-Kleen Systems Inc.,Services,1204.5,3/6/2024
Safety-Kleen Systems Inc.,Services,1204.5,3/6/2024
Safety-Kleen Systems Inc.,Services,769.8,3/14/2024
Safety-Kleen Systems Inc.,Materials,1128.6,3/15/2024
Safety-Kleen Systems Inc.,Services,480,3/22/2024
Safety-Kleen Systems Inc.,Materials,5183.2,3/28/2024
Safety-Kleen Systems Inc.,Services,438,3/28/2024
Saft America  Inc.,Capital Purchases,28670,3/1/2024
Saf-T-Gard International  Inc.,Services,143.76,2/5/2024
Saf-T-Gard International  Inc.,Services,234.38,3/14/2024
Saf-T-Gard International  Inc.,Services,150.02,3/19/2024
Salvador Vargas-Ortega,Services,621.5,1/9/2024
Salvador Vargas-Ortega,Services,226,1/30/2024
Salvador Vargas-Ortega,Services,452,2/13/2024
Salvador Vargas-Ortega,Services,678,2/20/2024
Salvador Vargas-Ortega,Services,734.5,2/22/2024
Salvador Vargas-Ortega,Services,58.5,3/1/2024
Salvador Vargas-Ortega,Services,847.5,3/14/2024
Salvador Vargas-Ortega,Services,565,3/28/2024
Sazones Inc.,Services,900,1/3/2024
Sazones Inc.,Services,825,2/1/2024
Sazones Inc.,Services,300,2/7/2024
Sazones Inc.,Services,300,3/27/2024
Schindler Elevator Corp.,Services,73878.15,3/1/2024
Schunk Carbon Technology  Llc,Materials,1550.7,1/16/2024
Schunk Carbon Technology  Llc,Materials,1550.7,2/5/2024
Schunk Carbon Technology  Llc,Materials,629.6,2/5/2024
Schunk Carbon Technology  Llc,Capital Purchases,4091.36,2/8/2024
Schunk Carbon Technology  Llc,Materials,5079.91,3/19/2024
Scott Dolude,Services,3.8,1/16/2024
Scott Dolude,Services,107.16,1/16/2024
Scott Dolude,Services,48.37,1/30/2024
Scott Dolude,Services,3.8,2/1/2024
Scott Dolude,Services,60.7,2/1/2024
Scott Dolude,Services,156.78,3/14/2024
Scott Dolude,Services,3.8,3/14/2024
Sean R. Cronin,Services,94.03,3/19/2024
Sean R. Cronin,Services,221.71,3/19/2024
Sean R. Cronin,Services,523.5,3/19/2024
Sean R. Cronin,Services,59.9,3/19/2024
Sean R. Cronin,Services,206.5,3/19/2024
Sean R. Cronin,Services,5.75,3/26/2024
Sean R. Cronin,Services,103.45,3/26/2024
Sean T. Bickerton,Services,48.47,1/12/2024
Seats Incorporated,Capital Purchases,92655,2/6/2024
Seats Incorporated,Capital Purchases,6753.66,2/29/2024
SEFIK HALILOVIC,Services,324.5,1/9/2024
Sentinel Technologies  Inc.,Services,15187.5,1/30/2024
Sentinel Technologies  Inc.,Services,11200,1/31/2024
Service Sanitation,Rental Expense,438,1/2/2024
Service Sanitation,Rental Expense,438,1/2/2024
Service Sanitation,Rental Expense,795,1/2/2024
Service Sanitation,Capital Purchases,140.79,1/3/2024
Service Sanitation,Rental Expense,219,1/5/2024
Service Sanitation,Rental Expense,444,1/5/2024
Service Sanitation,Capital Purchases,219,1/8/2024
Service Sanitation,Rental Expense,7840,1/8/2024
Service Sanitation,Rental Expense,6660,1/10/2024
Service Sanitation,Rental Expense,438,1/11/2024
Service Sanitation,Services,795,1/12/2024
Service Sanitation,Rental Expense,1095,1/12/2024
Service Sanitation,Rental Expense,438,1/18/2024
Service Sanitation,Rental Expense,219,1/18/2024
Service Sanitation,Rental Expense,795,1/18/2024
Service Sanitation,Services,104.64,1/22/2024
Service Sanitation,Rental Expense,219,1/26/2024
Service Sanitation,Rental Expense,219,1/26/2024
Service Sanitation,Rental Expense,648,2/8/2024
Service Sanitation,Rental Expense,1752,2/8/2024
Service Sanitation,Rental Expense,438,2/12/2024
Service Sanitation,Rental Expense,438,2/12/2024
Service Sanitation,Rental Expense,795,2/12/2024
Service Sanitation,Capital Purchases,210,2/13/2024
Service Sanitation,Capital Purchases,210,2/13/2024
Service Sanitation,Services,1233,2/15/2024
Service Sanitation,Rental Expense,219,2/15/2024
Service Sanitation,Rental Expense,219,2/16/2024
Service Sanitation,Rental Expense,1170,2/20/2024
Service Sanitation,Rental Expense,438,2/21/2024
Service Sanitation,Capital Purchases,420,2/22/2024
Service Sanitation,Rental Expense,444,3/5/2024
Service Sanitation,Rental Expense,219,3/5/2024
Service Sanitation,Rental Expense,219,3/5/2024
Service Sanitation,Rental Expense,1170,3/5/2024
Service Sanitation,Rental Expense,438,3/6/2024
Service Sanitation,Rental Expense,795,3/6/2024
Service Sanitation,Rental Expense,438,3/6/2024
Service Sanitation,Rental Expense,219,3/7/2024
Service Sanitation,Rental Expense,876,3/11/2024
Service Sanitation,Services,2466,3/12/2024
Service Sanitation,Rental Expense,888,3/14/2024
Service Sanitation,Rental Expense,219,3/14/2024
Service Sanitation,Rental Expense,219,3/14/2024
Service Sanitation,Rental Expense,951,3/14/2024
Service Sanitation,Services,845,3/20/2024
Service Sanitation,Rental Expense,2028,3/20/2024
Service Sanitation,Rental Expense,4632,3/21/2024
Service Sanitation,Rental Expense,4975,3/22/2024
Service Sanitation,Rental Expense,219,3/26/2024
Shane Dulong,Services,88.44,3/21/2024
Shane Dulong,Services,71.02,3/21/2024
Shanta Williams-Harvey,Services,124.94,2/26/2024
Shanta Williams-Harvey,Services,333,2/26/2024
Shanta Williams-Harvey,Services,36.72,2/26/2024
Shanta Williams-Harvey,Services,75.27,2/26/2024
Shawn Harvey,Services,487.2,2/20/2024
Shawn Harvey,Services,259,2/20/2024
Shawn Harvey,Services,140,2/20/2024
Sheila Annette Ratcliff,Services,53.59,3/28/2024
Sherwin-Williams Co.,Materials,543.95,1/8/2024
Sherwin-Williams Co.,Materials,2867.12,1/16/2024
Sherwin-Williams Co.,Materials,776.48,1/17/2024
Sherwin-Williams Co.,Materials,533.88,2/1/2024
Sherwin-Williams Co.,Materials,90.72,2/1/2024
